Workbook

Sheet home
F2: cmdty by Barchart
F3: Basis Forecast Comparison
F5: Input Data
AH6: re
F7: Crop | G7: Corn | K7: Not Required
F8: Index Area | G8: Iowa | K8: Not Required | X8: =+IF(primarySymbol=historical,"History Up-to-Date","Please Update History") -> History Up-to-Date
F9: Index Area Type | G9: County | K9: Not Required
F10: Instrument | G10: Fayette County, IA Corn Basis | K10: Required
F11: Front-Month Symbol | G11: =+INDEX(instruments!$A:$A,MATCH(home!G$10,instruments!$N:$N,0),1) -> ZCBAIAFA.CM
F13: =+G10&" (Forward Curve)" -> Fayette County, IA Corn Basis (Forward Curve) | L13: Basis Is: | O13: =+index!P5&" "&IF(MEDIAN($O$44:$O$55)<0,"Rich","Cheap") -> Very Cheap | Q13: =+LEFT(F13,FIND(" Basis",F13,1))&"Implied Cash (Forward Curve)" -> Fayette County, IA Corn Implied Cash (Forward Curve)
B42: Basis | I42: Basis Symbols | K42: Basis Prices | Q42: Futures | S42: Implied Cash Prices | W42: Historical Seasonality
A43: Current Basis | B43: Current to Forecast Spread | F43: Area | G43: Month | H43: Delivery | I43: Current | J43: Forecast | K43: Current | L43: Forecast | M43: Historical | O43: Spread | Q43: Month | R43: Future | S43: Current | T43: Forecast | U43: Historical | W43: Month | X43: 2016 | Y43: =+X43+1 -> 2017 | Z43: =+Y43+1 -> 2018 | AA43: 2019 | AB43: 2020 | AC43: Average
A44: =+MIN(K44,L44) ->  | B44: =+IF(K44<L44,L44-K44,K44-L44) ->  | C44: =+MIN(S44:T44) ->  | F44: =+$G$10 -> Fayette County, IA Corn Basis | G44: =+IF(LEN($S44)>0,VALUE(index!G28),"") -> 1 | H44: =+IF(LEN($S44)>0,VALUE(index!H28),"") -> 2020-09-01 | I44: =index!F28 -> ZCBAIAFA.CM | J44: =index!N28 -> - | K44: =+IF(LEN(I44)>0,_xll.cmdty.udfs.BCD(I44,"Last"),"") -> -0.3065 | L44: =+IF(J44="-",NA(),_xll.cmdty.udfs.BCD(J44,"Last")) ->  | M44: =+IFERROR(AVERAGEIF(historical!$C:$C,"="&MONTH(home!$H44),historical!$B:$B),"") -> -0.4173063291 | O44: =+IFERROR(L44-K44,"-") -> - | Q44: =+index!$M28 -> ZCZ20 | R44: =+IF(LEN(I44)>0,_xll.cmdty.udfs.BCD(Q44,"Last")/100,"") -> 3.6025 | S44: =+IFERROR($R44+K44,NA()) -> 3.296 | T44: =+IFERROR($R44+L44,NA()) ->  | U44: =+IFERROR($R44+M44,NA()) -> 3.185193671 | W44: =+H44 -> 2020-09-01 | X44: =+IF(LEN($W44)>0,IFERROR(AVERAGEIFS(historical!$B:$B,historical!$D:$D,home!X$43,historical!$C:$C,MONTH(home!$W44)),NA()),NA()) -> -0.4247076923 | Y44: =+IF(LEN($W44)>0,IFERROR(AVERAGEIFS(historical!$B:$B,historical!$D:$D,home!Y$43,historical!$C:$C,MONTH(home!$W44)),NA()),NA()) -> -0.54139 | Z44: =+IF(LEN($W44)>0,IFERROR(AVERAGEIFS(historical!$B:$B,historical!$D:$D,home!Z$43,historical!$C:$C,MONTH(home!$W44)),NA()),NA()) -> -0.5392368421 | AA44: =+IF(LEN($W44)>0,IFERROR(AVERAGEIFS(historical!$B:$B,historical!$D:$D,home!AA$43,historical!$C:$C,MONTH(home!$W44)),NA()),NA()) -> -0.2136952381 | AB44: =+IF(LEN($W44)>0,IFERROR(AVERAGEIFS(historical!$B:$B,historical!$D:$D,home!AB$43,historical!$C:$C,MONTH(home!$W44)),NA()),NA()) -> -0.3141833333 | AC44: =+M44 -> -0.4173063291
A45: =+MIN(K45,L45) ->  | F45: Fayette County, IA Corn Basis | G45: =+IF(LEN($S45)>0,VALUE(index!G29),"") -> 2 | H45: =+IF(LEN($S45)>0,VALUE(index!H29),"") -> 2020-10-01 | I45: =index!F29 -> ZCBBIAFA.CM | J45: =index!N29 -> - | K45: =+IF(LEN(I45)>0,_xll.cmdty.udfs.BCD(I45,"Last"),"") -> -0.3548 | L45: =+IF(J45="-",NA(),_xll.cmdty.udfs.BCD(J45,"Last")) ->  | M45: =+IFERROR(AVERAGEIF(historical!$C:$C,"="&MONTH(home!$H45),historical!$B:$B),"") -> -0.4213089888 | O45: =+IFERROR(L45-K45,"-") -> - | Q45: =+index!$M29 -> ZCZ20 | R45: =+IF(LEN(I45)>0,_xll.cmdty.udfs.BCD(Q45,"Last")/100,"") -> 3.6025 | S45: =+IFERROR($R45+K45,NA()) -> 3.2477 | U45: 3.181191011 | W45: 2020-10-01 | X45: =+IF(LEN($W45)>0,IFERROR(AVERAGEIFS(historical!$B:$B,historical!$D:$D,home!X$43,historical!$C:$C,MONTH(home!$W45)),NA()),NA()) -> -0.4384095238 | Y45: =+IF(LEN($W45)>0,IFERROR(AVERAGEIFS(historical!$B:$B,historical!$D:$D,home!Y$43,historical!$C:$C,MONTH(home!$W45)),NA()),NA()) -> -0.4834 | Z45: =+IF(LEN($W45)>0,IFERROR(AVERAGEIFS(historical!$B:$B,historical!$D:$D,home!Z$43,historical!$C:$C,MONTH(home!$W45)),NA()),NA()) -> -0.5141652174 | AA45: =+IF(LEN($W45)>0,IFERROR(AVERAGEIFS(historical!$B:$B,historical!$D:$D,home!AA$43,historical!$C:$C,MONTH(home!$W45)),NA()),NA()) -> -0.2534478261 | AB45: =+IF(LEN($W45)>0,IFERROR(AVERAGEIFS(historical!$B:$B,historical!$D:$D,home!AB$43,historical!$C:$C,MONTH(home!$W45)),NA()),NA()) ->  | AC45: -0.4213089888
F46: Fayette County, IA Corn Basis | G46: =+IF(LEN($S46)>0,VALUE(index!G30),"") -> 3 | H46: =+IF(LEN($S46)>0,VALUE(index!H30),"") -> 2020-11-01 | I46: =index!F30 -> ZCBCIAFA.CM | J46: =index!N30 -> - | K46: =+IF(LEN(I46)>0,_xll.cmdty.udfs.BCD(I46,"Last"),"") -> -0.3557 | L46: =+IF(J46="-",NA(),_xll.cmdty.udfs.BCD(J46,"Last")) ->  | M46: =+IFERROR(AVERAGEIF(historical!$C:$C,"="&MONTH(home!$H46),historical!$B:$B),"") -> -0.3719583333 | O46: - | Q46: =+index!$M30 -> ZCZ20 | R46: =+IF(LEN(I46)>0,_xll.cmdty.udfs.BCD(Q46,"Last")/100,"") -> 3.6025 | S46: 3.2468 | U46: 3.230541667 | W46: 2020-11-01 | X46: =+IF(LEN($W46)>0,IFERROR(AVERAGEIFS(historical!$B:$B,historical!$D:$D,home!X$43,historical!$C:$C,MONTH(home!$W46)),NA()),NA()) -> -0.4122666667 | Y46: =+IF(LEN($W46)>0,IFERROR(AVERAGEIFS(historical!$B:$B,historical!$D:$D,home!Y$43,historical!$C:$C,MONTH(home!$W46)),NA()),NA()) -> -0.42952 | Z46: =+IF(LEN($W46)>0,IFERROR(AVERAGEIFS(historical!$B:$B,historical!$D:$D,home!Z$43,historical!$C:$C,MONTH(home!$W46)),NA()),NA()) -> -0.3990227273 | AA46: =+IF(LEN($W46)>0,IFERROR(AVERAGEIFS(historical!$B:$B,historical!$D:$D,home!AA$43,historical!$C:$C,MONTH(home!$W46)),NA()),NA()) -> -0.2484761905 | AB46: =+IF(LEN($W46)>0,IFERROR(AVERAGEIFS(historical!$B:$B,historical!$D:$D,home!AB$43,historical!$C:$C,MONTH(home!$W46)),NA()),NA()) ->  | AC46: -0.3719583333
A47: -0.3444 | B47: =+IF(K47<L47,L47-K47,K47-L47) -> 0.1508 | C47: =+MIN(S47:T47) -> 3.2581 | F47: Fayette County, IA Corn Basis | G47: =+IF(LEN($S47)>0,VALUE(index!G31),"") -> 4 | H47: =+IF(LEN($S47)>0,VALUE(index!H31),"") -> 2020-12-01 | I47: =index!F31 -> ZCBDIAFA.CM | J47: =index!N31 -> ZCBA04IAFA.CM | K47: =+IF(LEN(I47)>0,_xll.cmdty.udfs.BCD(I47,"Last"),"") -> -0.3444 | L47: =+IF(J47="-",NA(),_xll.cmdty.udfs.BCD(J47,"Last")) -> -0.1936 | M47: =+IFERROR(AVERAGEIF(historical!$C:$C,"="&MONTH(home!$H47),historical!$B:$B),"") -> -0.3793595238 | O47: 0.1508 | Q47: =+index!$M31 -> ZCZ20 | R47: =+IF(LEN(I47)>0,_xll.cmdty.udfs.BCD(Q47,"Last")/100,"") -> 3.6025 | S47: 3.2581 | T47: 3.4089 | U47: 3.223140476 | W47: 2020-12-01 | X47: =+IF(LEN($W47)>0,IFERROR(AVERAGEIFS(historical!$B:$B,historical!$D:$D,home!X$43,historical!$C:$C,MONTH(home!$W47)),NA()),NA()) -> -0.3452 | Y47: =+IF(LEN($W47)>0,IFERROR(AVERAGEIFS(historical!$B:$B,historical!$D:$D,home!Y$43,historical!$C:$C,MONTH(home!$W47)),NA()),NA()) -> -0.411135 | Z47: =+IF(LEN($W47)>0,IFERROR(AVERAGEIFS(historical!$B:$B,historical!$D:$D,home!Z$43,historical!$C:$C,MONTH(home!$W47)),NA()),NA()) -> -0.4410761905 | AA47: =+IF(LEN($W47)>0,IFERROR(AVERAGEIFS(historical!$B:$B,historical!$D:$D,home!AA$43,historical!$C:$C,MONTH(home!$W47)),NA()),NA()) -> -0.3241681818 | AB47: =+IF(LEN($W47)>0,IFERROR(AVERAGEIFS(historical!$B:$B,historical!$D:$D,home!AB$43,historical!$C:$C,MONTH(home!$W47)),NA()),NA()) ->  | AC47: -0.3793595238
A48: -0.3822 | B48: =+IF(K48<L48,L48-K48,K48-L48) -> 0.1928 | C48: =+MIN(S48:T48) -> 3.3228 | F48: Fayette County, IA Corn Basis | G48: =+IF(LEN($S48)>0,VALUE(index!G32),"") -> 5 | H48: =+IF(LEN($S48)>0,VALUE(index!H32),"") -> 2021-01-01 | I48: =index!F32 -> ZCBEIAFA.CM | J48: =index!N32 -> ZCBA05IAFA.CM | K48: =+IF(LEN(I48)>0,_xll.cmdty.udfs.BCD(I48,"Last"),"") -> -0.3822 | L48: =+IF(J48="-",NA(),_xll.cmdty.udfs.BCD(J48,"Last")) -> -0.1894 | M48: =+IFERROR(AVERAGEIF(historical!$C:$C,"="&MONTH(home!$H48),historical!$B:$B),"") -> -0.3176682353 | O48: 0.1928 | Q48: =+index!$M32 -> ZCH21 | R48: =+IF(LEN(I48)>0,_xll.cmdty.udfs.BCD(Q48,"Last")/100,"") -> 3.705 | S48: 3.3228 | T48: 3.5156 | U48: 3.387331765 | W48: 2021-01-01 | X48: =+IF(LEN($W48)>0,IFERROR(AVERAGEIFS(historical!$B:$B,historical!$D:$D,home!X$43,historical!$C:$C,MONTH(home!$W48)),NA()),NA()) ->  | Y48: =+IF(LEN($W48)>0,IFERROR(AVERAGEIFS(historical!$B:$B,historical!$D:$D,home!Y$43,historical!$C:$C,MONTH(home!$W48)),NA()),NA()) -> -0.317395 | Z48: =+IF(LEN($W48)>0,IFERROR(AVERAGEIFS(historical!$B:$B,historical!$D:$D,home!Z$43,historical!$C:$C,MONTH(home!$W48)),NA()),NA()) -> -0.3517952381 | AA48: =+IF(LEN($W48)>0,IFERROR(AVERAGEIFS(historical!$B:$B,historical!$D:$D,home!AA$43,historical!$C:$C,MONTH(home!$W48)),NA()),NA()) -> -0.3701545455 | AB48: =+IF(LEN($W48)>0,IFERROR(AVERAGEIFS(historical!$B:$B,historical!$D:$D,home!AB$43,historical!$C:$C,MONTH(home!$W48)),NA()),NA()) -> -0.2328545455 | AC48: -0.3176682353
A49: -0.4195 | B49: 0.2059 | C49: 3.2855 | F49: Fayette County, IA Corn Basis | G49: =+IF(LEN($S49)>0,VALUE(index!G33),"") -> 6 | H49: =+IF(LEN($S49)>0,VALUE(index!H33),"") -> 2021-02-01 | I49: =index!F33 -> ZCBFIAFA.CM | J49: =index!N33 -> ZCBA06IAFA.CM | K49: =+IF(LEN(I49)>0,_xll.cmdty.udfs.BCD(I49,"Last"),"") -> -0.4195 | L49: =+IF(J49="-",NA(),_xll.cmdty.udfs.BCD(J49,"Last")) -> -0.2136 | M49: =+IFERROR(AVERAGEIF(historical!$C:$C,"="&MONTH(home!$H49),historical!$B:$B),"") -> -0.3048423077 | O49: 0.2059 | Q49: =+index!$M33 -> ZCH21 | R49: =+IF(LEN(I49)>0,_xll.cmdty.udfs.BCD(Q49,"Last")/100,"") -> 3.705 | S49: 3.2855 | T49: 3.4914 | U49: 3.400157692 | W49: 2021-02-01 | X49: =+IF(LEN($W49)>0,IFERROR(AVERAGEIFS(historical!$B:$B,historical!$D:$D,home!X$43,historical!$C:$C,MONTH(home!$W49)),NA()),NA()) ->  | Y49: =+IF(LEN($W49)>0,IFERROR(AVERAGEIFS(historical!$B:$B,historical!$D:$D,home!Y$43,historical!$C:$C,MONTH(home!$W49)),NA()),NA()) -> -0.3709105263 | Z49: =+IF(LEN($W49)>0,IFERROR(AVERAGEIFS(historical!$B:$B,historical!$D:$D,home!Z$43,historical!$C:$C,MONTH(home!$W49)),NA()),NA()) -> -0.3315315789 | AA49: =+IF(LEN($W49)>0,IFERROR(AVERAGEIFS(historical!$B:$B,historical!$D:$D,home!AA$43,historical!$C:$C,MONTH(home!$W49)),NA()),NA()) -> -0.32734 | AB49: =+IF(LEN($W49)>0,IFERROR(AVERAGEIFS(historical!$B:$B,historical!$D:$D,home!AB$43,historical!$C:$C,MONTH(home!$W49)),NA()),NA()) -> -0.194225 | AC49: -0.3048423077
A50: -0.3881 | B50: 0.1665 | C50: 3.3169 | F50: Fayette County, IA Corn Basis | G50: =+IF(LEN($S50)>0,VALUE(index!G34),"") -> 7 | H50: =+IF(LEN($S50)>0,VALUE(index!H34),"") -> 2021-03-01 | I50: =index!F34 -> ZCBGIAFA.CM | J50: =index!N34 -> ZCBA07IAFA.CM | K50: =+IF(LEN(I50)>0,_xll.cmdty.udfs.BCD(I50,"Last"),"") -> -0.3881 | L50: =+IF(J50="-",NA(),_xll.cmdty.udfs.BCD(J50,"Last")) -> -0.2216 | M50: =+IFERROR(AVERAGEIF(historical!$C:$C,"="&MONTH(home!$H50),historical!$B:$B),"") -> -0.3656471264 | O50: 0.1665 | Q50: =+index!$M34 -> ZCH21 | R50: =+IF(LEN(I50)>0,_xll.cmdty.udfs.BCD(Q50,"Last")/100,"") -> 3.705 | S50: 3.3169 | T50: 3.4834 | U50: 3.339352874 | W50: 2021-03-01 | X50: =+IF(LEN($W50)>0,IFERROR(AVERAGEIFS(historical!$B:$B,historical!$D:$D,home!X$43,historical!$C:$C,MONTH(home!$W50)),NA()),NA()) ->  | Y50: =+IF(LEN($W50)>0,IFERROR(AVERAGEIFS(historical!$B:$B,historical!$D:$D,home!Y$43,historical!$C:$C,MONTH(home!$W50)),NA()),NA()) -> -0.3978173913 | Z50: =+IF(LEN($W50)>0,IFERROR(AVERAGEIFS(historical!$B:$B,historical!$D:$D,home!Z$43,historical!$C:$C,MONTH(home!$W50)),NA()),NA()) -> -0.4456238095 | AA50: =+IF(LEN($W50)>0,IFERROR(AVERAGEIFS(historical!$B:$B,historical!$D:$D,home!AA$43,historical!$C:$C,MONTH(home!$W50)),NA()),NA()) -> -0.3270333333 | AB50: =+IF(LEN($W50)>0,IFERROR(AVERAGEIFS(historical!$B:$B,historical!$D:$D,home!AB$43,historical!$C:$C,MONTH(home!$W50)),NA()),NA()) -> -0.2925318182 | AC50: -0.3656471264
A51: -0.3766 | B51: 0.1218 | C51: 3.3934 | F51: Fayette County, IA Corn Basis | G51: =+IF(LEN($S51)>0,VALUE(index!G35),"") -> 8 | H51: =+IF(LEN($S51)>0,VALUE(index!H35),"") -> 2021-04-01 | I51: =index!F35 -> ZCBHIAFA.CM | J51: =index!N35 -> ZCBA08IAFA.CM | K51: =+IF(LEN(I51)>0,_xll.cmdty.udfs.BCD(I51,"Last"),"") -> -0.3766 | L51: =+IF(J51="-",NA(),_xll.cmdty.udfs.BCD(J51,"Last")) -> -0.2548 | M51: =+IFERROR(AVERAGEIF(historical!$C:$C,"="&MONTH(home!$H51),historical!$B:$B),"") -> -0.350625 | O51: 0.1218 | Q51: =+index!$M35 -> ZCK21 | R51: =+IF(LEN(I51)>0,_xll.cmdty.udfs.BCD(Q51,"Last")/100,"") -> 3.77 | S51: 3.3934 | T51: 3.5152 | U51: 3.419375 | W51: 2021-04-01 | X51: =+IF(LEN($W51)>0,IFERROR(AVERAGEIFS(historical!$B:$B,historical!$D:$D,home!X$43,historical!$C:$C,MONTH(home!$W51)),NA()),NA()) ->  | Y51: =+IF(LEN($W51)>0,IFERROR(AVERAGEIFS(historical!$B:$B,historical!$D:$D,home!Y$43,historical!$C:$C,MONTH(home!$W51)),NA()),NA()) -> -0.3658 | Z51: =+IF(LEN($W51)>0,IFERROR(AVERAGEIFS(historical!$B:$B,historical!$D:$D,home!Z$43,historical!$C:$C,MONTH(home!$W51)),NA()),NA()) -> -0.4161571429 | AA51: =+IF(LEN($W51)>0,IFERROR(AVERAGEIFS(historical!$B:$B,historical!$D:$D,home!AA$43,historical!$C:$C,MONTH(home!$W51)),NA()),NA()) -> -0.2611409091 | AB51: =+IF(LEN($W51)>0,IFERROR(AVERAGEIFS(historical!$B:$B,historical!$D:$D,home!AB$43,historical!$C:$C,MONTH(home!$W51)),NA()),NA()) -> -0.36445 | AC51: -0.350625
A52: -0.377 | B52: 0.1157 | C52: 3.393 | F52: Fayette County, IA Corn Basis | G52: =+IF(LEN($S52)>0,VALUE(index!G36),"") -> 9 | H52: =+IF(LEN($S52)>0,VALUE(index!H36),"") -> 2021-05-01 | I52: =index!F36 -> ZCBIIAFA.CM | J52: =index!N36 -> ZCBA09IAFA.CM | K52: =+IF(LEN(I52)>0,_xll.cmdty.udfs.BCD(I52,"Last"),"") -> -0.377 | L52: =+IF(J52="-",NA(),_xll.cmdty.udfs.BCD(J52,"Last")) -> -0.2613 | M52: =+IFERROR(AVERAGEIF(historical!$C:$C,"="&MONTH(home!$H52),historical!$B:$B),"") -> -0.3835727273 | O52: 0.1157 | Q52: =+index!$M36 -> ZCK21 | R52: =+IF(LEN(I52)>0,_xll.cmdty.udfs.BCD(Q52,"Last")/100,"") -> 3.77 | S52: 3.393 | T52: 3.5087 | U52: 3.386427273 | W52: 2021-05-01 | X52: =+IF(LEN($W52)>0,IFERROR(AVERAGEIFS(historical!$B:$B,historical!$D:$D,home!X$43,historical!$C:$C,MONTH(home!$W52)),NA()),NA()) ->  | Y52: =+IF(LEN($W52)>0,IFERROR(AVERAGEIFS(historical!$B:$B,historical!$D:$D,home!Y$43,historical!$C:$C,MONTH(home!$W52)),NA()),NA()) -> -0.4126727273 | Z52: =+IF(LEN($W52)>0,IFERROR(AVERAGEIFS(historical!$B:$B,historical!$D:$D,home!Z$43,historical!$C:$C,MONTH(home!$W52)),NA()),NA()) -> -0.4720636364 | AA52: =+IF(LEN($W52)>0,IFERROR(AVERAGEIFS(historical!$B:$B,historical!$D:$D,home!AA$43,historical!$C:$C,MONTH(home!$W52)),NA()),NA()) -> -0.3381869565 | AB52: =+IF(LEN($W52)>0,IFERROR(AVERAGEIFS(historical!$B:$B,historical!$D:$D,home!AB$43,historical!$C:$C,MONTH(home!$W52)),NA()),NA()) -> -0.3100904762 | AC52: -0.3835727273
A53: -0.4215 | B53: 0.1701 | C53: 3.3935 | F53: Fayette County, IA Corn Basis | G53: =+IF(LEN($S53)>0,VALUE(index!G37),"") -> 10 | H53: =+IF(LEN($S53)>0,VALUE(index!H37),"") -> 2021-06-01 | I53: =index!F37 -> ZCBJIAFA.CM | J53: =index!N37 -> ZCBA10IAFA.CM | K53: =+IF(LEN(I53)>0,_xll.cmdty.udfs.BCD(I53,"Last"),"") -> -0.4215 | L53: =+IF(J53="-",NA(),_xll.cmdty.udfs.BCD(J53,"Last")) -> -0.2514 | M53: =+IFERROR(AVERAGEIF(historical!$C:$C,"="&MONTH(home!$H53),historical!$B:$B),"") -> -0.3609635294 | O53: 0.1701 | Q53: =+index!$M37 -> ZCN21 | R53: =+IF(LEN(I53)>0,_xll.cmdty.udfs.BCD(Q53,"Last")/100,"") -> 3.815 | S53: 3.3935 | T53: 3.5636 | U53: 3.454036471 | W53: 2021-06-01 | X53: =+IF(LEN($W53)>0,IFERROR(AVERAGEIFS(historical!$B:$B,historical!$D:$D,home!X$43,historical!$C:$C,MONTH(home!$W53)),NA()),NA()) ->  | Y53: =+IF(LEN($W53)>0,IFERROR(AVERAGEIFS(historical!$B:$B,historical!$D:$D,home!Y$43,historical!$C:$C,MONTH(home!$W53)),NA()),NA()) -> -0.4241590909 | Z53: =+IF(LEN($W53)>0,IFERROR(AVERAGEIFS(historical!$B:$B,historical!$D:$D,home!Z$43,historical!$C:$C,MONTH(home!$W53)),NA()),NA()) -> -0.4424285714 | AA53: =+IF(LEN($W53)>0,IFERROR(AVERAGEIFS(historical!$B:$B,historical!$D:$D,home!AA$43,historical!$C:$C,MONTH(home!$W53)),NA()),NA()) -> -0.32945 | AB53: =+IF(LEN($W53)>0,IFERROR(AVERAGEIFS(historical!$B:$B,historical!$D:$D,home!AB$43,historical!$C:$C,MONTH(home!$W53)),NA()),NA()) -> -0.2486545455 | AC53: -0.3609635294
A54: -0.39 | B54: 0.135 | C54: 3.425 | F54: Fayette County, IA Corn Basis | G54: =+IF(LEN($S54)>0,VALUE(index!G38),"") -> 11 | H54: =+IF(LEN($S54)>0,VALUE(index!H38),"") -> 2021-07-01 | I54: =index!F38 -> ZCBKIAFA.CM | J54: =index!N38 -> ZCBA11IAFA.CM | K54: =+IF(LEN(I54)>0,_xll.cmdty.udfs.BCD(I54,"Last"),"") -> -0.39 | L54: =+IF(J54="-",NA(),_xll.cmdty.udfs.BCD(J54,"Last")) -> -0.255 | M54: =+IFERROR(AVERAGEIF(historical!$C:$C,"="&MONTH(home!$H54),historical!$B:$B),"") -> -0.357883908 | O54: 0.135 | Q54: =+index!$M38 -> ZCN21 | R54: =+IF(LEN(I54)>0,_xll.cmdty.udfs.BCD(Q54,"Last")/100,"") -> 3.815 | S54: 3.425 | T54: 3.56 | U54: 3.457116092 | W54: 2021-07-01 | X54: =+IF(LEN($W54)>0,IFERROR(AVERAGEIFS(historical!$B:$B,historical!$D:$D,home!X$43,historical!$C:$C,MONTH(home!$W54)),NA()),NA()) ->  | Y54: =+IF(LEN($W54)>0,IFERROR(AVERAGEIFS(historical!$B:$B,historical!$D:$D,home!Y$43,historical!$C:$C,MONTH(home!$W54)),NA()),NA()) -> -0.53754 | Z54: =+IF(LEN($W54)>0,IFERROR(AVERAGEIFS(historical!$B:$B,historical!$D:$D,home!Z$43,historical!$C:$C,MONTH(home!$W54)),NA()),NA()) -> -0.4505714286 | AA54: =+IF(LEN($W54)>0,IFERROR(AVERAGEIFS(historical!$B:$B,historical!$D:$D,home!AA$43,historical!$C:$C,MONTH(home!$W54)),NA()),NA()) -> -0.1847695652 | AB54: =+IF(LEN($W54)>0,IFERROR(AVERAGEIFS(historical!$B:$B,historical!$D:$D,home!AB$43,historical!$C:$C,MONTH(home!$W54)),NA()),NA()) -> -0.2901478261 | AC54: -0.357883908
A55: -0.3526 | B55: 0.0878 | C55: 3.4349 | F55: Fayette County, IA Corn Basis | G55: =+IF(LEN($S55)>0,VALUE(index!G39),"") -> 12 | H55: =+IF(LEN($S55)>0,VALUE(index!H39),"") -> 2021-08-01 | I55: =index!F39 -> ZCBLIAFA.CM | J55: =index!N39 -> ZCBA12IAFA.CM | K55: =+IF(LEN(I55)>0,_xll.cmdty.udfs.BCD(I55,"Last"),"") -> -0.3526 | L55: =+IF(J55="-",NA(),_xll.cmdty.udfs.BCD(J55,"Last")) -> -0.2648 | M55: =+IFERROR(AVERAGEIF(historical!$C:$C,"="&MONTH(home!$H55),historical!$B:$B),"") -> -0.3413921348 | O55: 0.0878 | Q55: =+index!$M39 -> ZCU21 | R55: =+IF(LEN(I55)>0,_xll.cmdty.udfs.BCD(Q55,"Last")/100,"") -> 3.7875 | S55: 3.4349 | T55: 3.5227 | U55: 3.446107865 | W55: 2021-08-01 | X55: =+IF(LEN($W55)>0,IFERROR(AVERAGEIFS(historical!$B:$B,historical!$D:$D,home!X$43,historical!$C:$C,MONTH(home!$W55)),NA()),NA()) ->  | Y55: =+IF(LEN($W55)>0,IFERROR(AVERAGEIFS(historical!$B:$B,historical!$D:$D,home!Y$43,historical!$C:$C,MONTH(home!$W55)),NA()),NA()) -> -0.463673913 | Z55: =+IF(LEN($W55)>0,IFERROR(AVERAGEIFS(historical!$B:$B,historical!$D:$D,home!Z$43,historical!$C:$C,MONTH(home!$W55)),NA()),NA()) -> -0.4449608696 | AA55: =+IF(LEN($W55)>0,IFERROR(AVERAGEIFS(historical!$B:$B,historical!$D:$D,home!AA$43,historical!$C:$C,MONTH(home!$W55)),NA()),NA()) -> -0.1731363636 | AB55: =+IF(LEN($W55)>0,IFERROR(AVERAGEIFS(historical!$B:$B,historical!$D:$D,home!AB$43,historical!$C:$C,MONTH(home!$W55)),NA()),NA()) -> -0.2703 | AC55: -0.3413921348
A58: Cash Name | B58: =+F44&" Forward Curve" -> Fayette County, IA Corn Basis Forward Curve
A59: Basis Name | B59: =+_xll.cmdty.udfs.BCD($I44,F$43)&" Forward Curve" -> Unknown field. Forward Curve
A60: Future Name | B60: =+INDEX(index!$E$6:$E$10,MATCH(LEFT($I44,2),index!$F$6:$F$10,0),1)&" Futures Forward Curve" -> Corn Futures Forward Curve
A61: Historical Curve | B61: =+LEFT(B59,FIND("Basis",B59,1)-2)&" Implied Forward Curve (Historical Basis Avg)" -> 
A62: Chart 1 Name | B62: =+LEFT($G$10,FIND("Basis",$G$10,1)-2)&" (Forward Curve)" -> Fayette County, IA Corn (Forward Curve)
A63: Chart 2 Name | B63: =+"Seasonality in "&MID($G$10,7,FIND("Basis",$G$10,1)-8)&" (Basis)" -> Seasonality in e County, IA Corn (Basis)

Sheet index
B3: Variables
B5: Area | C5: Type | D5: State | E5: Crop | F5: Root | G5: Months | H5: Future Month | I5: String | J5: Value | L5: Measures | O5: =+ABS(MEDIAN(home!$O$44:$O$55)/MEDIAN(home!$M$44:$M$55)) -> 0.4150778654 | P5: =+INDEX($L$6:$L$9,MATCH(TRUE,$O$6:$O$9,0),1) -> Very
B6: County | C6: Basis | D6: Illinois | E6: Corn | F6: ZC | G6: A | H6: 0 | I6: M1 | J6: 1 | L6: Slightly | M6: 0 | N6: 0.1 | O6: =+AND(M6<$O$5,N6>=$O$5) -> FALSE
B7: District | C7: Cash | D7: Indiana | E7: Soybean | F7: ZS | G7: B | H7: =+H6+1 -> 1 | I7: M2 | J7: =+J6+1 -> 2 | L7: Moderately | M7: =+N6 -> 0.1 | N7: 0.25 | O7: =+AND(M7<$O$5,N7>=$O$5) -> FALSE
B8: State | D8: Iowa | G8: C | H8: 2 | I8: M3 | J8: =+J7+1 -> 3 | L8: Very | M8: =+N7 -> 0.25 | N8: 0.5 | O8: TRUE
D9: Kansas | G9: D | H9: 3 | I9: M4 | J9: 4 | L9: Extremely | M9: =+N8 -> 0.5 | N9: 1 | O9: FALSE
D10: Minnesota | G10: E | H10: 4 | I10: M5 | J10: 5
D11: Missouri | G11: F | H11: 5 | I11: M6 | J11: 6
D12: Nebraska | G12: G | H12: 6 | I12: M7 | J12: 7
D13: North Dakota | G13: H | H13: 7 | I13: M8 | J13: 8
D14: Ohio | G14: I | H14: 8 | I14: M9 | J14: 9
D15: South Dakota | G15: J | H15: 9 | I15: M10 | J15: 10
G16: K | H16: 10 | I16: M11 | J16: 11
G17: L | H17: 11 | I17: M12 | J17: 12
B25: Instrument Check
B27: All Instruments | C27: Last | F27: Valid Instruments | G27: Month | H27: Delivery | I27: Month Code | J27: Futures Month | K27: Futures Delivery | L27: Futures Year | N27: Forecast Instrument
A28: 1 | B28: =+LEFT(home!$G$11,3)&G6&RIGHT(home!$G$11,LEN(home!$G$11)-4) -> ZCBAIAFA.CM | C28: =+_xll.cmdty.udfs.BCD(B28,C$27)+1 -> 0.6935 | D28: =+IF(ISNUMBER(C28),A28,"") -> 1 | E28: =+IFERROR(_xlfn.RANK.EQ(D28,$D$28:$D$39,1),"") -> 1 | F28: =+IFERROR(INDEX($B$28:$B$39,MATCH($A28,$E$28:$E$39,0),1),"") -> ZCBAIAFA.CM | G28: =+IFERROR(INDEX($J$6:$J$17,MATCH(MID(F28,4,1),$G$6:$G$17,0),1),"") -> 1 | H28: =+VALUE(MONTH(TODAY())&"/1/"&YEAR(TODAY())) -> 2020-09-01 | I28: =+MID(F28,4,1) -> A | J28: =IF(I28="A",EOMONTH(EDATE(TODAY(),1),-1)+1,EOMONTH(EDATE(TODAY(),VLOOKUP(I28,$G$6:$H$17,2,0)),-1)+1) -> 2020-10-01 | K28: =+INDEX(futures!$B$2:$F$13,MATCH(MONTH(index!J28),futures!$A$2:$A$13,0),MATCH(home!$G$7,futures!$B$1:$F$1,0)) -> Z | L28: =IF(LEFT(B28,2)="ZS",IF(MONTH(J28)=12,MOD(YEAR(J28),100)+1,MOD(YEAR(J28),100)),MOD(YEAR(J28),100)) -> 20 | M28: =+LEFT($B28,2)&K28&L28 -> ZCZ20 | N28: =+IF(G28<4,"-",LEFT(F28,3)&"A"&TEXT(G28,"00")&RIGHT(F28,LEN(F28)-4)) -> -
A29: =+A28+1 -> 2 | B29: =+LEFT(home!$G$11,3)&G7&RIGHT(home!$G$11,LEN(home!$G$11)-4) -> ZCBBIAFA.CM | C29: =+_xll.cmdty.udfs.BCD(B29,C$27)+1 -> 0.6452 | D29: =+IF(ISNUMBER(C29),A29,"") -> 2 | E29: =+IFERROR(_xlfn.RANK.EQ(D29,$D$28:$D$39,1),"") -> 2 | F29: =+IFERROR(INDEX($B$28:$B$39,MATCH($A29,$E$28:$E$39,0),1),"") -> ZCBBIAFA.CM | G29: 2 | H29: =+MONTH((G29-G28)*31+H28)&"/1/"&YEAR(VALUE((G29-G28)*31+H28)) -> 10/1/2020 | I29: =+MID(F29,4,1) -> B | J29: 2020-10-01 | K29: =+INDEX(futures!$B$2:$F$13,MATCH(MONTH(index!J29),futures!$A$2:$A$13,0),MATCH(home!$G$7,futures!$B$1:$F$1,0)) -> Z | L29: 20 | M29: =+LEFT($B29,2)&K29&L29 -> ZCZ20 | N29: =+IF(G29<4,"-",LEFT(F29,3)&"A"&TEXT(G29,"00")&RIGHT(F29,LEN(F29)-4)) -> -
A30: =+A29+1 -> 3 | B30: =+LEFT(home!$G$11,3)&G8&RIGHT(home!$G$11,LEN(home!$G$11)-4) -> ZCBCIAFA.CM | C30: =+_xll.cmdty.udfs.BCD(B30,C$27)+1 -> 0.6443 | D30: 3 | E30: 3 | F30: ZCBCIAFA.CM | G30: 3 | H30: 11/1/2020 | I30: C | J30: 2020-11-01 | K30: =+INDEX(futures!$B$2:$F$13,MATCH(MONTH(index!J30),futures!$A$2:$A$13,0),MATCH(home!$G$7,futures!$B$1:$F$1,0)) -> Z | L30: 20 | M30: ZCZ20 | N30: -
A31: 4 | B31: =+LEFT(home!$G$11,3)&G9&RIGHT(home!$G$11,LEN(home!$G$11)-4) -> ZCBDIAFA.CM | C31: =+_xll.cmdty.udfs.BCD(B31,C$27)+1 -> 0.6556 | D31: 4 | E31: 4 | F31: ZCBDIAFA.CM | G31: 4 | H31: 12/1/2020 | I31: D | J31: 2020-12-01 | K31: =+INDEX(futures!$B$2:$F$13,MATCH(MONTH(index!J31),futures!$A$2:$A$13,0),MATCH(home!$G$7,futures!$B$1:$F$1,0)) -> Z | L31: 20 | M31: ZCZ20 | N31: ZCBA04IAFA.CM
A32: 5 | B32: =+LEFT(home!$G$11,3)&G10&RIGHT(home!$G$11,LEN(home!$G$11)-4) -> ZCBEIAFA.CM | C32: =+_xll.cmdty.udfs.BCD(B32,C$27)+1 -> 0.6178 | D32: 5 | E32: 5 | F32: ZCBEIAFA.CM | G32: 5 | H32: 1/1/2021 | I32: E | J32: 2021-01-01 | K32: =+INDEX(futures!$B$2:$F$13,MATCH(MONTH(index!J32),futures!$A$2:$A$13,0),MATCH(home!$G$7,futures!$B$1:$F$1,0)) -> H | L32: 21 | M32: ZCH21 | N32: ZCBA05IAFA.CM
A33: 6 | B33: =+LEFT(home!$G$11,3)&G11&RIGHT(home!$G$11,LEN(home!$G$11)-4) -> ZCBFIAFA.CM | C33: =+_xll.cmdty.udfs.BCD(B33,C$27)+1 -> 0.5805 | D33: 6 | E33: 6 | F33: ZCBFIAFA.CM | G33: 6 | H33: 2/1/2021 | I33: F | J33: 2021-02-01 | K33: =+INDEX(futures!$B$2:$F$13,MATCH(MONTH(index!J33),futures!$A$2:$A$13,0),MATCH(home!$G$7,futures!$B$1:$F$1,0)) -> H | L33: 21 | M33: ZCH21 | N33: ZCBA06IAFA.CM
A34: 7 | B34: =+LEFT(home!$G$11,3)&G12&RIGHT(home!$G$11,LEN(home!$G$11)-4) -> ZCBGIAFA.CM | C34: =+_xll.cmdty.udfs.BCD(B34,C$27)+1 -> 0.6119 | D34: 7 | E34: 7 | F34: ZCBGIAFA.CM | G34: 7 | H34: 3/1/2021 | I34: G | J34: 2021-03-01 | K34: =+INDEX(futures!$B$2:$F$13,MATCH(MONTH(index!J34),futures!$A$2:$A$13,0),MATCH(home!$G$7,futures!$B$1:$F$1,0)) -> H | L34: 21 | M34: ZCH21 | N34: ZCBA07IAFA.CM
A35: 8 | B35: =+LEFT(home!$G$11,3)&G13&RIGHT(home!$G$11,LEN(home!$G$11)-4) -> ZCBHIAFA.CM | C35: =+_xll.cmdty.udfs.BCD(B35,C$27)+1 -> 0.6234 | D35: 8 | E35: 8 | F35: ZCBHIAFA.CM | G35: 8 | H35: 4/1/2021 | I35: H | J35: 2021-04-01 | K35: =+INDEX(futures!$B$2:$F$13,MATCH(MONTH(index!J35),futures!$A$2:$A$13,0),MATCH(home!$G$7,futures!$B$1:$F$1,0)) -> K | L35: 21 | M35: ZCK21 | N35: ZCBA08IAFA.CM
A36: 9 | B36: =+LEFT(home!$G$11,3)&G14&RIGHT(home!$G$11,LEN(home!$G$11)-4) -> ZCBIIAFA.CM | C36: =+_xll.cmdty.udfs.BCD(B36,C$27)+1 -> 0.623 | D36: 9 | E36: 9 | F36: ZCBIIAFA.CM | G36: 9 | H36: 5/1/2021 | I36: I | J36: 2021-05-01 | K36: =+INDEX(futures!$B$2:$F$13,MATCH(MONTH(index!J36),futures!$A$2:$A$13,0),MATCH(home!$G$7,futures!$B$1:$F$1,0)) -> K | L36: 21 | M36: ZCK21 | N36: ZCBA09IAFA.CM
A37: 10 | B37: =+LEFT(home!$G$11,3)&G15&RIGHT(home!$G$11,LEN(home!$G$11)-4) -> ZCBJIAFA.CM | C37: =+_xll.cmdty.udfs.BCD(B37,C$27)+1 -> 0.5785 | D37: 10 | E37: 10 | F37: ZCBJIAFA.CM | G37: 10 | H37: 6/1/2021 | I37: J | J37: 2021-06-01 | K37: =+INDEX(futures!$B$2:$F$13,MATCH(MONTH(index!J37),futures!$A$2:$A$13,0),MATCH(home!$G$7,futures!$B$1:$F$1,0)) -> N | L37: 21 | M37: ZCN21 | N37: ZCBA10IAFA.CM
A38: 11 | B38: =+LEFT(home!$G$11,3)&G16&RIGHT(home!$G$11,LEN(home!$G$11)-4) -> ZCBKIAFA.CM | C38: =+_xll.cmdty.udfs.BCD(B38,C$27)+1 -> 0.61 | D38: 11 | E38: 11 | F38: ZCBKIAFA.CM | G38: 11 | H38: =+MONTH((G38-G37)*31+H37)&"/1/"&YEAR(VALUE((G38-G37)*31+H37)) -> 7/1/2021 | I38: K | J38: 2021-07-01 | K38: =+INDEX(futures!$B$2:$F$13,MATCH(MONTH(index!J38),futures!$A$2:$A$13,0),MATCH(home!$G$7,futures!$B$1:$F$1,0)) -> N | L38: 21 | M38: ZCN21 | N38: ZCBA11IAFA.CM
A39: 12 | B39: =+LEFT(home!$G$11,3)&G17&RIGHT(home!$G$11,LEN(home!$G$11)-4) -> ZCBLIAFA.CM | C39: =+_xll.cmdty.udfs.BCD(B39,C$27)+1 -> 0.6474 | D39: 12 | E39: 12 | F39: ZCBLIAFA.CM | G39: 12 | H39: 8/1/2021 | I39: L | J39: 2021-08-01 | K39: =+INDEX(futures!$B$2:$F$13,MATCH(MONTH(index!J39),futures!$A$2:$A$13,0),MATCH(home!$G$7,futures!$B$1:$F$1,0)) -> U | L39: 21 | M39: ZCU21 | N39: ZCBA12IAFA.CM
B42: Available Areas
B44: Area
A45: 1 | B45: =+IFERROR(INDEX(instruments!$N$2:$N$5037,MATCH(index!$A45,instruments!$M$2:$M$5037,0),1),"") -> Adair County, IA Corn Basis
A46: =+A45+1 -> 2 | B46: =+IFERROR(INDEX(instruments!$N$2:$N$5037,MATCH(index!$A46,instruments!$M$2:$M$5037,0),1),"") -> Adams County, IA Corn Basis
A47: =+A46+1 -> 3 | B47: =+IFERROR(INDEX(instruments!$N$2:$N$5037,MATCH(index!$A47,instruments!$M$2:$M$5037,0),1),"") -> Allamakee County, IA Corn Basis
A48: 4 | B48: =+IFERROR(INDEX(instruments!$N$2:$N$5037,MATCH(index!$A48,instruments!$M$2:$M$5037,0),1),"") -> Audubon County, IA Corn Basis
A49: 5 | B49: =+IFERROR(INDEX(instruments!$N$2:$N$5037,MATCH(index!$A49,instruments!$M$2:$M$5037,0),1),"") -> Benton County, IA Corn Basis
A50: 6 | B50: =+IFERROR(INDEX(instruments!$N$2:$N$5037,MATCH(index!$A50,instruments!$M$2:$M$5037,0),1),"") -> Black Hawk County, IA Corn Basis
A51: 7 | B51: =+IFERROR(INDEX(instruments!$N$2:$N$5037,MATCH(index!$A51,instruments!$M$2:$M$5037,0),1),"") -> Boone County, IA Corn Basis
A52: 8 | B52: =+IFERROR(INDEX(instruments!$N$2:$N$5037,MATCH(index!$A52,instruments!$M$2:$M$5037,0),1),"") -> Bremer County, IA Corn Basis
A53: 9 | B53: =+IFERROR(INDEX(instruments!$N$2:$N$5037,MATCH(index!$A53,instruments!$M$2:$M$5037,0),1),"") -> Buchanan County, IA Corn Basis
A54: 10 | B54: =+IFERROR(INDEX(instruments!$N$2:$N$5037,MATCH(index!$A54,instruments!$M$2:$M$5037,0),1),"") -> Buena Vista County, IA Corn Basis
A55: 11 | B55: =+IFERROR(INDEX(instruments!$N$2:$N$5037,MATCH(index!$A55,instruments!$M$2:$M$5037,0),1),"") -> Butler County, IA Corn Basis
A56: 12 | B56: =+IFERROR(INDEX(instruments!$N$2:$N$5037,MATCH(index!$A56,instruments!$M$2:$M$5037,0),1),"") -> Calhoun County, IA Corn Basis
A57: 13 | B57: =+IFERROR(INDEX(instruments!$N$2:$N$5037,MATCH(index!$A57,instruments!$M$2:$M$5037,0),1),"") -> Carroll County, IA Corn Basis
A58: 14 | B58: =+IFERROR(INDEX(instruments!$N$2:$N$5037,MATCH(index!$A58,instruments!$M$2:$M$5037,0),1),"") -> Cass County, IA Corn Basis
A59: 15 | B59: =+IFERROR(INDEX(instruments!$N$2:$N$5037,MATCH(index!$A59,instruments!$M$2:$M$5037,0),1),"") -> Cedar County, IA Corn Basis
A60: 16 | B60: =+IFERROR(INDEX(instruments!$N$2:$N$5037,MATCH(index!$A60,instruments!$M$2:$M$5037,0),1),"") -> Cerro Gordo County, IA Corn Basis
A61: 17 | B61: =+IFERROR(INDEX(instruments!$N$2:$N$5037,MATCH(index!$A61,instruments!$M$2:$M$5037,0),1),"") -> Cherokee County, IA Corn Basis
A62: 18 | B62: =+IFERROR(INDEX(instruments!$N$2:$N$5037,MATCH(index!$A62,instruments!$M$2:$M$5037,0),1),"") -> Chickasaw County, IA Corn Basis
A63: 19 | B63: =+IFERROR(INDEX(instruments!$N$2:$N$5037,MATCH(index!$A63,instruments!$M$2:$M$5037,0),1),"") -> Clarke County, IA Corn Basis
A64: 20 | B64: =+IFERROR(INDEX(instruments!$N$2:$N$5037,MATCH(index!$A64,instruments!$M$2:$M$5037,0),1),"") -> Clay County, IA Corn Basis
A65: 21 | B65: =+IFERROR(INDEX(instruments!$N$2:$N$5037,MATCH(index!$A65,instruments!$M$2:$M$5037,0),1),"") -> Clayton County, IA Corn Basis
A66: 22 | B66: =+IFERROR(INDEX(instruments!$N$2:$N$5037,MATCH(index!$A66,instruments!$M$2:$M$5037,0),1),"") -> Clinton County, IA Corn Basis
A67: 23 | B67: =+IFERROR(INDEX(instruments!$N$2:$N$5037,MATCH(index!$A67,instruments!$M$2:$M$5037,0),1),"") -> Crawford County, IA Corn Basis
A68: 24 | B68: =+IFERROR(INDEX(instruments!$N$2:$N$5037,MATCH(index!$A68,instruments!$M$2:$M$5037,0),1),"") -> Dallas County, IA Corn Basis
A69: 25 | B69: =+IFERROR(INDEX(instruments!$N$2:$N$5037,MATCH(index!$A69,instruments!$M$2:$M$5037,0),1),"") -> Decatur County, IA Corn Basis
A70: 26 | B70: =+IFERROR(INDEX(instruments!$N$2:$N$5037,MATCH(index!$A70,instruments!$M$2:$M$5037,0),1),"") -> Delaware County, IA Corn Basis
A71: 27 | B71: =+IFERROR(INDEX(instruments!$N$2:$N$5037,MATCH(index!$A71,instruments!$M$2:$M$5037,0),1),"") -> Des Moines County, IA Corn Basis
A72: 28 | B72: =+IFERROR(INDEX(instruments!$N$2:$N$5037,MATCH(index!$A72,instruments!$M$2:$M$5037,0),1),"") -> Dickinson County, IA Corn Basis
A73: 29 | B73: =+IFERROR(INDEX(instruments!$N$2:$N$5037,MATCH(index!$A73,instruments!$M$2:$M$5037,0),1),"") -> Dubuque County, IA Corn Basis
A74: 30 | B74: =+IFERROR(INDEX(instruments!$N$2:$N$5037,MATCH(index!$A74,instruments!$M$2:$M$5037,0),1),"") -> Emmet County, IA Corn Basis
A75: 31 | B75: =+IFERROR(INDEX(instruments!$N$2:$N$5037,MATCH(index!$A75,instruments!$M$2:$M$5037,0),1),"") -> Fayette County, IA Corn Basis
A76: 32 | B76: =+IFERROR(INDEX(instruments!$N$2:$N$5037,MATCH(index!$A76,instruments!$M$2:$M$5037,0),1),"") -> Floyd County, IA Corn Basis
A77: 33 | B77: =+IFERROR(INDEX(instruments!$N$2:$N$5037,MATCH(index!$A77,instruments!$M$2:$M$5037,0),1),"") -> Franklin County, IA Corn Basis
A78: 34 | B78: =+IFERROR(INDEX(instruments!$N$2:$N$5037,MATCH(index!$A78,instruments!$M$2:$M$5037,0),1),"") -> Fremont County, IA Corn Basis
A79: 35 | B79: =+IFERROR(INDEX(instruments!$N$2:$N$5037,MATCH(index!$A79,instruments!$M$2:$M$5037,0),1),"") -> Greene County, IA Corn Basis
A80: 36 | B80: =+IFERROR(INDEX(instruments!$N$2:$N$5037,MATCH(index!$A80,instruments!$M$2:$M$5037,0),1),"") -> Grundy County, IA Corn Basis
A81: 37 | B81: =+IFERROR(INDEX(instruments!$N$2:$N$5037,MATCH(index!$A81,instruments!$M$2:$M$5037,0),1),"") -> Guthrie County, IA Corn Basis
A82: 38 | B82: =+IFERROR(INDEX(instruments!$N$2:$N$5037,MATCH(index!$A82,instruments!$M$2:$M$5037,0),1),"") -> Hamilton County, IA Corn Basis
A83: 39 | B83: =+IFERROR(INDEX(instruments!$N$2:$N$5037,MATCH(index!$A83,instruments!$M$2:$M$5037,0),1),"") -> Hancock County, IA Corn Basis
A84: 40 | B84: =+IFERROR(INDEX(instruments!$N$2:$N$5037,MATCH(index!$A84,instruments!$M$2:$M$5037,0),1),"") -> Hardin County, IA Corn Basis
A85: 41 | B85: =+IFERROR(INDEX(instruments!$N$2:$N$5037,MATCH(index!$A85,instruments!$M$2:$M$5037,0),1),"") -> Harrison County, IA Corn Basis
A86: 42 | B86: =+IFERROR(INDEX(instruments!$N$2:$N$5037,MATCH(index!$A86,instruments!$M$2:$M$5037,0),1),"") -> Henry County, IA Corn Basis
A87: 43 | B87: =+IFERROR(INDEX(instruments!$N$2:$N$5037,MATCH(index!$A87,instruments!$M$2:$M$5037,0),1),"") -> Howard County, IA Corn Basis
A88: 44 | B88: =+IFERROR(INDEX(instruments!$N$2:$N$5037,MATCH(index!$A88,instruments!$M$2:$M$5037,0),1),"") -> Humboldt County, IA Corn Basis
A89: 45 | B89: =+IFERROR(INDEX(instruments!$N$2:$N$5037,MATCH(index!$A89,instruments!$M$2:$M$5037,0),1),"") -> Ida County, IA Corn Basis
A90: 46 | B90: =+IFERROR(INDEX(instruments!$N$2:$N$5037,MATCH(index!$A90,instruments!$M$2:$M$5037,0),1),"") -> Iowa County, IA Corn Basis
A91: 47 | B91: =+IFERROR(INDEX(instruments!$N$2:$N$5037,MATCH(index!$A91,instruments!$M$2:$M$5037,0),1),"") -> Jasper County, IA Corn Basis
A92: 48 | B92: =+IFERROR(INDEX(instruments!$N$2:$N$5037,MATCH(index!$A92,instruments!$M$2:$M$5037,0),1),"") -> Jefferson County, IA Corn Basis
A93: 49 | B93: =+IFERROR(INDEX(instruments!$N$2:$N$5037,MATCH(index!$A93,instruments!$M$2:$M$5037,0),1),"") -> Johnson County, IA Corn Basis
A94: 50 | B94: =+IFERROR(INDEX(instruments!$N$2:$N$5037,MATCH(index!$A94,instruments!$M$2:$M$5037,0),1),"") -> Jones County, IA Corn Basis
A95: 51 | B95: =+IFERROR(INDEX(instruments!$N$2:$N$5037,MATCH(index!$A95,instruments!$M$2:$M$5037,0),1),"") -> Keokuk County, IA Corn Basis
A96: 52 | B96: =+IFERROR(INDEX(instruments!$N$2:$N$5037,MATCH(index!$A96,instruments!$M$2:$M$5037,0),1),"") -> Kossuth County, IA Corn Basis
A97: 53 | B97: =+IFERROR(INDEX(instruments!$N$2:$N$5037,MATCH(index!$A97,instruments!$M$2:$M$5037,0),1),"") -> Lee County, IA Corn Basis
A98: 54 | B98: =+IFERROR(INDEX(instruments!$N$2:$N$5037,MATCH(index!$A98,instruments!$M$2:$M$5037,0),1),"") -> Linn County, IA Corn Basis
A99: 55 | B99: =+IFERROR(INDEX(instruments!$N$2:$N$5037,MATCH(index!$A99,instruments!$M$2:$M$5037,0),1),"") -> Louisa County, IA Corn Basis
A100: 56 | B100: =+IFERROR(INDEX(instruments!$N$2:$N$5037,MATCH(index!$A100,instruments!$M$2:$M$5037,0),1),"") -> Lucas County, IA Corn Basis
A101: 57 | B101: =+IFERROR(INDEX(instruments!$N$2:$N$5037,MATCH(index!$A101,instruments!$M$2:$M$5037,0),1),"") -> Lyon County, IA Corn Basis
A102: 58 | B102: =+IFERROR(INDEX(instruments!$N$2:$N$5037,MATCH(index!$A102,instruments!$M$2:$M$5037,0),1),"") -> Madison County, IA Corn Basis
A103: 59 | B103: =+IFERROR(INDEX(instruments!$N$2:$N$5037,MATCH(index!$A103,instruments!$M$2:$M$5037,0),1),"") -> Mahaska County, IA Corn Basis
A104: 60 | B104: =+IFERROR(INDEX(instruments!$N$2:$N$5037,MATCH(index!$A104,instruments!$M$2:$M$5037,0),1),"") -> Marion County, IA Corn Basis
A105: 61 | B105: =+IFERROR(INDEX(instruments!$N$2:$N$5037,MATCH(index!$A105,instruments!$M$2:$M$5037,0),1),"") -> Marshall County, IA Corn Basis
A106: 62 | B106: =+IFERROR(INDEX(instruments!$N$2:$N$5037,MATCH(index!$A106,instruments!$M$2:$M$5037,0),1),"") -> Mills County, IA Corn Basis
A107: 63 | B107: =+IFERROR(INDEX(instruments!$N$2:$N$5037,MATCH(index!$A107,instruments!$M$2:$M$5037,0),1),"") -> Mitchell County, IA Corn Basis
A108: 64 | B108: =+IFERROR(INDEX(instruments!$N$2:$N$5037,MATCH(index!$A108,instruments!$M$2:$M$5037,0),1),"") -> Monona County, IA Corn Basis
A109: 65 | B109: =+IFERROR(INDEX(instruments!$N$2:$N$5037,MATCH(index!$A109,instruments!$M$2:$M$5037,0),1),"") -> Monroe County, IA Corn Basis
A110: 66 | B110: =+IFERROR(INDEX(instruments!$N$2:$N$5037,MATCH(index!$A110,instruments!$M$2:$M$5037,0),1),"") -> Montgomery County, IA Corn Basis
A111: =+A110+1 -> 67 | B111: =+IFERROR(INDEX(instruments!$N$2:$N$5037,MATCH(index!$A111,instruments!$M$2:$M$5037,0),1),"") -> Muscatine County, IA Corn Basis
A112: 68 | B112: =+IFERROR(INDEX(instruments!$N$2:$N$5037,MATCH(index!$A112,instruments!$M$2:$M$5037,0),1),"") -> Osceola County, IA Corn Basis
A113: 69 | B113: =+IFERROR(INDEX(instruments!$N$2:$N$5037,MATCH(index!$A113,instruments!$M$2:$M$5037,0),1),"") -> Page County, IA Corn Basis
A114: 70 | B114: =+IFERROR(INDEX(instruments!$N$2:$N$5037,MATCH(index!$A114,instruments!$M$2:$M$5037,0),1),"") -> Palo Alto County, IA Corn Basis
A115: 71 | B115: =+IFERROR(INDEX(instruments!$N$2:$N$5037,MATCH(index!$A115,instruments!$M$2:$M$5037,0),1),"") -> Plymouth County, IA Corn Basis
A116: 72 | B116: =+IFERROR(INDEX(instruments!$N$2:$N$5037,MATCH(index!$A116,instruments!$M$2:$M$5037,0),1),"") -> Pocahontas County, IA Corn Basis
A117: 73 | B117: =+IFERROR(INDEX(instruments!$N$2:$N$5037,MATCH(index!$A117,instruments!$M$2:$M$5037,0),1),"") -> Polk County, IA Corn Basis
A118: 74 | B118: =+IFERROR(INDEX(instruments!$N$2:$N$5037,MATCH(index!$A118,instruments!$M$2:$M$5037,0),1),"") -> Pottawattamie County, IA Corn Basis
A119: 75 | B119: =+IFERROR(INDEX(instruments!$N$2:$N$5037,MATCH(index!$A119,instruments!$M$2:$M$5037,0),1),"") -> Poweshiek County, IA Corn Basis
A120: 76 | B120: =+IFERROR(INDEX(instruments!$N$2:$N$5037,MATCH(index!$A120,instruments!$M$2:$M$5037,0),1),"") -> Ringgold County, IA Corn Basis
A121: 77 | B121: =+IFERROR(INDEX(instruments!$N$2:$N$5037,MATCH(index!$A121,instruments!$M$2:$M$5037,0),1),"") -> Sac County, IA Corn Basis
A122: 78 | B122: =+IFERROR(INDEX(instruments!$N$2:$N$5037,MATCH(index!$A122,instruments!$M$2:$M$5037,0),1),"") -> Scott County, IA Corn Basis
A123: 79 | B123: =+IFERROR(INDEX(instruments!$N$2:$N$5037,MATCH(index!$A123,instruments!$M$2:$M$5037,0),1),"") -> Shelby County, IA Corn Basis
A124: 80 | B124: =+IFERROR(INDEX(instruments!$N$2:$N$5037,MATCH(index!$A124,instruments!$M$2:$M$5037,0),1),"") -> Sioux County, IA Corn Basis
A125: 81 | B125: =+IFERROR(INDEX(instruments!$N$2:$N$5037,MATCH(index!$A125,instruments!$M$2:$M$5037,0),1),"") -> Story County, IA Corn Basis
A126: 82 | B126: =+IFERROR(INDEX(instruments!$N$2:$N$5037,MATCH(index!$A126,instruments!$M$2:$M$5037,0),1),"") -> Tama County, IA Corn Basis
A127: 83 | B127: =+IFERROR(INDEX(instruments!$N$2:$N$5037,MATCH(index!$A127,instruments!$M$2:$M$5037,0),1),"") -> Taylor County, IA Corn Basis
A128: 84 | B128: =+IFERROR(INDEX(instruments!$N$2:$N$5037,MATCH(index!$A128,instruments!$M$2:$M$5037,0),1),"") -> Union County, IA Corn Basis
A129: 85 | B129: =+IFERROR(INDEX(instruments!$N$2:$N$5037,MATCH(index!$A129,instruments!$M$2:$M$5037,0),1),"") -> Van Buren County, IA Corn Basis
A130: 86 | B130: =+IFERROR(INDEX(instruments!$N$2:$N$5037,MATCH(index!$A130,instruments!$M$2:$M$5037,0),1),"") -> Wapello County, IA Corn Basis
A131: 87 | B131: =+IFERROR(INDEX(instruments!$N$2:$N$5037,MATCH(index!$A131,instruments!$M$2:$M$5037,0),1),"") -> Warren County, IA Corn Basis
A132: 88 | B132: =+IFERROR(INDEX(instruments!$N$2:$N$5037,MATCH(index!$A132,instruments!$M$2:$M$5037,0),1),"") -> Washington County, IA Corn Basis
A133: 89 | B133: =+IFERROR(INDEX(instruments!$N$2:$N$5037,MATCH(index!$A133,instruments!$M$2:$M$5037,0),1),"") -> Wayne County, IA Corn Basis
A134: 90 | B134: =+IFERROR(INDEX(instruments!$N$2:$N$5037,MATCH(index!$A134,instruments!$M$2:$M$5037,0),1),"") -> Webster County, IA Corn Basis
A135: 91 | B135: =+IFERROR(INDEX(instruments!$N$2:$N$5037,MATCH(index!$A135,instruments!$M$2:$M$5037,0),1),"") -> Winnebago County, IA Corn Basis
A136: 92 | B136: =+IFERROR(INDEX(instruments!$N$2:$N$5037,MATCH(index!$A136,instruments!$M$2:$M$5037,0),1),"") -> Winneshiek County, IA Corn Basis
A137: 93 | B137: =+IFERROR(INDEX(instruments!$N$2:$N$5037,MATCH(index!$A137,instruments!$M$2:$M$5037,0),1),"") -> Woodbury County, IA Corn Basis
A138: 94 | B138: =+IFERROR(INDEX(instruments!$N$2:$N$5037,MATCH(index!$A138,instruments!$M$2:$M$5037,0),1),"") -> Worth County, IA Corn Basis
A139: 95 | B139: =+IFERROR(INDEX(instruments!$N$2:$N$5037,MATCH(index!$A139,instruments!$M$2:$M$5037,0),1),"") -> Wright County, IA Corn Basis
A140: 96 | B140: =+IFERROR(INDEX(instruments!$N$2:$N$5037,MATCH(index!$A140,instruments!$M$2:$M$5037,0),1),"") -> 
A141: 97 | B141: =+IFERROR(INDEX(instruments!$N$2:$N$5037,MATCH(index!$A141,instruments!$M$2:$M$5037,0),1),"") -> 
A142: 98 | B142: =+IFERROR(INDEX(instruments!$N$2:$N$5037,MATCH(index!$A142,instruments!$M$2:$M$5037,0),1),"") -> 
A143: 99 | B143: =+IFERROR(INDEX(instruments!$N$2:$N$5037,MATCH(index!$A143,instruments!$M$2:$M$5037,0),1),"") -> 
A144: 100 | B144: =+IFERROR(INDEX(instruments!$N$2:$N$5037,MATCH(index!$A144,instruments!$M$2:$M$5037,0),1),"") -> 
A145: 101 | B145: =+IFERROR(INDEX(instruments!$N$2:$N$5037,MATCH(index!$A145,instruments!$M$2:$M$5037,0),1),"") -> 
A146: 102 | B146: =+IFERROR(INDEX(instruments!$N$2:$N$5037,MATCH(index!$A146,instruments!$M$2:$M$5037,0),1),"") -> 
A147: 103 | B147: =+IFERROR(INDEX(instruments!$N$2:$N$5037,MATCH(index!$A147,instruments!$M$2:$M$5037,0),1),"") -> 
A148: 104 | B148: =+IFERROR(INDEX(instruments!$N$2:$N$5037,MATCH(index!$A148,instruments!$M$2:$M$5037,0),1),"") -> 
A149: 105 | B149: =+IFERROR(INDEX(instruments!$N$2:$N$5037,MATCH(index!$A149,instruments!$M$2:$M$5037,0),1),"") -> 
A150: 106 | B150: =+IFERROR(INDEX(instruments!$N$2:$N$5037,MATCH(index!$A150,instruments!$M$2:$M$5037,0),1),"") -> 
A151: 107 | B151: =+IFERROR(INDEX(instruments!$N$2:$N$5037,MATCH(index!$A151,instruments!$M$2:$M$5037,0),1),"") -> 
A152: 108 | B152: =+IFERROR(INDEX(instruments!$N$2:$N$5037,MATCH(index!$A152,instruments!$M$2:$M$5037,0),1),"") -> 
A153: 109 | B153: =+IFERROR(INDEX(instruments!$N$2:$N$5037,MATCH(index!$A153,instruments!$M$2:$M$5037,0),1),"") -> 
A154: 110 | B154: =+IFERROR(INDEX(instruments!$N$2:$N$5037,MATCH(index!$A154,instruments!$M$2:$M$5037,0),1),"") -> 
A155: 111 | B155: =+IFERROR(INDEX(instruments!$N$2:$N$5037,MATCH(index!$A155,instruments!$M$2:$M$5037,0),1),"") -> 
A156: 112 | B156: =+IFERROR(INDEX(instruments!$N$2:$N$5037,MATCH(index!$A156,instruments!$M$2:$M$5037,0),1),"") -> 
A157: 113 | B157: =+IFERROR(INDEX(instruments!$N$2:$N$5037,MATCH(index!$A157,instruments!$M$2:$M$5037,0),1),"") -> 
A158: 114 | B158: =+IFERROR(INDEX(instruments!$N$2:$N$5037,MATCH(index!$A158,instruments!$M$2:$M$5037,0),1),"") -> 
A159: 115 | B159: =+IFERROR(INDEX(instruments!$N$2:$N$5037,MATCH(index!$A159,instruments!$M$2:$M$5037,0),1),"") -> 
A160: 116 | B160: =+IFERROR(INDEX(instruments!$N$2:$N$5037,MATCH(index!$A160,instruments!$M$2:$M$5037,0),1),"") -> 
A161: 117 | B161: =+IFERROR(INDEX(instruments!$N$2:$N$5037,MATCH(index!$A161,instruments!$M$2:$M$5037,0),1),"") -> 
A162: 118 | B162: =+IFERROR(INDEX(instruments!$N$2:$N$5037,MATCH(index!$A162,instruments!$M$2:$M$5037,0),1),"") -> 
A163: 119 | B163: =+IFERROR(INDEX(instruments!$N$2:$N$5037,MATCH(index!$A163,instruments!$M$2:$M$5037,0),1),"") -> 
A164: 120 | B164: =+IFERROR(INDEX(instruments!$N$2:$N$5037,MATCH(index!$A164,instruments!$M$2:$M$5037,0),1),"") -> 
A165: 121 | B165: =+IFERROR(INDEX(instruments!$N$2:$N$5037,MATCH(index!$A165,instruments!$M$2:$M$5037,0),1),"") -> 
A166: 122 | B166: =+IFERROR(INDEX(instruments!$N$2:$N$5037,MATCH(index!$A166,instruments!$M$2:$M$5037,0),1),"") -> 
A167: 123 | B167: =+IFERROR(INDEX(instruments!$N$2:$N$5037,MATCH(index!$A167,instruments!$M$2:$M$5037,0),1),"") -> 
A168: 124 | B168: =+IFERROR(INDEX(instruments!$N$2:$N$5037,MATCH(index!$A168,instruments!$M$2:$M$5037,0),1),"") -> 
A169: 125 | B169: =+IFERROR(INDEX(instruments!$N$2:$N$5037,MATCH(index!$A169,instruments!$M$2:$M$5037,0),1),"") -> 
A170: 126 | B170: =+IFERROR(INDEX(instruments!$N$2:$N$5037,MATCH(index!$A170,instruments!$M$2:$M$5037,0),1),"") -> 
A171: 127 | B171: =+IFERROR(INDEX(instruments!$N$2:$N$5037,MATCH(index!$A171,instruments!$M$2:$M$5037,0),1),"") -> 
A172: 128 | B172: =+IFERROR(INDEX(instruments!$N$2:$N$5037,MATCH(index!$A172,instruments!$M$2:$M$5037,0),1),"") -> 
A173: 129 | B173: =+IFERROR(INDEX(instruments!$N$2:$N$5037,MATCH(index!$A173,instruments!$M$2:$M$5037,0),1),"") -> 
A174: 130 | B174: =+IFERROR(INDEX(instruments!$N$2:$N$5037,MATCH(index!$A174,instruments!$M$2:$M$5037,0),1),"") -> 
A175: =+A174+1 -> 131 | B175: =+IFERROR(INDEX(instruments!$N$2:$N$5037,MATCH(index!$A175,instruments!$M$2:$M$5037,0),1),"") -> 
A176: 132 | B176: =+IFERROR(INDEX(instruments!$N$2:$N$5037,MATCH(index!$A176,instruments!$M$2:$M$5037,0),1),"") -> 
A177: 133 | B177: =+IFERROR(INDEX(instruments!$N$2:$N$5037,MATCH(index!$A177,instruments!$M$2:$M$5037,0),1),"") -> 
A178: 134 | B178: =+IFERROR(INDEX(instruments!$N$2:$N$5037,MATCH(index!$A178,instruments!$M$2:$M$5037,0),1),"") -> 
A179: 135 | B179: =+IFERROR(INDEX(instruments!$N$2:$N$5037,MATCH(index!$A179,instruments!$M$2:$M$5037,0),1),"") -> 
A180: 136 | B180: =+IFERROR(INDEX(instruments!$N$2:$N$5037,MATCH(index!$A180,instruments!$M$2:$M$5037,0),1),"") -> 
A181: 137 | B181: =+IFERROR(INDEX(instruments!$N$2:$N$5037,MATCH(index!$A181,instruments!$M$2:$M$5037,0),1),"") -> 
A182: 138 | B182: =+IFERROR(INDEX(instruments!$N$2:$N$5037,MATCH(index!$A182,instruments!$M$2:$M$5037,0),1),"") -> 
A183: 139 | B183: =+IFERROR(INDEX(instruments!$N$2:$N$5037,MATCH(index!$A183,instruments!$M$2:$M$5037,0),1),"") -> 
A184: 140 | B184: =+IFERROR(INDEX(instruments!$N$2:$N$5037,MATCH(index!$A184,instruments!$M$2:$M$5037,0),1),"") -> 
A185: 141 | B185: =+IFERROR(INDEX(instruments!$N$2:$N$5037,MATCH(index!$A185,instruments!$M$2:$M$5037,0),1),"") -> 
A186: 142 | B186: =+IFERROR(INDEX(instruments!$N$2:$N$5037,MATCH(index!$A186,instruments!$M$2:$M$5037,0),1),"") -> 
A187: 143 | B187: =+IFERROR(INDEX(instruments!$N$2:$N$5037,MATCH(index!$A187,instruments!$M$2:$M$5037,0),1),"") -> 
A188: 144 | B188: =+IFERROR(INDEX(instruments!$N$2:$N$5037,MATCH(index!$A188,instruments!$M$2:$M$5037,0),1),"") -> 
A189: 145 | B189: =+IFERROR(INDEX(instruments!$N$2:$N$5037,MATCH(index!$A189,instruments!$M$2:$M$5037,0),1),"") -> 
A190: 146 | B190: =+IFERROR(INDEX(instruments!$N$2:$N$5037,MATCH(index!$A190,instruments!$M$2:$M$5037,0),1),"") -> 
A191: 147 | B191: =+IFERROR(INDEX(instruments!$N$2:$N$5037,MATCH(index!$A191,instruments!$M$2:$M$5037,0),1),"") -> 
A192: 148 | B192: =+IFERROR(INDEX(instruments!$N$2:$N$5037,MATCH(index!$A192,instruments!$M$2:$M$5037,0),1),"") -> 
A193: 149 | B193: =+IFERROR(INDEX(instruments!$N$2:$N$5037,MATCH(index!$A193,instruments!$M$2:$M$5037,0),1),"") -> 
A194: 150 | B194: =+IFERROR(INDEX(instruments!$N$2:$N$5037,MATCH(index!$A194,instruments!$M$2:$M$5037,0),1),"") -> 
A195: 151 | B195: =+IFERROR(INDEX(instruments!$N$2:$N$5037,MATCH(index!$A195,instruments!$M$2:$M$5037,0),1),"") -> 
A196: 152 | B196: =+IFERROR(INDEX(instruments!$N$2:$N$5037,MATCH(index!$A196,instruments!$M$2:$M$5037,0),1),"") -> 
A197: 153 | B197: =+IFERROR(INDEX(instruments!$N$2:$N$5037,MATCH(index!$A197,instruments!$M$2:$M$5037,0),1),"") -> 
A198: 154 | B198: =+IFERROR(INDEX(instruments!$N$2:$N$5037,MATCH(index!$A198,instruments!$M$2:$M$5037,0),1),"") -> 
A199: 155 | B199: =+IFERROR(INDEX(instruments!$N$2:$N$5037,MATCH(index!$A199,instruments!$M$2:$M$5037,0),1),"") -> 
A200: 156 | B200: =+IFERROR(INDEX(instruments!$N$2:$N$5037,MATCH(index!$A200,instruments!$M$2:$M$5037,0),1),"") -> 
A201: 157 | B201: =+IFERROR(INDEX(instruments!$N$2:$N$5037,MATCH(index!$A201,instruments!$M$2:$M$5037,0),1),"") -> 
A202: 158 | B202: =+IFERROR(INDEX(instruments!$N$2:$N$5037,MATCH(index!$A202,instruments!$M$2:$M$5037,0),1),"") -> 
A203: 159 | B203: =+IFERROR(INDEX(instruments!$N$2:$N$5037,MATCH(index!$A203,instruments!$M$2:$M$5037,0),1),"") -> 
A204: 160 | B204: =+IFERROR(INDEX(instruments!$N$2:$N$5037,MATCH(index!$A204,instruments!$M$2:$M$5037,0),1),"") -> 
A205: 161 | B205: =+IFERROR(INDEX(instruments!$N$2:$N$5037,MATCH(index!$A205,instruments!$M$2:$M$5037,0),1),"") -> 
A206: 162 | B206: =+IFERROR(INDEX(instruments!$N$2:$N$5037,MATCH(index!$A206,instruments!$M$2:$M$5037,0),1),"") -> 
A207: 163 | B207: =+IFERROR(INDEX(instruments!$N$2:$N$5037,MATCH(index!$A207,instruments!$M$2:$M$5037,0),1),"") -> 
A208: 164 | B208: =+IFERROR(INDEX(instruments!$N$2:$N$5037,MATCH(index!$A208,instruments!$M$2:$M$5037,0),1),"") -> 
A209: 165 | B209: =+IFERROR(INDEX(instruments!$N$2:$N$5037,MATCH(index!$A209,instruments!$M$2:$M$5037,0),1),"") -> 
A210: 166 | B210: =+IFERROR(INDEX(instruments!$N$2:$N$5037,MATCH(index!$A210,instruments!$M$2:$M$5037,0),1),"") -> 
A211: 167 | B211: =+IFERROR(INDEX(instruments!$N$2:$N$5037,MATCH(index!$A211,instruments!$M$2:$M$5037,0),1),"") -> 
A212: 168 | B212: =+IFERROR(INDEX(instruments!$N$2:$N$5037,MATCH(index!$A212,instruments!$M$2:$M$5037,0),1),"") -> 
A213: 169 | B213: =+IFERROR(INDEX(instruments!$N$2:$N$5037,MATCH(index!$A213,instruments!$M$2:$M$5037,0),1),"") -> 
A214: 170 | B214: =+IFERROR(INDEX(instruments!$N$2:$N$5037,MATCH(index!$A214,instruments!$M$2:$M$5037,0),1),"") -> 
... 1828 more rows

Sheet historical
A1: =_xll.cmdty.udfs.BCTS(B1:B1,B2:B2,"Aggregation=Day","AggSize=1","AggSpec=None",DATE(2016,1,1),,,,,"Sort=Descending","Orientation=Vertical","HideWeekends=True","Bars=1195") -> Time Series | B1: ZCBAIAFA.CM
A2: Date | B2: Close
A3: 2020-09-08 | B3: -0.3065 | C3: =+MONTH(A3) -> 9 | D3: =+YEAR(A3) -> 2020
A4: 2020-09-07 | B4: -0.3071 | C4: =+MONTH(A4) -> 9 | D4: =+YEAR(A4) -> 2020
A5: 2020-09-04 | B5: -0.3102 | C5: 9 | D5: 2020
A6: 2020-09-03 | B6: -0.3102 | C6: 9 | D6: 2020
A7: 2020-09-02 | B7: -0.3241 | C7: 9 | D7: 2020
A8: 2020-09-01 | B8: -0.327 | C8: 9 | D8: 2020
A9: 2020-08-31 | B9: -0.29 | C9: 8 | D9: 2020
A10: 2020-08-28 | B10: -0.29 | C10: 8 | D10: 2020
A11: 2020-08-27 | B11: -0.2604 | C11: 8 | D11: 2020
A12: 2020-08-26 | B12: -0.242 | C12: 8 | D12: 2020
A13: 2020-08-25 | B13: -0.2324 | C13: 8 | D13: 2020
A14: 2020-08-24 | B14: -0.2471 | C14: 8 | D14: 2020
A15: 2020-08-21 | B15: -0.2485 | C15: 8 | D15: 2020
A16: 2020-08-20 | B16: -0.2492 | C16: 8 | D16: 2020
A17: 2020-08-19 | B17: -0.2577 | C17: 8 | D17: 2020
A18: 2020-08-18 | B18: -0.2583 | C18: 8 | D18: 2020
A19: 2020-08-17 | B19: -0.2705 | C19: 8 | D19: 2020
A20: 2020-08-14 | B20: -0.274 | C20: 8 | D20: 2020
A21: 2020-08-13 | B21: -0.278 | C21: 8 | D21: 2020
A22: 2020-08-12 | B22: -0.2795 | C22: 8 | D22: 2020
A23: 2020-08-11 | B23: -0.281 | C23: 8 | D23: 2020
A24: 2020-08-10 | B24: -0.2807 | C24: 8 | D24: 2020
A25: 2020-08-07 | B25: -0.2837 | C25: 8 | D25: 2020
A26: 2020-08-06 | B26: -0.2859 | C26: 8 | D26: 2020
A27: 2020-08-05 | B27: -0.2859 | C27: 8 | D27: 2020
A28: 2020-08-04 | B28: -0.2861 | C28: 8 | D28: 2020
A29: 2020-08-03 | B29: -0.2954 | C29: 8 | D29: 2020
A30: 2020-07-31 | B30: -0.2737 | C30: 7 | D30: 2020
A31: 2020-07-30 | B31: -0.2737 | C31: 7 | D31: 2020
A32: 2020-07-29 | B32: -0.2721 | C32: 7 | D32: 2020
A33: 2020-07-28 | B33: -0.2696 | C33: 7 | D33: 2020
A34: 2020-07-27 | B34: -0.271 | C34: 7 | D34: 2020
A35: 2020-07-24 | B35: -0.2918 | C35: 7 | D35: 2020
A36: 2020-07-23 | B36: -0.2888 | C36: 7 | D36: 2020
A37: 2020-07-22 | B37: -0.2888 | C37: 7 | D37: 2020
A38: 2020-07-21 | B38: -0.2922 | C38: 7 | D38: 2020
A39: 2020-07-20 | B39: -0.287 | C39: 7 | D39: 2020
A40: 2020-07-17 | B40: -0.287 | C40: 7 | D40: 2020
A41: 2020-07-16 | B41: -0.2834 | C41: 7 | D41: 2020
A42: 2020-07-15 | B42: -0.2777 | C42: 7 | D42: 2020
A43: 2020-07-14 | B43: -0.2799 | C43: 7 | D43: 2020
A44: 2020-07-13 | B44: -0.2864 | C44: 7 | D44: 2020
A45: 2020-07-10 | B45: -0.2905 | C45: 7 | D45: 2020
A46: 2020-07-09 | B46: -0.2965 | C46: 7 | D46: 2020
A47: 2020-07-08 | B47: -0.3014 | C47: 7 | D47: 2020
A48: 2020-07-07 | B48: -0.3034 | C48: 7 | D48: 2020
A49: 2020-07-06 | B49: -0.309 | C49: 7 | D49: 2020
A50: 2020-07-03 | B50: -0.3104 | C50: 7 | D50: 2020
A51: 2020-07-02 | B51: -0.3159 | C51: 7 | D51: 2020
A52: 2020-07-01 | B52: -0.3232 | C52: 7 | D52: 2020
A53: 2020-06-30 | B53: -0.2712 | C53: 6 | D53: 2020
A54: 2020-06-29 | B54: -0.2392 | C54: 6 | D54: 2020
A55: 2020-06-26 | B55: -0.245 | C55: 6 | D55: 2020
A56: 2020-06-25 | B56: -0.2382 | C56: 6 | D56: 2020
A57: 2020-06-24 | B57: -0.2389 | C57: 6 | D57: 2020
A58: 2020-06-23 | B58: -0.2459 | C58: 6 | D58: 2020
A59: 2020-06-22 | B59: -0.2498 | C59: 6 | D59: 2020
A60: 2020-06-19 | B60: -0.2498 | C60: 6 | D60: 2020
A61: 2020-06-18 | B61: -0.2498 | C61: 6 | D61: 2020
A62: 2020-06-17 | B62: -0.2568 | C62: 6 | D62: 2020
A63: 2020-06-16 | B63: -0.2507 | C63: 6 | D63: 2020
A64: 2020-06-15 | B64: -0.2504 | C64: 6 | D64: 2020
A65: 2020-06-12 | B65: -0.2437 | C65: 6 | D65: 2020
A66: 2020-06-11 | B66: -0.2403 | C66: 6 | D66: 2020
A67: 2020-06-10 | B67: -0.242 | C67: 6 | D67: 2020
A68: 2020-06-09 | B68: -0.2502 | C68: =+MONTH(A68) -> 6 | D68: =+YEAR(A68) -> 2020
A69: 2020-06-08 | B69: -0.2535 | C69: 6 | D69: 2020
A70: 2020-06-05 | B70: -0.2531 | C70: 6 | D70: 2020
A71: 2020-06-04 | B71: -0.2513 | C71: 6 | D71: 2020
A72: 2020-06-03 | B72: -0.2513 | C72: 6 | D72: 2020
A73: 2020-06-02 | B73: -0.2512 | C73: 6 | D73: 2020
A74: 2020-06-01 | B74: -0.2481 | C74: 6 | D74: 2020
A75: 2020-05-29 | B75: -0.2546 | C75: 5 | D75: 2020
A76: 2020-05-28 | B76: -0.255 | C76: 5 | D76: 2020
A77: 2020-05-27 | B77: -0.2592 | C77: 5 | D77: 2020
A78: 2020-05-26 | B78: -0.2651 | C78: 5 | D78: 2020
A79: 2020-05-25 | B79: -0.2757 | C79: 5 | D79: 2020
A80: 2020-05-22 | B80: -0.2757 | C80: 5 | D80: 2020
A81: 2020-05-21 | B81: -0.2792 | C81: 5 | D81: 2020
A82: 2020-05-20 | B82: -0.2785 | C82: 5 | D82: 2020
A83: 2020-05-19 | B83: -0.2843 | C83: 5 | D83: 2020
A84: 2020-05-18 | B84: -0.2865 | C84: 5 | D84: 2020
A85: 2020-05-15 | B85: -0.2882 | C85: 5 | D85: 2020
A86: 2020-05-14 | B86: -0.2866 | C86: 5 | D86: 2020
A87: 2020-05-13 | B87: -0.2874 | C87: 5 | D87: 2020
A88: 2020-05-12 | B88: -0.3433 | C88: 5 | D88: 2020
A89: 2020-05-11 | B89: -0.3455 | C89: 5 | D89: 2020
A90: 2020-05-08 | B90: -0.3462 | C90: 5 | D90: 2020
A91: 2020-05-07 | B91: -0.3464 | C91: 5 | D91: 2020
A92: 2020-05-06 | B92: -0.355 | C92: 5 | D92: 2020
A93: 2020-05-05 | B93: -0.378 | C93: 5 | D93: 2020
A94: 2020-05-04 | B94: -0.4003 | C94: 5 | D94: 2020
A95: 2020-05-01 | B95: -0.4212 | C95: 5 | D95: 2020
A96: 2020-04-30 | B96: -0.3162 | C96: 4 | D96: 2020
A97: 2020-04-29 | B97: -0.3168 | C97: 4 | D97: 2020
A98: 2020-04-28 | B98: -0.3273 | C98: 4 | D98: 2020
A99: 2020-04-27 | B99: -0.3332 | C99: 4 | D99: 2020
A100: 2020-04-24 | B100: -0.3394 | C100: 4 | D100: 2020
A101: 2020-04-23 | B101: -0.3401 | C101: 4 | D101: 2020
A102: 2020-04-22 | B102: -0.3419 | C102: 4 | D102: 2020
A103: 2020-04-21 | B103: -0.3489 | C103: 4 | D103: 2020
A104: 2020-04-20 | B104: -0.3525 | C104: 4 | D104: 2020
A105: 2020-04-17 | B105: -0.3762 | C105: 4 | D105: 2020
A106: 2020-04-16 | B106: -0.3783 | C106: 4 | D106: 2020
A107: 2020-04-15 | B107: -0.374 | C107: 4 | D107: 2020
A108: 2020-04-14 | B108: -0.3707 | C108: 4 | D108: 2020
A109: 2020-04-13 | B109: -0.378 | C109: 4 | D109: 2020
A110: 2020-04-10 | B110: -0.3733 | C110: 4 | D110: 2020
A111: 2020-04-09 | B111: -0.3733 | C111: 4 | D111: 2020
A112: 2020-04-08 | B112: -0.3712 | C112: 4 | D112: 2020
A113: 2020-04-07 | B113: -0.3688 | C113: 4 | D113: 2020
A114: 2020-04-06 | B114: -0.3853 | C114: 4 | D114: 2020
A115: 2020-04-03 | B115: -0.4175 | C115: 4 | D115: 2020
A116: 2020-04-02 | B116: -0.4175 | C116: 4 | D116: 2020
A117: 2020-04-01 | B117: -0.4175 | C117: 4 | D117: 2020
A118: 2020-03-31 | B118: -0.4155 | C118: 3 | D118: 2020
A119: 2020-03-30 | B119: -0.4155 | C119: 3 | D119: 2020
A120: 2020-03-27 | B120: -0.3809 | C120: 3 | D120: 2020
A121: 2020-03-26 | B121: -0.3807 | C121: 3 | D121: 2020
A122: 2020-03-25 | B122: -0.3645 | C122: 3 | D122: 2020
A123: 2020-03-24 | B123: -0.3616 | C123: 3 | D123: 2020
A124: 2020-03-23 | B124: -0.3291 | C124: 3 | D124: 2020
A125: 2020-03-20 | B125: -0.3731 | C125: 3 | D125: 2020
A126: 2020-03-19 | B126: -0.374 | C126: 3 | D126: 2020
A127: 2020-03-18 | B127: -0.3987 | C127: 3 | D127: 2020
A128: 2020-03-17 | B128: -0.3326 | C128: 3 | D128: 2020
A129: 2020-03-16 | B129: -0.2453 | C129: 3 | D129: 2020
A130: 2020-03-13 | B130: -0.2357 | C130: 3 | D130: 2020
A131: 2020-03-12 | B131: -0.2105 | C131: 3 | D131: 2020
A132: 2020-03-11 | B132: -0.2105 | C132: =+MONTH(A132) -> 3 | D132: =+YEAR(A132) -> 2020
A133: 2020-03-10 | B133: -0.2085 | C133: 3 | D133: 2020
A134: 2020-03-09 | B134: -0.2036 | C134: 3 | D134: 2020
A135: 2020-03-06 | B135: -0.198 | C135: 3 | D135: 2020
A136: 2020-03-05 | B136: -0.1952 | C136: 3 | D136: 2020
A137: 2020-03-04 | B137: -0.1974 | C137: 3 | D137: 2020
A138: 2020-03-03 | B138: -0.1996 | C138: 3 | D138: 2020
A139: 2020-03-02 | B139: -0.2052 | C139: 3 | D139: 2020
A140: 2020-02-28 | B140: -0.1773 | C140: 2 | D140: 2020
A141: 2020-02-27 | B141: -0.1812 | C141: 2 | D141: 2020
A142: 2020-02-26 | B142: -0.1778 | C142: 2 | D142: 2020
A143: 2020-02-25 | B143: -0.1757 | C143: 2 | D143: 2020
A144: 2020-02-24 | B144: -0.182 | C144: 2 | D144: 2020
A145: 2020-02-21 | B145: -0.189 | C145: 2 | D145: 2020
A146: 2020-02-20 | B146: -0.1897 | C146: 2 | D146: 2020
A147: 2020-02-19 | B147: -0.2004 | C147: 2 | D147: 2020
A148: 2020-02-18 | B148: -0.2011 | C148: 2 | D148: 2020
A149: 2020-02-17 | B149: -0.2011 | C149: 2 | D149: 2020
A150: 2020-02-14 | B150: -0.2013 | C150: 2 | D150: 2020
A151: 2020-02-13 | B151: -0.2021 | C151: 2 | D151: 2020
A152: 2020-02-12 | B152: -0.2018 | C152: 2 | D152: 2020
A153: 2020-02-11 | B153: -0.2045 | C153: 2 | D153: 2020
A154: 2020-02-10 | B154: -0.2043 | C154: 2 | D154: 2020
A155: 2020-02-07 | B155: -0.196 | C155: 2 | D155: 2020
A156: 2020-02-06 | B156: -0.1969 | C156: 2 | D156: 2020
A157: 2020-02-05 | B157: -0.196 | C157: 2 | D157: 2020
A158: 2020-02-04 | B158: -0.1969 | C158: 2 | D158: 2020
A159: 2020-02-03 | B159: -0.2094 | C159: 2 | D159: 2020
A160: 2020-01-31 | B160: -0.2171 | C160: 1 | D160: 2020
A161: 2020-01-30 | B161: -0.2171 | C161: 1 | D161: 2020
A162: 2020-01-29 | B162: -0.2177 | C162: 1 | D162: 2020
A163: 2020-01-28 | B163: -0.2177 | C163: 1 | D163: 2020
A164: 2020-01-27 | B164: -0.217 | C164: 1 | D164: 2020
A165: 2020-01-24 | B165: -0.2245 | C165: 1 | D165: 2020
A166: 2020-01-23 | B166: -0.2238 | C166: 1 | D166: 2020
A167: 2020-01-22 | B167: -0.2299 | C167: 1 | D167: 2020
A168: 2020-01-21 | B168: -0.2322 | C168: 1 | D168: 2020
A169: 2020-01-20 | B169: -0.2336 | C169: 1 | D169: 2020
A170: 2020-01-17 | B170: -0.2396 | C170: 1 | D170: 2020
A171: 2020-01-16 | B171: -0.2396 | C171: 1 | D171: 2020
A172: 2020-01-15 | B172: -0.2389 | C172: 1 | D172: 2020
A173: 2020-01-14 | B173: -0.2396 | C173: 1 | D173: 2020
A174: 2020-01-13 | B174: -0.2389 | C174: 1 | D174: 2020
A175: 2020-01-10 | B175: -0.24 | C175: 1 | D175: 2020
A176: 2020-01-09 | B176: -0.2414 | C176: 1 | D176: 2020
A177: 2020-01-08 | B177: -0.2421 | C177: 1 | D177: 2020
A178: 2020-01-07 | B178: -0.2421 | C178: 1 | D178: 2020
A179: 2020-01-06 | B179: -0.2421 | C179: 1 | D179: 2020
A180: 2020-01-03 | B180: -0.2428 | C180: 1 | D180: 2020
A181: 2020-01-02 | B181: -0.2451 | C181: 1 | D181: 2020
A182: 2019-12-31 | B182: -0.2996 | C182: 12 | D182: 2019
A183: 2019-12-30 | B183: -0.3092 | C183: 12 | D183: 2019
A184: 2019-12-27 | B184: -0.3104 | C184: 12 | D184: 2019
A185: 2019-12-26 | B185: -0.309 | C185: 12 | D185: 2019
A186: 2019-12-25 | B186: -0.314 | C186: 12 | D186: 2019
A187: 2019-12-24 | B187: -0.3142 | C187: 12 | D187: 2019
A188: 2019-12-23 | B188: -0.3182 | C188: 12 | D188: 2019
A189: 2019-12-20 | B189: -0.3205 | C189: 12 | D189: 2019
A190: 2019-12-19 | B190: -0.3191 | C190: 12 | D190: 2019
A191: 2019-12-18 | B191: -0.3163 | C191: 12 | D191: 2019
A192: 2019-12-17 | B192: -0.3163 | C192: 12 | D192: 2019
A193: 2019-12-16 | B193: -0.3163 | C193: 12 | D193: 2019
A194: 2019-12-13 | B194: -0.3311 | C194: 12 | D194: 2019
A195: 2019-12-12 | B195: -0.338 | C195: 12 | D195: 2019
A196: 2019-12-11 | B196: -0.338 | C196: =+MONTH(A196) -> 12 | D196: =+YEAR(A196) -> 2019
A197: 2019-12-10 | B197: -0.341 | C197: 12 | D197: 2019
A198: 2019-12-09 | B198: -0.341 | C198: 12 | D198: 2019
A199: 2019-12-06 | B199: -0.3446 | C199: 12 | D199: 2019
A200: 2019-12-05 | B200: -0.3446 | C200: 12 | D200: 2019
... 997 more rows

Sheet instruments
A1: Symbol | B1: Name | C1: Crop | D1: Type | E1: State | F1: Area | G1: Name | H1: Crop Match | I1: Type Check | J1: State Match | K1: Area Match | L1: Total Match | M1: Count | N1: Stripped Name
A2: ZCBAIAAD.CM | B2: cmdty Adair County, IA Corn Basis Idx | C2: Corn | D2: Basis | E2: Iowa | F2: County | G2: Adair County | H2: =+IF(LEN(home!$G$7)>0,instruments!C2=home!$G$7,TRUE) -> TRUE | I2: =+D2="Basis" -> TRUE | J2: =+IF(LEN(home!$G$8)>0,instruments!E2=home!$G$8,TRUE) -> TRUE | K2: =+IF(LEN(home!$G$9)>0,instruments!F2=home!$G$9,TRUE) -> TRUE | L2: =+COUNTIF(H2:K2,TRUE) -> 4 | M2: =+COUNTIF($L$1:L2,"="&4) -> 1 | N2: =+MID(B2,FIND(" ",B2,1)+1,LEN(B2)-FIND(" ",B2,1)-4) -> Adair County, IA Corn Basis
A3: ZSBAIAAD.CM | B3: cmdty Adair County, IA Soybean Basis Idx | C3: Soybean | D3: Basis | E3: Iowa | F3: County | G3: Adair County | H3: =+IF(LEN(home!$G$7)>0,instruments!C3=home!$G$7,TRUE) -> FALSE | I3: =+D3="Basis" -> TRUE | J3: =+IF(LEN(home!$G$8)>0,instruments!E3=home!$G$8,TRUE) -> TRUE | K3: =+IF(LEN(home!$G$9)>0,instruments!F3=home!$G$9,TRUE) -> TRUE | L3: 3 | M3: =+COUNTIF($L$1:L3,"="&4) -> 1 | N3: =+MID(B3,FIND(" ",B3,1)+1,LEN(B3)-FIND(" ",B3,1)-4) -> Adair County, IA Soybean Basis
A4: ZCBAMOAD.CM | B4: cmdty Adair County, MO Corn Basis Idx | C4: Corn | D4: Basis | E4: Missouri | F4: County | G4: Adair County | H4: =+IF(LEN(home!$G$7)>0,instruments!C4=home!$G$7,TRUE) -> TRUE | I4: TRUE | J4: =+IF(LEN(home!$G$8)>0,instruments!E4=home!$G$8,TRUE) -> FALSE | K4: =+IF(LEN(home!$G$9)>0,instruments!F4=home!$G$9,TRUE) -> TRUE | L4: 3 | M4: =+COUNTIF($L$1:L4,"="&4) -> 1 | N4: Adair County, MO Corn Basis
A5: ZSBAMOAD.CM | B5: cmdty Adair County, MO Soybean Basis Idx | C5: Soybean | D5: Basis | E5: Missouri | F5: County | G5: Adair County | H5: =+IF(LEN(home!$G$7)>0,instruments!C5=home!$G$7,TRUE) -> FALSE | I5: TRUE | J5: =+IF(LEN(home!$G$8)>0,instruments!E5=home!$G$8,TRUE) -> FALSE | K5: =+IF(LEN(home!$G$9)>0,instruments!F5=home!$G$9,TRUE) -> TRUE | L5: 2 | M5: =+COUNTIF($L$1:L5,"="&4) -> 1 | N5: Adair County, MO Soybean Basis
A6: ZCBAIAAA.CM | B6: cmdty Adams County, IA Corn Basis Idx | C6: Corn | D6: Basis | E6: Iowa | F6: County | G6: Adams County | H6: =+IF(LEN(home!$G$7)>0,instruments!C6=home!$G$7,TRUE) -> TRUE | I6: TRUE | J6: =+IF(LEN(home!$G$8)>0,instruments!E6=home!$G$8,TRUE) -> TRUE | K6: =+IF(LEN(home!$G$9)>0,instruments!F6=home!$G$9,TRUE) -> TRUE | L6: 4 | M6: =+COUNTIF($L$1:L6,"="&4) -> 2 | N6: Adams County, IA Corn Basis
A7: ZSBAIAAA.CM | B7: cmdty Adams County, IA Soybean Basis Idx | C7: Soybean | D7: Basis | E7: Iowa | F7: County | G7: Adams County | H7: =+IF(LEN(home!$G$7)>0,instruments!C7=home!$G$7,TRUE) -> FALSE | I7: TRUE | J7: =+IF(LEN(home!$G$8)>0,instruments!E7=home!$G$8,TRUE) -> TRUE | K7: =+IF(LEN(home!$G$9)>0,instruments!F7=home!$G$9,TRUE) -> TRUE | L7: 3 | M7: =+COUNTIF($L$1:L7,"="&4) -> 2 | N7: Adams County, IA Soybean Basis
A8: ZCBAILAD.CM | B8: cmdty Adams County, IL Corn Basis Idx | C8: Corn | D8: Basis | E8: Illinois | F8: County | G8: Adams County | H8: =+IF(LEN(home!$G$7)>0,instruments!C8=home!$G$7,TRUE) -> TRUE | I8: TRUE | J8: =+IF(LEN(home!$G$8)>0,instruments!E8=home!$G$8,TRUE) -> FALSE | K8: =+IF(LEN(home!$G$9)>0,instruments!F8=home!$G$9,TRUE) -> TRUE | L8: 3 | M8: =+COUNTIF($L$1:L8,"="&4) -> 2 | N8: Adams County, IL Corn Basis
A9: ZSBAILAD.CM | B9: cmdty Adams County, IL Soybean Basis Idx | C9: Soybean | D9: Basis | E9: Illinois | F9: County | G9: Adams County | H9: =+IF(LEN(home!$G$7)>0,instruments!C9=home!$G$7,TRUE) -> FALSE | I9: TRUE | J9: =+IF(LEN(home!$G$8)>0,instruments!E9=home!$G$8,TRUE) -> FALSE | K9: =+IF(LEN(home!$G$9)>0,instruments!F9=home!$G$9,TRUE) -> TRUE | L9: 2 | M9: =+COUNTIF($L$1:L9,"="&4) -> 2 | N9: Adams County, IL Soybean Basis
A10: ZCBAINAD.CM | B10: cmdty Adams County, IN Corn Basis Idx | C10: Corn | D10: Basis | E10: Indiana | F10: County | G10: Adams County | H10: =+IF(LEN(home!$G$7)>0,instruments!C10=home!$G$7,TRUE) -> TRUE | I10: TRUE | J10: =+IF(LEN(home!$G$8)>0,instruments!E10=home!$G$8,TRUE) -> FALSE | K10: =+IF(LEN(home!$G$9)>0,instruments!F10=home!$G$9,TRUE) -> TRUE | L10: 3 | M10: =+COUNTIF($L$1:L10,"="&4) -> 2 | N10: Adams County, IN Corn Basis
A11: ZSBAINAD.CM | B11: cmdty Adams County, IN Soybean Basis Idx | C11: Soybean | D11: Basis | E11: Indiana | F11: County | G11: Adams County | H11: =+IF(LEN(home!$G$7)>0,instruments!C11=home!$G$7,TRUE) -> FALSE | I11: TRUE | J11: =+IF(LEN(home!$G$8)>0,instruments!E11=home!$G$8,TRUE) -> FALSE | K11: =+IF(LEN(home!$G$9)>0,instruments!F11=home!$G$9,TRUE) -> TRUE | L11: 2 | M11: =+COUNTIF($L$1:L11,"="&4) -> 2 | N11: Adams County, IN Soybean Basis
A12: ZCBANEAD.CM | B12: cmdty Adams County, NE Corn Basis Idx | C12: Corn | D12: Basis | E12: Nebraska | F12: County | G12: Adams County | H12: =+IF(LEN(home!$G$7)>0,instruments!C12=home!$G$7,TRUE) -> TRUE | I12: TRUE | J12: =+IF(LEN(home!$G$8)>0,instruments!E12=home!$G$8,TRUE) -> FALSE | K12: =+IF(LEN(home!$G$9)>0,instruments!F12=home!$G$9,TRUE) -> TRUE | L12: 3 | M12: =+COUNTIF($L$1:L12,"="&4) -> 2 | N12: Adams County, NE Corn Basis
A13: ZSBANEAD.CM | B13: cmdty Adams County, NE Soybean Basis Idx | C13: Soybean | D13: Basis | E13: Nebraska | F13: County | G13: Adams County | H13: =+IF(LEN(home!$G$7)>0,instruments!C13=home!$G$7,TRUE) -> FALSE | I13: TRUE | J13: =+IF(LEN(home!$G$8)>0,instruments!E13=home!$G$8,TRUE) -> FALSE | K13: =+IF(LEN(home!$G$9)>0,instruments!F13=home!$G$9,TRUE) -> TRUE | L13: 2 | M13: =+COUNTIF($L$1:L13,"="&4) -> 2 | N13: Adams County, NE Soybean Basis
A14: ZSBAOHAD.CM | B14: cmdty Adams County, OH Soybean Basis Idx | C14: Soybean | D14: Basis | E14: Ohio | F14: County | G14: Adams County | H14: =+IF(LEN(home!$G$7)>0,instruments!C14=home!$G$7,TRUE) -> FALSE | I14: TRUE | J14: =+IF(LEN(home!$G$8)>0,instruments!E14=home!$G$8,TRUE) -> FALSE | K14: =+IF(LEN(home!$G$9)>0,instruments!F14=home!$G$9,TRUE) -> TRUE | L14: 2 | M14: =+COUNTIF($L$1:L14,"="&4) -> 2 | N14: Adams County, OH Soybean Basis
A15: ZSBAILAL.CM | B15: cmdty Alexander County, IL Soybean Basis Idx | C15: Soybean | D15: Basis | E15: Illinois | F15: County | G15: Alexander County | H15: =+IF(LEN(home!$G$7)>0,instruments!C15=home!$G$7,TRUE) -> FALSE | I15: TRUE | J15: =+IF(LEN(home!$G$8)>0,instruments!E15=home!$G$8,TRUE) -> FALSE | K15: =+IF(LEN(home!$G$9)>0,instruments!F15=home!$G$9,TRUE) -> TRUE | L15: 2 | M15: =+COUNTIF($L$1:L15,"="&4) -> 2 | N15: Alexander County, IL Soybean Basis
A16: ZCBAIAAL.CM | B16: cmdty Allamakee County, IA Corn Basis Idx | C16: Corn | D16: Basis | E16: Iowa | F16: County | G16: Allamakee County | H16: =+IF(LEN(home!$G$7)>0,instruments!C16=home!$G$7,TRUE) -> TRUE | I16: TRUE | J16: =+IF(LEN(home!$G$8)>0,instruments!E16=home!$G$8,TRUE) -> TRUE | K16: =+IF(LEN(home!$G$9)>0,instruments!F16=home!$G$9,TRUE) -> TRUE | L16: 4 | M16: =+COUNTIF($L$1:L16,"="&4) -> 3 | N16: Allamakee County, IA Corn Basis
A17: ZSBAIAAL.CM | B17: cmdty Allamakee County, IA Soybean Basis Idx | C17: Soybean | D17: Basis | E17: Iowa | F17: County | G17: Allamakee County | H17: =+IF(LEN(home!$G$7)>0,instruments!C17=home!$G$7,TRUE) -> FALSE | I17: TRUE | J17: =+IF(LEN(home!$G$8)>0,instruments!E17=home!$G$8,TRUE) -> TRUE | K17: =+IF(LEN(home!$G$9)>0,instruments!F17=home!$G$9,TRUE) -> TRUE | L17: 3 | M17: =+COUNTIF($L$1:L17,"="&4) -> 3 | N17: Allamakee County, IA Soybean Basis
A18: ZCBAINAL.CM | B18: cmdty Allen County, IN Corn Basis Idx | C18: Corn | D18: Basis | E18: Indiana | F18: County | G18: Allen County | H18: =+IF(LEN(home!$G$7)>0,instruments!C18=home!$G$7,TRUE) -> TRUE | I18: TRUE | J18: =+IF(LEN(home!$G$8)>0,instruments!E18=home!$G$8,TRUE) -> FALSE | K18: =+IF(LEN(home!$G$9)>0,instruments!F18=home!$G$9,TRUE) -> TRUE | L18: 3 | M18: =+COUNTIF($L$1:L18,"="&4) -> 3 | N18: Allen County, IN Corn Basis
A19: ZSBAINAL.CM | B19: cmdty Allen County, IN Soybean Basis Idx | C19: Soybean | D19: Basis | E19: Indiana | F19: County | G19: Allen County | H19: =+IF(LEN(home!$G$7)>0,instruments!C19=home!$G$7,TRUE) -> FALSE | I19: TRUE | J19: =+IF(LEN(home!$G$8)>0,instruments!E19=home!$G$8,TRUE) -> FALSE | K19: =+IF(LEN(home!$G$9)>0,instruments!F19=home!$G$9,TRUE) -> TRUE | L19: 2 | M19: =+COUNTIF($L$1:L19,"="&4) -> 3 | N19: Allen County, IN Soybean Basis
A20: ZCBAKSAL.CM | B20: cmdty Allen County, KS Corn Basis Idx | C20: Corn | D20: Basis | E20: Kansas | F20: County | G20: Allen County | H20: =+IF(LEN(home!$G$7)>0,instruments!C20=home!$G$7,TRUE) -> TRUE | I20: TRUE | J20: =+IF(LEN(home!$G$8)>0,instruments!E20=home!$G$8,TRUE) -> FALSE | K20: =+IF(LEN(home!$G$9)>0,instruments!F20=home!$G$9,TRUE) -> TRUE | L20: 3 | M20: =+COUNTIF($L$1:L20,"="&4) -> 3 | N20: Allen County, KS Corn Basis
A21: ZSBAKSAL.CM | B21: cmdty Allen County, KS Soybean Basis Idx | C21: Soybean | D21: Basis | E21: Kansas | F21: County | G21: Allen County | H21: =+IF(LEN(home!$G$7)>0,instruments!C21=home!$G$7,TRUE) -> FALSE | I21: TRUE | J21: =+IF(LEN(home!$G$8)>0,instruments!E21=home!$G$8,TRUE) -> FALSE | K21: =+IF(LEN(home!$G$9)>0,instruments!F21=home!$G$9,TRUE) -> TRUE | L21: 2 | M21: =+COUNTIF($L$1:L21,"="&4) -> 3 | N21: Allen County, KS Soybean Basis
A22: ZSBAOHAL.CM | B22: cmdty Allen County, OH Soybean Basis Idx | C22: Soybean | D22: Basis | E22: Ohio | F22: County | G22: Allen County | H22: =+IF(LEN(home!$G$7)>0,instruments!C22=home!$G$7,TRUE) -> FALSE | I22: TRUE | J22: =+IF(LEN(home!$G$8)>0,instruments!E22=home!$G$8,TRUE) -> FALSE | K22: =+IF(LEN(home!$G$9)>0,instruments!F22=home!$G$9,TRUE) -> TRUE | L22: 2 | M22: =+COUNTIF($L$1:L22,"="&4) -> 3 | N22: Allen County, OH Soybean Basis
A23: ZCBAKSAN.CM | B23: cmdty Anderson County, KS Corn Basis Idx | C23: Corn | D23: Basis | E23: Kansas | F23: County | G23: Anderson County | H23: =+IF(LEN(home!$G$7)>0,instruments!C23=home!$G$7,TRUE) -> TRUE | I23: TRUE | J23: =+IF(LEN(home!$G$8)>0,instruments!E23=home!$G$8,TRUE) -> FALSE | K23: =+IF(LEN(home!$G$9)>0,instruments!F23=home!$G$9,TRUE) -> TRUE | L23: 3 | M23: =+COUNTIF($L$1:L23,"="&4) -> 3 | N23: Anderson County, KS Corn Basis
A24: ZSBAKSAN.CM | B24: cmdty Anderson County, KS Soybean Basis Idx | C24: Soybean | D24: Basis | E24: Kansas | F24: County | G24: Anderson County | H24: =+IF(LEN(home!$G$7)>0,instruments!C24=home!$G$7,TRUE) -> FALSE | I24: TRUE | J24: =+IF(LEN(home!$G$8)>0,instruments!E24=home!$G$8,TRUE) -> FALSE | K24: =+IF(LEN(home!$G$9)>0,instruments!F24=home!$G$9,TRUE) -> TRUE | L24: 2 | M24: =+COUNTIF($L$1:L24,"="&4) -> 3 | N24: Anderson County, KS Soybean Basis
A25: ZCBAMOAN.CM | B25: cmdty Andrew County, MO Corn Basis Idx | C25: Corn | D25: Basis | E25: Missouri | F25: County | G25: Andrew County | H25: =+IF(LEN(home!$G$7)>0,instruments!C25=home!$G$7,TRUE) -> TRUE | I25: TRUE | J25: =+IF(LEN(home!$G$8)>0,instruments!E25=home!$G$8,TRUE) -> FALSE | K25: =+IF(LEN(home!$G$9)>0,instruments!F25=home!$G$9,TRUE) -> TRUE | L25: 3 | M25: =+COUNTIF($L$1:L25,"="&4) -> 3 | N25: Andrew County, MO Corn Basis
A26: ZSBAMOAN.CM | B26: cmdty Andrew County, MO Soybean Basis Idx | C26: Soybean | D26: Basis | E26: Missouri | F26: County | G26: Andrew County | H26: =+IF(LEN(home!$G$7)>0,instruments!C26=home!$G$7,TRUE) -> FALSE | I26: TRUE | J26: =+IF(LEN(home!$G$8)>0,instruments!E26=home!$G$8,TRUE) -> FALSE | K26: =+IF(LEN(home!$G$9)>0,instruments!F26=home!$G$9,TRUE) -> TRUE | L26: 2 | M26: =+COUNTIF($L$1:L26,"="&4) -> 3 | N26: Andrew County, MO Soybean Basis
A27: ZCBANEAN.CM | B27: cmdty Antelope County, NE Corn Basis Idx | C27: Corn | D27: Basis | E27: Nebraska | F27: County | G27: Antelope County | H27: =+IF(LEN(home!$G$7)>0,instruments!C27=home!$G$7,TRUE) -> TRUE | I27: TRUE | J27: =+IF(LEN(home!$G$8)>0,instruments!E27=home!$G$8,TRUE) -> FALSE | K27: =+IF(LEN(home!$G$9)>0,instruments!F27=home!$G$9,TRUE) -> TRUE | L27: 3 | M27: =+COUNTIF($L$1:L27,"="&4) -> 3 | N27: Antelope County, NE Corn Basis
A28: ZSBANEAN.CM | B28: cmdty Antelope County, NE Soybean Basis Idx | C28: Soybean | D28: Basis | E28: Nebraska | F28: County | G28: Antelope County | H28: =+IF(LEN(home!$G$7)>0,instruments!C28=home!$G$7,TRUE) -> FALSE | I28: TRUE | J28: =+IF(LEN(home!$G$8)>0,instruments!E28=home!$G$8,TRUE) -> FALSE | K28: =+IF(LEN(home!$G$9)>0,instruments!F28=home!$G$9,TRUE) -> TRUE | L28: 2 | M28: =+COUNTIF($L$1:L28,"="&4) -> 3 | N28: Antelope County, NE Soybean Basis
A29: ZSBAOHAS.CM | B29: cmdty Ashland County, OH Soybean Basis Idx | C29: Soybean | D29: Basis | E29: Ohio | F29: County | G29: Ashland County | H29: =+IF(LEN(home!$G$7)>0,instruments!C29=home!$G$7,TRUE) -> FALSE | I29: TRUE | J29: =+IF(LEN(home!$G$8)>0,instruments!E29=home!$G$8,TRUE) -> FALSE | K29: =+IF(LEN(home!$G$9)>0,instruments!F29=home!$G$9,TRUE) -> TRUE | L29: 2 | M29: =+COUNTIF($L$1:L29,"="&4) -> 3 | N29: Ashland County, OH Soybean Basis
A30: ZSBAOHAA.CM | B30: cmdty Ashtabula County, OH Soybean Basis Idx | C30: Soybean | D30: Basis | E30: Ohio | F30: County | G30: Ashtabula County | H30: =+IF(LEN(home!$G$7)>0,instruments!C30=home!$G$7,TRUE) -> FALSE | I30: TRUE | J30: =+IF(LEN(home!$G$8)>0,instruments!E30=home!$G$8,TRUE) -> FALSE | K30: =+IF(LEN(home!$G$9)>0,instruments!F30=home!$G$9,TRUE) -> TRUE | L30: 2 | M30: =+COUNTIF($L$1:L30,"="&4) -> 3 | N30: Ashtabula County, OH Soybean Basis
A31: ZCBAKSAT.CM | B31: cmdty Atchison County, KS Corn Basis Idx | C31: Corn | D31: Basis | E31: Kansas | F31: County | G31: Atchison County | H31: =+IF(LEN(home!$G$7)>0,instruments!C31=home!$G$7,TRUE) -> TRUE | I31: TRUE | J31: =+IF(LEN(home!$G$8)>0,instruments!E31=home!$G$8,TRUE) -> FALSE | K31: =+IF(LEN(home!$G$9)>0,instruments!F31=home!$G$9,TRUE) -> TRUE | L31: 3 | M31: =+COUNTIF($L$1:L31,"="&4) -> 3 | N31: Atchison County, KS Corn Basis
A32: ZSBAKSAT.CM | B32: cmdty Atchison County, KS Soybean Basis Idx | C32: Soybean | D32: Basis | E32: Kansas | F32: County | G32: Atchison County | H32: =+IF(LEN(home!$G$7)>0,instruments!C32=home!$G$7,TRUE) -> FALSE | I32: TRUE | J32: =+IF(LEN(home!$G$8)>0,instruments!E32=home!$G$8,TRUE) -> FALSE | K32: =+IF(LEN(home!$G$9)>0,instruments!F32=home!$G$9,TRUE) -> TRUE | L32: 2 | M32: =+COUNTIF($L$1:L32,"="&4) -> 3 | N32: Atchison County, KS Soybean Basis
A33: ZCBAMOAT.CM | B33: cmdty Atchison County, MO Corn Basis Idx | C33: Corn | D33: Basis | E33: Missouri | F33: County | G33: Atchison County | H33: =+IF(LEN(home!$G$7)>0,instruments!C33=home!$G$7,TRUE) -> TRUE | I33: TRUE | J33: =+IF(LEN(home!$G$8)>0,instruments!E33=home!$G$8,TRUE) -> FALSE | K33: =+IF(LEN(home!$G$9)>0,instruments!F33=home!$G$9,TRUE) -> TRUE | L33: 3 | M33: =+COUNTIF($L$1:L33,"="&4) -> 3 | N33: Atchison County, MO Corn Basis
A34: ZSBAMOAT.CM | B34: cmdty Atchison County, MO Soybean Basis Idx | C34: Soybean | D34: Basis | E34: Missouri | F34: County | G34: Atchison County | H34: =+IF(LEN(home!$G$7)>0,instruments!C34=home!$G$7,TRUE) -> FALSE | I34: TRUE | J34: =+IF(LEN(home!$G$8)>0,instruments!E34=home!$G$8,TRUE) -> FALSE | K34: =+IF(LEN(home!$G$9)>0,instruments!F34=home!$G$9,TRUE) -> TRUE | L34: 2 | M34: =+COUNTIF($L$1:L34,"="&4) -> 3 | N34: Atchison County, MO Soybean Basis
A35: ZCBAMOAU.CM | B35: cmdty Audrain County, MO Corn Basis Idx | C35: Corn | D35: Basis | E35: Missouri | F35: County | G35: Audrain County | H35: =+IF(LEN(home!$G$7)>0,instruments!C35=home!$G$7,TRUE) -> TRUE | I35: TRUE | J35: =+IF(LEN(home!$G$8)>0,instruments!E35=home!$G$8,TRUE) -> FALSE | K35: =+IF(LEN(home!$G$9)>0,instruments!F35=home!$G$9,TRUE) -> TRUE | L35: 3 | M35: =+COUNTIF($L$1:L35,"="&4) -> 3 | N35: Audrain County, MO Corn Basis
A36: ZSBAMOAU.CM | B36: cmdty Audrain County, MO Soybean Basis Idx | C36: Soybean | D36: Basis | E36: Missouri | F36: County | G36: Audrain County | H36: =+IF(LEN(home!$G$7)>0,instruments!C36=home!$G$7,TRUE) -> FALSE | I36: TRUE | J36: =+IF(LEN(home!$G$8)>0,instruments!E36=home!$G$8,TRUE) -> FALSE | K36: =+IF(LEN(home!$G$9)>0,instruments!F36=home!$G$9,TRUE) -> TRUE | L36: 2 | M36: =+COUNTIF($L$1:L36,"="&4) -> 3 | N36: Audrain County, MO Soybean Basis
A37: ZCBAIAAU.CM | B37: cmdty Audubon County, IA Corn Basis Idx | C37: Corn | D37: Basis | E37: Iowa | F37: County | G37: Audubon County | H37: =+IF(LEN(home!$G$7)>0,instruments!C37=home!$G$7,TRUE) -> TRUE | I37: TRUE | J37: =+IF(LEN(home!$G$8)>0,instruments!E37=home!$G$8,TRUE) -> TRUE | K37: =+IF(LEN(home!$G$9)>0,instruments!F37=home!$G$9,TRUE) -> TRUE | L37: 4 | M37: =+COUNTIF($L$1:L37,"="&4) -> 4 | N37: Audubon County, IA Corn Basis
A38: ZSBAIAAU.CM | B38: cmdty Audubon County, IA Soybean Basis Idx | C38: Soybean | D38: Basis | E38: Iowa | F38: County | G38: Audubon County | H38: =+IF(LEN(home!$G$7)>0,instruments!C38=home!$G$7,TRUE) -> FALSE | I38: TRUE | J38: =+IF(LEN(home!$G$8)>0,instruments!E38=home!$G$8,TRUE) -> TRUE | K38: =+IF(LEN(home!$G$9)>0,instruments!F38=home!$G$9,TRUE) -> TRUE | L38: 3 | M38: =+COUNTIF($L$1:L38,"="&4) -> 4 | N38: Audubon County, IA Soybean Basis
A39: ZSBAOHAU.CM | B39: cmdty Auglaize County, OH Soybean Basis Idx | C39: Soybean | D39: Basis | E39: Ohio | F39: County | G39: Auglaize County | H39: =+IF(LEN(home!$G$7)>0,instruments!C39=home!$G$7,TRUE) -> FALSE | I39: TRUE | J39: =+IF(LEN(home!$G$8)>0,instruments!E39=home!$G$8,TRUE) -> FALSE | K39: =+IF(LEN(home!$G$9)>0,instruments!F39=home!$G$9,TRUE) -> TRUE | L39: 2 | M39: =+COUNTIF($L$1:L39,"="&4) -> 4 | N39: Auglaize County, OH Soybean Basis
A40: ZCBASDAU.CM | B40: cmdty Aurora County, SD Corn Basis Idx | C40: Corn | D40: Basis | E40: South Dakota | F40: County | G40: Aurora County | H40: =+IF(LEN(home!$G$7)>0,instruments!C40=home!$G$7,TRUE) -> TRUE | I40: TRUE | J40: =+IF(LEN(home!$G$8)>0,instruments!E40=home!$G$8,TRUE) -> FALSE | K40: =+IF(LEN(home!$G$9)>0,instruments!F40=home!$G$9,TRUE) -> TRUE | L40: 3 | M40: =+COUNTIF($L$1:L40,"="&4) -> 4 | N40: Aurora County, SD Corn Basis
A41: ZSBASDAU.CM | B41: cmdty Aurora County, SD Soybean Basis Idx | C41: Soybean | D41: Basis | E41: South Dakota | F41: County | G41: Aurora County | H41: =+IF(LEN(home!$G$7)>0,instruments!C41=home!$G$7,TRUE) -> FALSE | I41: TRUE | J41: =+IF(LEN(home!$G$8)>0,instruments!E41=home!$G$8,TRUE) -> FALSE | K41: =+IF(LEN(home!$G$9)>0,instruments!F41=home!$G$9,TRUE) -> TRUE | L41: 2 | M41: =+COUNTIF($L$1:L41,"="&4) -> 4 | N41: Aurora County, SD Soybean Basis
A42: ZCBAKSBA.CM | B42: cmdty Barber County, KS Corn Basis Idx | C42: Corn | D42: Basis | E42: Kansas | F42: County | G42: Barber County | H42: =+IF(LEN(home!$G$7)>0,instruments!C42=home!$G$7,TRUE) -> TRUE | I42: TRUE | J42: =+IF(LEN(home!$G$8)>0,instruments!E42=home!$G$8,TRUE) -> FALSE | K42: =+IF(LEN(home!$G$9)>0,instruments!F42=home!$G$9,TRUE) -> TRUE | L42: 3 | M42: =+COUNTIF($L$1:L42,"="&4) -> 4 | N42: Barber County, KS Corn Basis
A43: ZSBAKSBA.CM | B43: cmdty Barber County, KS Soybean Basis Idx | C43: Soybean | D43: Basis | E43: Kansas | F43: County | G43: Barber County | H43: =+IF(LEN(home!$G$7)>0,instruments!C43=home!$G$7,TRUE) -> FALSE | I43: TRUE | J43: =+IF(LEN(home!$G$8)>0,instruments!E43=home!$G$8,TRUE) -> FALSE | K43: =+IF(LEN(home!$G$9)>0,instruments!F43=home!$G$9,TRUE) -> TRUE | L43: 2 | M43: =+COUNTIF($L$1:L43,"="&4) -> 4 | N43: Barber County, KS Soybean Basis
A44: ZSBANDBA.CM | B44: cmdty Barnes County, ND Soybean Basis Idx | C44: Soybean | D44: Basis | E44: North Dakota | F44: County | G44: Barnes County | H44: =+IF(LEN(home!$G$7)>0,instruments!C44=home!$G$7,TRUE) -> FALSE | I44: TRUE | J44: =+IF(LEN(home!$G$8)>0,instruments!E44=home!$G$8,TRUE) -> FALSE | K44: =+IF(LEN(home!$G$9)>0,instruments!F44=home!$G$9,TRUE) -> TRUE | L44: 2 | M44: =+COUNTIF($L$1:L44,"="&4) -> 4 | N44: Barnes County, ND Soybean Basis
A45: ZCBAMOBA.CM | B45: cmdty Barry County, MO Corn Basis Idx | C45: Corn | D45: Basis | E45: Missouri | F45: County | G45: Barry County | H45: =+IF(LEN(home!$G$7)>0,instruments!C45=home!$G$7,TRUE) -> TRUE | I45: TRUE | J45: =+IF(LEN(home!$G$8)>0,instruments!E45=home!$G$8,TRUE) -> FALSE | K45: =+IF(LEN(home!$G$9)>0,instruments!F45=home!$G$9,TRUE) -> TRUE | L45: 3 | M45: =+COUNTIF($L$1:L45,"="&4) -> 4 | N45: Barry County, MO Corn Basis
A46: ZSBAMOBA.CM | B46: cmdty Barry County, MO Soybean Basis Idx | C46: Soybean | D46: Basis | E46: Missouri | F46: County | G46: Barry County | H46: =+IF(LEN(home!$G$7)>0,instruments!C46=home!$G$7,TRUE) -> FALSE | I46: TRUE | J46: =+IF(LEN(home!$G$8)>0,instruments!E46=home!$G$8,TRUE) -> FALSE | K46: =+IF(LEN(home!$G$9)>0,instruments!F46=home!$G$9,TRUE) -> TRUE | L46: 2 | M46: =+COUNTIF($L$1:L46,"="&4) -> 4 | N46: Barry County, MO Soybean Basis
A47: ZCBAINBA.CM | B47: cmdty Bartholomew County, IN Corn Basis Idx | C47: Corn | D47: Basis | E47: Indiana | F47: County | G47: Bartholomew County | H47: =+IF(LEN(home!$G$7)>0,instruments!C47=home!$G$7,TRUE) -> TRUE | I47: TRUE | J47: =+IF(LEN(home!$G$8)>0,instruments!E47=home!$G$8,TRUE) -> FALSE | K47: =+IF(LEN(home!$G$9)>0,instruments!F47=home!$G$9,TRUE) -> TRUE | L47: 3 | M47: =+COUNTIF($L$1:L47,"="&4) -> 4 | N47: Bartholomew County, IN Corn Basis
A48: ZSBAINBA.CM | B48: cmdty Bartholomew County, IN Soybean Basis Idx | C48: Soybean | D48: Basis | E48: Indiana | F48: County | G48: Bartholomew County | H48: =+IF(LEN(home!$G$7)>0,instruments!C48=home!$G$7,TRUE) -> FALSE | I48: TRUE | J48: =+IF(LEN(home!$G$8)>0,instruments!E48=home!$G$8,TRUE) -> FALSE | K48: =+IF(LEN(home!$G$9)>0,instruments!F48=home!$G$9,TRUE) -> TRUE | L48: 2 | M48: =+COUNTIF($L$1:L48,"="&4) -> 4 | N48: Bartholomew County, IN Soybean Basis
A49: ZCBAKSBB.CM | B49: cmdty Barton County, KS Corn Basis Idx | C49: Corn | D49: Basis | E49: Kansas | F49: County | G49: Barton County | H49: =+IF(LEN(home!$G$7)>0,instruments!C49=home!$G$7,TRUE) -> TRUE | I49: TRUE | J49: =+IF(LEN(home!$G$8)>0,instruments!E49=home!$G$8,TRUE) -> FALSE | K49: =+IF(LEN(home!$G$9)>0,instruments!F49=home!$G$9,TRUE) -> TRUE | L49: 3 | M49: =+COUNTIF($L$1:L49,"="&4) -> 4 | N49: Barton County, KS Corn Basis
A50: ZSBAKSBB.CM | B50: cmdty Barton County, KS Soybean Basis Idx | C50: Soybean | D50: Basis | E50: Kansas | F50: County | G50: Barton County | H50: =+IF(LEN(home!$G$7)>0,instruments!C50=home!$G$7,TRUE) -> FALSE | I50: TRUE | J50: =+IF(LEN(home!$G$8)>0,instruments!E50=home!$G$8,TRUE) -> FALSE | K50: =+IF(LEN(home!$G$9)>0,instruments!F50=home!$G$9,TRUE) -> TRUE | L50: 2 | M50: =+COUNTIF($L$1:L50,"="&4) -> 4 | N50: Barton County, KS Soybean Basis
A51: ZCBAMOBB.CM | B51: cmdty Barton County, MO Corn Basis Idx | C51: Corn | D51: Basis | E51: Missouri | F51: County | G51: Barton County | H51: =+IF(LEN(home!$G$7)>0,instruments!C51=home!$G$7,TRUE) -> TRUE | I51: TRUE | J51: =+IF(LEN(home!$G$8)>0,instruments!E51=home!$G$8,TRUE) -> FALSE | K51: =+IF(LEN(home!$G$9)>0,instruments!F51=home!$G$9,TRUE) -> TRUE | L51: 3 | M51: =+COUNTIF($L$1:L51,"="&4) -> 4 | N51: Barton County, MO Corn Basis
A52: ZSBAMOBB.CM | B52: cmdty Barton County, MO Soybean Basis Idx | C52: Soybean | D52: Basis | E52: Missouri | F52: County | G52: Barton County | H52: =+IF(LEN(home!$G$7)>0,instruments!C52=home!$G$7,TRUE) -> FALSE | I52: TRUE | J52: =+IF(LEN(home!$G$8)>0,instruments!E52=home!$G$8,TRUE) -> FALSE | K52: =+IF(LEN(home!$G$9)>0,instruments!F52=home!$G$9,TRUE) -> TRUE | L52: 2 | M52: =+COUNTIF($L$1:L52,"="&4) -> 4 | N52: Barton County, MO Soybean Basis
A53: ZCBAMOBC.CM | B53: cmdty Bates County, MO Corn Basis Idx | C53: Corn | D53: Basis | E53: Missouri | F53: County | G53: Bates County | H53: =+IF(LEN(home!$G$7)>0,instruments!C53=home!$G$7,TRUE) -> TRUE | I53: TRUE | J53: =+IF(LEN(home!$G$8)>0,instruments!E53=home!$G$8,TRUE) -> FALSE | K53: =+IF(LEN(home!$G$9)>0,instruments!F53=home!$G$9,TRUE) -> TRUE | L53: 3 | M53: =+COUNTIF($L$1:L53,"="&4) -> 4 | N53: Bates County, MO Corn Basis
A54: ZSBAMOBC.CM | B54: cmdty Bates County, MO Soybean Basis Idx | C54: Soybean | D54: Basis | E54: Missouri | F54: County | G54: Bates County | H54: =+IF(LEN(home!$G$7)>0,instruments!C54=home!$G$7,TRUE) -> FALSE | I54: TRUE | J54: =+IF(LEN(home!$G$8)>0,instruments!E54=home!$G$8,TRUE) -> FALSE | K54: =+IF(LEN(home!$G$9)>0,instruments!F54=home!$G$9,TRUE) -> TRUE | L54: 2 | M54: =+COUNTIF($L$1:L54,"="&4) -> 4 | N54: Bates County, MO Soybean Basis
A55: ZCBASDBE.CM | B55: cmdty Beadle County, SD Corn Basis Idx | C55: Corn | D55: Basis | E55: South Dakota | F55: County | G55: Beadle County | H55: =+IF(LEN(home!$G$7)>0,instruments!C55=home!$G$7,TRUE) -> TRUE | I55: TRUE | J55: =+IF(LEN(home!$G$8)>0,instruments!E55=home!$G$8,TRUE) -> FALSE | K55: =+IF(LEN(home!$G$9)>0,instruments!F55=home!$G$9,TRUE) -> TRUE | L55: 3 | M55: =+COUNTIF($L$1:L55,"="&4) -> 4 | N55: Beadle County, SD Corn Basis
A56: ZSBASDBE.CM | B56: cmdty Beadle County, SD Soybean Basis Idx | C56: Soybean | D56: Basis | E56: South Dakota | F56: County | G56: Beadle County | H56: =+IF(LEN(home!$G$7)>0,instruments!C56=home!$G$7,TRUE) -> FALSE | I56: TRUE | J56: =+IF(LEN(home!$G$8)>0,instruments!E56=home!$G$8,TRUE) -> FALSE | K56: =+IF(LEN(home!$G$9)>0,instruments!F56=home!$G$9,TRUE) -> TRUE | L56: 2 | M56: =+COUNTIF($L$1:L56,"="&4) -> 4 | N56: Beadle County, SD Soybean Basis
A57: ZCBAMNBE.CM | B57: cmdty Becker County, MN Corn Basis Idx | C57: Corn | D57: Basis | E57: Minnesota | F57: County | G57: Becker County | H57: =+IF(LEN(home!$G$7)>0,instruments!C57=home!$G$7,TRUE) -> TRUE | I57: TRUE | J57: =+IF(LEN(home!$G$8)>0,instruments!E57=home!$G$8,TRUE) -> FALSE | K57: =+IF(LEN(home!$G$9)>0,instruments!F57=home!$G$9,TRUE) -> TRUE | L57: 3 | M57: =+COUNTIF($L$1:L57,"="&4) -> 4 | N57: Becker County, MN Corn Basis
A58: ZSBAMNBE.CM | B58: cmdty Becker County, MN Soybean Basis Idx | C58: Soybean | D58: Basis | E58: Minnesota | F58: County | G58: Becker County | H58: =+IF(LEN(home!$G$7)>0,instruments!C58=home!$G$7,TRUE) -> FALSE | I58: TRUE | J58: =+IF(LEN(home!$G$8)>0,instruments!E58=home!$G$8,TRUE) -> FALSE | K58: =+IF(LEN(home!$G$9)>0,instruments!F58=home!$G$9,TRUE) -> TRUE | L58: 2 | M58: =+COUNTIF($L$1:L58,"="&4) -> 4 | N58: Becker County, MN Soybean Basis
A59: ZSBAMNBA.CM | B59: cmdty Beltrami County, MN Soybean Basis Idx | C59: Soybean | D59: Basis | E59: Minnesota | F59: County | G59: Beltrami County | H59: =+IF(LEN(home!$G$7)>0,instruments!C59=home!$G$7,TRUE) -> FALSE | I59: TRUE | J59: =+IF(LEN(home!$G$8)>0,instruments!E59=home!$G$8,TRUE) -> FALSE | K59: =+IF(LEN(home!$G$9)>0,instruments!F59=home!$G$9,TRUE) -> TRUE | L59: 2 | M59: =+COUNTIF($L$1:L59,"="&4) -> 4 | N59: Beltrami County, MN Soybean Basis
A60: ZCBASDBA.CM | B60: cmdty Bennett County, SD Corn Basis Idx | C60: Corn | D60: Basis | E60: South Dakota | F60: County | G60: Bennett County | H60: =+IF(LEN(home!$G$7)>0,instruments!C60=home!$G$7,TRUE) -> TRUE | I60: TRUE | J60: =+IF(LEN(home!$G$8)>0,instruments!E60=home!$G$8,TRUE) -> FALSE | K60: =+IF(LEN(home!$G$9)>0,instruments!F60=home!$G$9,TRUE) -> TRUE | L60: 3 | M60: =+COUNTIF($L$1:L60,"="&4) -> 4 | N60: Bennett County, SD Corn Basis
A61: ZSBANDBE.CM | B61: cmdty Benson County, ND Soybean Basis Idx | C61: Soybean | D61: Basis | E61: North Dakota | F61: County | G61: Benson County | H61: =+IF(LEN(home!$G$7)>0,instruments!C61=home!$G$7,TRUE) -> FALSE | I61: TRUE | J61: =+IF(LEN(home!$G$8)>0,instruments!E61=home!$G$8,TRUE) -> FALSE | K61: =+IF(LEN(home!$G$9)>0,instruments!F61=home!$G$9,TRUE) -> TRUE | L61: 2 | M61: =+COUNTIF($L$1:L61,"="&4) -> 4 | N61: Benson County, ND Soybean Basis
A62: ZCBAIABE.CM | B62: cmdty Benton County, IA Corn Basis Idx | C62: Corn | D62: Basis | E62: Iowa | F62: County | G62: Benton County | H62: =+IF(LEN(home!$G$7)>0,instruments!C62=home!$G$7,TRUE) -> TRUE | I62: TRUE | J62: =+IF(LEN(home!$G$8)>0,instruments!E62=home!$G$8,TRUE) -> TRUE | K62: =+IF(LEN(home!$G$9)>0,instruments!F62=home!$G$9,TRUE) -> TRUE | L62: 4 | M62: =+COUNTIF($L$1:L62,"="&4) -> 5 | N62: Benton County, IA Corn Basis
A63: ZSBAIABE.CM | B63: cmdty Benton County, IA Soybean Basis Idx | C63: Soybean | D63: Basis | E63: Iowa | F63: County | G63: Benton County | H63: =+IF(LEN(home!$G$7)>0,instruments!C63=home!$G$7,TRUE) -> FALSE | I63: TRUE | J63: =+IF(LEN(home!$G$8)>0,instruments!E63=home!$G$8,TRUE) -> TRUE | K63: =+IF(LEN(home!$G$9)>0,instruments!F63=home!$G$9,TRUE) -> TRUE | L63: 3 | M63: =+COUNTIF($L$1:L63,"="&4) -> 5 | N63: Benton County, IA Soybean Basis
A64: ZCBAINBE.CM | B64: cmdty Benton County, IN Corn Basis Idx | C64: Corn | D64: Basis | E64: Indiana | F64: County | G64: Benton County | H64: =+IF(LEN(home!$G$7)>0,instruments!C64=home!$G$7,TRUE) -> TRUE | I64: TRUE | J64: =+IF(LEN(home!$G$8)>0,instruments!E64=home!$G$8,TRUE) -> FALSE | K64: =+IF(LEN(home!$G$9)>0,instruments!F64=home!$G$9,TRUE) -> TRUE | L64: 3 | M64: =+COUNTIF($L$1:L64,"="&4) -> 5 | N64: Benton County, IN Corn Basis
A65: ZSBAINBE.CM | B65: cmdty Benton County, IN Soybean Basis Idx | C65: Soybean | D65: Basis | E65: Indiana | F65: County | G65: Benton County | H65: =+IF(LEN(home!$G$7)>0,instruments!C65=home!$G$7,TRUE) -> FALSE | I65: TRUE | J65: =+IF(LEN(home!$G$8)>0,instruments!E65=home!$G$8,TRUE) -> FALSE | K65: =+IF(LEN(home!$G$9)>0,instruments!F65=home!$G$9,TRUE) -> TRUE | L65: 2 | M65: =+COUNTIF($L$1:L65,"="&4) -> 5 | N65: Benton County, IN Soybean Basis
A66: ZCBAMNBB.CM | B66: cmdty Benton County, MN Corn Basis Idx | C66: Corn | D66: Basis | E66: Minnesota | F66: County | G66: Benton County | H66: =+IF(LEN(home!$G$7)>0,instruments!C66=home!$G$7,TRUE) -> TRUE | I66: TRUE | J66: =+IF(LEN(home!$G$8)>0,instruments!E66=home!$G$8,TRUE) -> FALSE | K66: =+IF(LEN(home!$G$9)>0,instruments!F66=home!$G$9,TRUE) -> TRUE | L66: =+COUNTIF(H66:K66,TRUE) -> 3 | M66: =+COUNTIF($L$1:L66,"="&4) -> 5 | N66: Benton County, MN Corn Basis
A67: ZCBAMNBI.CM | B67: cmdty Big Stone County, MN Corn Basis Idx | C67: Corn | D67: Basis | E67: Minnesota | F67: County | G67: Big Stone County | H67: =+IF(LEN(home!$G$7)>0,instruments!C67=home!$G$7,TRUE) -> TRUE | I67: =+D67="Basis" -> TRUE | J67: =+IF(LEN(home!$G$8)>0,instruments!E67=home!$G$8,TRUE) -> FALSE | K67: =+IF(LEN(home!$G$9)>0,instruments!F67=home!$G$9,TRUE) -> TRUE | L67: 3 | M67: =+COUNTIF($L$1:L67,"="&4) -> 5 | N67: =+MID(B67,FIND(" ",B67,1)+1,LEN(B67)-FIND(" ",B67,1)-4) -> Big Stone County, MN Corn Basis
A68: ZSBAMNBI.CM | B68: cmdty Big Stone County, MN Soybean Basis Idx | C68: Soybean | D68: Basis | E68: Minnesota | F68: County | G68: Big Stone County | H68: =+IF(LEN(home!$G$7)>0,instruments!C68=home!$G$7,TRUE) -> FALSE | I68: TRUE | J68: =+IF(LEN(home!$G$8)>0,instruments!E68=home!$G$8,TRUE) -> FALSE | K68: =+IF(LEN(home!$G$9)>0,instruments!F68=home!$G$9,TRUE) -> TRUE | L68: 2 | M68: =+COUNTIF($L$1:L68,"="&4) -> 5 | N68: Big Stone County, MN Soybean Basis
A69: ZCBAINBL.CM | B69: cmdty Blackford County, IN Corn Basis Idx | C69: Corn | D69: Basis | E69: Indiana | F69: County | G69: Blackford County | H69: =+IF(LEN(home!$G$7)>0,instruments!C69=home!$G$7,TRUE) -> TRUE | I69: TRUE | J69: =+IF(LEN(home!$G$8)>0,instruments!E69=home!$G$8,TRUE) -> FALSE | K69: =+IF(LEN(home!$G$9)>0,instruments!F69=home!$G$9,TRUE) -> TRUE | L69: 3 | M69: =+COUNTIF($L$1:L69,"="&4) -> 5 | N69: Blackford County, IN Corn Basis
A70: ZSBAINBL.CM | B70: cmdty Blackford County, IN Soybean Basis Idx | C70: Soybean | D70: Basis | E70: Indiana | F70: County | G70: Blackford County | H70: =+IF(LEN(home!$G$7)>0,instruments!C70=home!$G$7,TRUE) -> FALSE | I70: TRUE | J70: =+IF(LEN(home!$G$8)>0,instruments!E70=home!$G$8,TRUE) -> FALSE | K70: =+IF(LEN(home!$G$9)>0,instruments!F70=home!$G$9,TRUE) -> TRUE | L70: 2 | M70: =+COUNTIF($L$1:L70,"="&4) -> 5 | N70: Blackford County, IN Soybean Basis
A71: ZCBAIABL.CM | B71: cmdty Black Hawk County, IA Corn Basis Idx | C71: Corn | D71: Basis | E71: Iowa | F71: County | G71: Black Hawk County | H71: =+IF(LEN(home!$G$7)>0,instruments!C71=home!$G$7,TRUE) -> TRUE | I71: TRUE | J71: =+IF(LEN(home!$G$8)>0,instruments!E71=home!$G$8,TRUE) -> TRUE | K71: =+IF(LEN(home!$G$9)>0,instruments!F71=home!$G$9,TRUE) -> TRUE | L71: 4 | M71: =+COUNTIF($L$1:L71,"="&4) -> 6 | N71: Black Hawk County, IA Corn Basis
A72: ZSBAIABL.CM | B72: cmdty Black Hawk County, IA Soybean Basis Idx | C72: Soybean | D72: Basis | E72: Iowa | F72: County | G72: Black Hawk County | H72: =+IF(LEN(home!$G$7)>0,instruments!C72=home!$G$7,TRUE) -> FALSE | I72: TRUE | J72: =+IF(LEN(home!$G$8)>0,instruments!E72=home!$G$8,TRUE) -> TRUE | K72: =+IF(LEN(home!$G$9)>0,instruments!F72=home!$G$9,TRUE) -> TRUE | L72: 3 | M72: =+COUNTIF($L$1:L72,"="&4) -> 6 | N72: Black Hawk County, IA Soybean Basis
A73: ZCBAMNBL.CM | B73: cmdty Blue Earth County, MN Corn Basis Idx | C73: Corn | D73: Basis | E73: Minnesota | F73: County | G73: Blue Earth County | H73: =+IF(LEN(home!$G$7)>0,instruments!C73=home!$G$7,TRUE) -> TRUE | I73: TRUE | J73: =+IF(LEN(home!$G$8)>0,instruments!E73=home!$G$8,TRUE) -> FALSE | K73: =+IF(LEN(home!$G$9)>0,instruments!F73=home!$G$9,TRUE) -> TRUE | L73: 3 | M73: =+COUNTIF($L$1:L73,"="&4) -> 6 | N73: Blue Earth County, MN Corn Basis
A74: ZSBAMNBL.CM | B74: cmdty Blue Earth County, MN Soybean Basis Idx | C74: Soybean | D74: Basis | E74: Minnesota | F74: County | G74: Blue Earth County | H74: =+IF(LEN(home!$G$7)>0,instruments!C74=home!$G$7,TRUE) -> FALSE | I74: TRUE | J74: =+IF(LEN(home!$G$8)>0,instruments!E74=home!$G$8,TRUE) -> FALSE | K74: =+IF(LEN(home!$G$9)>0,instruments!F74=home!$G$9,TRUE) -> TRUE | L74: 2 | M74: =+COUNTIF($L$1:L74,"="&4) -> 6 | N74: Blue Earth County, MN Soybean Basis
A75: ZCBASDBO.CM | B75: cmdty Bon Homme County, SD Corn Basis Idx | C75: Corn | D75: Basis | E75: South Dakota | F75: County | G75: Bon Homme County | H75: =+IF(LEN(home!$G$7)>0,instruments!C75=home!$G$7,TRUE) -> TRUE | I75: TRUE | J75: =+IF(LEN(home!$G$8)>0,instruments!E75=home!$G$8,TRUE) -> FALSE | K75: =+IF(LEN(home!$G$9)>0,instruments!F75=home!$G$9,TRUE) -> TRUE | L75: 3 | M75: =+COUNTIF($L$1:L75,"="&4) -> 6 | N75: Bon Homme County, SD Corn Basis
A76: ZSBASDBO.CM | B76: cmdty Bon Homme County, SD Soybean Basis Idx | C76: Soybean | D76: Basis | E76: South Dakota | F76: County | G76: Bon Homme County | H76: =+IF(LEN(home!$G$7)>0,instruments!C76=home!$G$7,TRUE) -> FALSE | I76: TRUE | J76: =+IF(LEN(home!$G$8)>0,instruments!E76=home!$G$8,TRUE) -> FALSE | K76: =+IF(LEN(home!$G$9)>0,instruments!F76=home!$G$9,TRUE) -> TRUE | L76: 2 | M76: =+COUNTIF($L$1:L76,"="&4) -> 6 | N76: Bon Homme County, SD Soybean Basis
A77: ZCBAIABO.CM | B77: cmdty Boone County, IA Corn Basis Idx | C77: Corn | D77: Basis | E77: Iowa | F77: County | G77: Boone County | H77: =+IF(LEN(home!$G$7)>0,instruments!C77=home!$G$7,TRUE) -> TRUE | I77: TRUE | J77: =+IF(LEN(home!$G$8)>0,instruments!E77=home!$G$8,TRUE) -> TRUE | K77: =+IF(LEN(home!$G$9)>0,instruments!F77=home!$G$9,TRUE) -> TRUE | L77: 4 | M77: =+COUNTIF($L$1:L77,"="&4) -> 7 | N77: Boone County, IA Corn Basis
A78: ZSBAIABO.CM | B78: cmdty Boone County, IA Soybean Basis Idx | C78: Soybean | D78: Basis | E78: Iowa | F78: County | G78: Boone County | H78: =+IF(LEN(home!$G$7)>0,instruments!C78=home!$G$7,TRUE) -> FALSE | I78: TRUE | J78: =+IF(LEN(home!$G$8)>0,instruments!E78=home!$G$8,TRUE) -> TRUE | K78: =+IF(LEN(home!$G$9)>0,instruments!F78=home!$G$9,TRUE) -> TRUE | L78: 3 | M78: =+COUNTIF($L$1:L78,"="&4) -> 7 | N78: Boone County, IA Soybean Basis
A79: ZCBAILBA.CM | B79: cmdty Boone County, IL Corn Basis Idx | C79: Corn | D79: Basis | E79: Illinois | F79: County | G79: Boone County | H79: =+IF(LEN(home!$G$7)>0,instruments!C79=home!$G$7,TRUE) -> TRUE | I79: TRUE | J79: =+IF(LEN(home!$G$8)>0,instruments!E79=home!$G$8,TRUE) -> FALSE | K79: =+IF(LEN(home!$G$9)>0,instruments!F79=home!$G$9,TRUE) -> TRUE | L79: 3 | M79: =+COUNTIF($L$1:L79,"="&4) -> 7 | N79: Boone County, IL Corn Basis
A80: ZSBAILBA.CM | B80: cmdty Boone County, IL Soybean Basis Idx | C80: Soybean | D80: Basis | E80: Illinois | F80: County | G80: Boone County | H80: =+IF(LEN(home!$G$7)>0,instruments!C80=home!$G$7,TRUE) -> FALSE | I80: TRUE | J80: =+IF(LEN(home!$G$8)>0,instruments!E80=home!$G$8,TRUE) -> FALSE | K80: =+IF(LEN(home!$G$9)>0,instruments!F80=home!$G$9,TRUE) -> TRUE | L80: 2 | M80: =+COUNTIF($L$1:L80,"="&4) -> 7 | N80: Boone County, IL Soybean Basis
A81: ZCBAMOBD.CM | B81: cmdty Boone County, MO Corn Basis Idx | C81: Corn | D81: Basis | E81: Missouri | F81: County | G81: Boone County | H81: =+IF(LEN(home!$G$7)>0,instruments!C81=home!$G$7,TRUE) -> TRUE | I81: TRUE | J81: =+IF(LEN(home!$G$8)>0,instruments!E81=home!$G$8,TRUE) -> FALSE | K81: =+IF(LEN(home!$G$9)>0,instruments!F81=home!$G$9,TRUE) -> TRUE | L81: 3 | M81: =+COUNTIF($L$1:L81,"="&4) -> 7 | N81: Boone County, MO Corn Basis
A82: ZSBAMOBD.CM | B82: cmdty Boone County, MO Soybean Basis Idx | C82: Soybean | D82: Basis | E82: Missouri | F82: County | G82: Boone County | H82: =+IF(LEN(home!$G$7)>0,instruments!C82=home!$G$7,TRUE) -> FALSE | I82: TRUE | J82: =+IF(LEN(home!$G$8)>0,instruments!E82=home!$G$8,TRUE) -> FALSE | K82: =+IF(LEN(home!$G$9)>0,instruments!F82=home!$G$9,TRUE) -> TRUE | L82: 2 | M82: =+COUNTIF($L$1:L82,"="&4) -> 7 | N82: Boone County, MO Soybean Basis
A83: ZCBANEBO.CM | B83: cmdty Boone County, NE Corn Basis Idx | C83: Corn | D83: Basis | E83: Nebraska | F83: County | G83: Boone County | H83: =+IF(LEN(home!$G$7)>0,instruments!C83=home!$G$7,TRUE) -> TRUE | I83: TRUE | J83: =+IF(LEN(home!$G$8)>0,instruments!E83=home!$G$8,TRUE) -> FALSE | K83: =+IF(LEN(home!$G$9)>0,instruments!F83=home!$G$9,TRUE) -> TRUE | L83: 3 | M83: =+COUNTIF($L$1:L83,"="&4) -> 7 | N83: Boone County, NE Corn Basis
A84: ZSBANEBO.CM | B84: cmdty Boone County, NE Soybean Basis Idx | C84: Soybean | D84: Basis | E84: Nebraska | F84: County | G84: Boone County | H84: =+IF(LEN(home!$G$7)>0,instruments!C84=home!$G$7,TRUE) -> FALSE | I84: TRUE | J84: =+IF(LEN(home!$G$8)>0,instruments!E84=home!$G$8,TRUE) -> FALSE | K84: =+IF(LEN(home!$G$9)>0,instruments!F84=home!$G$9,TRUE) -> TRUE | L84: 2 | M84: =+COUNTIF($L$1:L84,"="&4) -> 7 | N84: Boone County, NE Soybean Basis
A85: ZSBANDBO.CM | B85: cmdty Bottineau County, ND Soybean Basis Idx | C85: Soybean | D85: Basis | E85: North Dakota | F85: County | G85: Bottineau County | H85: =+IF(LEN(home!$G$7)>0,instruments!C85=home!$G$7,TRUE) -> FALSE | I85: TRUE | J85: =+IF(LEN(home!$G$8)>0,instruments!E85=home!$G$8,TRUE) -> FALSE | K85: =+IF(LEN(home!$G$9)>0,instruments!F85=home!$G$9,TRUE) -> TRUE | L85: 2 | M85: =+COUNTIF($L$1:L85,"="&4) -> 7 | N85: Bottineau County, ND Soybean Basis
A86: ZCBAKSBO.CM | B86: cmdty Bourbon County, KS Corn Basis Idx | C86: Corn | D86: Basis | E86: Kansas | F86: County | G86: Bourbon County | H86: =+IF(LEN(home!$G$7)>0,instruments!C86=home!$G$7,TRUE) -> TRUE | I86: TRUE | J86: =+IF(LEN(home!$G$8)>0,instruments!E86=home!$G$8,TRUE) -> FALSE | K86: =+IF(LEN(home!$G$9)>0,instruments!F86=home!$G$9,TRUE) -> TRUE | L86: 3 | M86: =+COUNTIF($L$1:L86,"="&4) -> 7 | N86: Bourbon County, KS Corn Basis
A87: ZSBAKSBO.CM | B87: cmdty Bourbon County, KS Soybean Basis Idx | C87: Soybean | D87: Basis | E87: Kansas | F87: County | G87: Bourbon County | H87: =+IF(LEN(home!$G$7)>0,instruments!C87=home!$G$7,TRUE) -> FALSE | I87: TRUE | J87: =+IF(LEN(home!$G$8)>0,instruments!E87=home!$G$8,TRUE) -> FALSE | K87: =+IF(LEN(home!$G$9)>0,instruments!F87=home!$G$9,TRUE) -> TRUE | L87: 2 | M87: =+COUNTIF($L$1:L87,"="&4) -> 7 | N87: Bourbon County, KS Soybean Basis
A88: ZCBAIABR.CM | B88: cmdty Bremer County, IA Corn Basis Idx | C88: Corn | D88: Basis | E88: Iowa | F88: County | G88: Bremer County | H88: =+IF(LEN(home!$G$7)>0,instruments!C88=home!$G$7,TRUE) -> TRUE | I88: TRUE | J88: =+IF(LEN(home!$G$8)>0,instruments!E88=home!$G$8,TRUE) -> TRUE | K88: =+IF(LEN(home!$G$9)>0,instruments!F88=home!$G$9,TRUE) -> TRUE | L88: 4 | M88: =+COUNTIF($L$1:L88,"="&4) -> 8 | N88: Bremer County, IA Corn Basis
A89: ZSBAIABR.CM | B89: cmdty Bremer County, IA Soybean Basis Idx | C89: Soybean | D89: Basis | E89: Iowa | F89: County | G89: Bremer County | H89: =+IF(LEN(home!$G$7)>0,instruments!C89=home!$G$7,TRUE) -> FALSE | I89: TRUE | J89: =+IF(LEN(home!$G$8)>0,instruments!E89=home!$G$8,TRUE) -> TRUE | K89: =+IF(LEN(home!$G$9)>0,instruments!F89=home!$G$9,TRUE) -> TRUE | L89: 3 | M89: =+COUNTIF($L$1:L89,"="&4) -> 8 | N89: Bremer County, IA Soybean Basis
A90: ZCBASDBR.CM | B90: cmdty Brookings County, SD Corn Basis Idx | C90: Corn | D90: Basis | E90: South Dakota | F90: County | G90: Brookings County | H90: =+IF(LEN(home!$G$7)>0,instruments!C90=home!$G$7,TRUE) -> TRUE | I90: TRUE | J90: =+IF(LEN(home!$G$8)>0,instruments!E90=home!$G$8,TRUE) -> FALSE | K90: =+IF(LEN(home!$G$9)>0,instruments!F90=home!$G$9,TRUE) -> TRUE | L90: 3 | M90: =+COUNTIF($L$1:L90,"="&4) -> 8 | N90: Brookings County, SD Corn Basis
A91: ZSBASDBR.CM | B91: cmdty Brookings County, SD Soybean Basis Idx | C91: Soybean | D91: Basis | E91: South Dakota | F91: County | G91: Brookings County | H91: =+IF(LEN(home!$G$7)>0,instruments!C91=home!$G$7,TRUE) -> FALSE | I91: TRUE | J91: =+IF(LEN(home!$G$8)>0,instruments!E91=home!$G$8,TRUE) -> FALSE | K91: =+IF(LEN(home!$G$9)>0,instruments!F91=home!$G$9,TRUE) -> TRUE | L91: 2 | M91: =+COUNTIF($L$1:L91,"="&4) -> 8 | N91: Brookings County, SD Soybean Basis
A92: ZCBAILBR.CM | B92: cmdty Brown County, IL Corn Basis Idx | C92: Corn | D92: Basis | E92: Illinois | F92: County | G92: Brown County | H92: =+IF(LEN(home!$G$7)>0,instruments!C92=home!$G$7,TRUE) -> TRUE | I92: TRUE | J92: =+IF(LEN(home!$G$8)>0,instruments!E92=home!$G$8,TRUE) -> FALSE | K92: =+IF(LEN(home!$G$9)>0,instruments!F92=home!$G$9,TRUE) -> TRUE | L92: 3 | M92: =+COUNTIF($L$1:L92,"="&4) -> 8 | N92: Brown County, IL Corn Basis
A93: ZSBAILBR.CM | B93: cmdty Brown County, IL Soybean Basis Idx | C93: Soybean | D93: Basis | E93: Illinois | F93: County | G93: Brown County | H93: =+IF(LEN(home!$G$7)>0,instruments!C93=home!$G$7,TRUE) -> FALSE | I93: TRUE | J93: =+IF(LEN(home!$G$8)>0,instruments!E93=home!$G$8,TRUE) -> FALSE | K93: =+IF(LEN(home!$G$9)>0,instruments!F93=home!$G$9,TRUE) -> TRUE | L93: 2 | M93: =+COUNTIF($L$1:L93,"="&4) -> 8 | N93: Brown County, IL Soybean Basis
A94: ZCBAKSBR.CM | B94: cmdty Brown County, KS Corn Basis Idx | C94: Corn | D94: Basis | E94: Kansas | F94: County | G94: Brown County | H94: =+IF(LEN(home!$G$7)>0,instruments!C94=home!$G$7,TRUE) -> TRUE | I94: TRUE | J94: =+IF(LEN(home!$G$8)>0,instruments!E94=home!$G$8,TRUE) -> FALSE | K94: =+IF(LEN(home!$G$9)>0,instruments!F94=home!$G$9,TRUE) -> TRUE | L94: 3 | M94: =+COUNTIF($L$1:L94,"="&4) -> 8 | N94: Brown County, KS Corn Basis
A95: ZSBAKSBR.CM | B95: cmdty Brown County, KS Soybean Basis Idx | C95: Soybean | D95: Basis | E95: Kansas | F95: County | G95: Brown County | H95: =+IF(LEN(home!$G$7)>0,instruments!C95=home!$G$7,TRUE) -> FALSE | I95: TRUE | J95: =+IF(LEN(home!$G$8)>0,instruments!E95=home!$G$8,TRUE) -> FALSE | K95: =+IF(LEN(home!$G$9)>0,instruments!F95=home!$G$9,TRUE) -> TRUE | L95: 2 | M95: =+COUNTIF($L$1:L95,"="&4) -> 8 | N95: Brown County, KS Soybean Basis
A96: ZCBAMNBR.CM | B96: cmdty Brown County, MN Corn Basis Idx | C96: Corn | D96: Basis | E96: Minnesota | F96: County | G96: Brown County | H96: =+IF(LEN(home!$G$7)>0,instruments!C96=home!$G$7,TRUE) -> TRUE | I96: TRUE | J96: =+IF(LEN(home!$G$8)>0,instruments!E96=home!$G$8,TRUE) -> FALSE | K96: =+IF(LEN(home!$G$9)>0,instruments!F96=home!$G$9,TRUE) -> TRUE | L96: 3 | M96: =+COUNTIF($L$1:L96,"="&4) -> 8 | N96: Brown County, MN Corn Basis
A97: ZSBAMNBR.CM | B97: cmdty Brown County, MN Soybean Basis Idx | C97: Soybean | D97: Basis | E97: Minnesota | F97: County | G97: Brown County | H97: =+IF(LEN(home!$G$7)>0,instruments!C97=home!$G$7,TRUE) -> FALSE | I97: TRUE | J97: =+IF(LEN(home!$G$8)>0,instruments!E97=home!$G$8,TRUE) -> FALSE | K97: =+IF(LEN(home!$G$9)>0,instruments!F97=home!$G$9,TRUE) -> TRUE | L97: 2 | M97: =+COUNTIF($L$1:L97,"="&4) -> 8 | N97: Brown County, MN Soybean Basis
A98: ZCBANEBR.CM | B98: cmdty Brown County, NE Corn Basis Idx | C98: Corn | D98: Basis | E98: Nebraska | F98: County | G98: Brown County | H98: =+IF(LEN(home!$G$7)>0,instruments!C98=home!$G$7,TRUE) -> TRUE | I98: TRUE | J98: =+IF(LEN(home!$G$8)>0,instruments!E98=home!$G$8,TRUE) -> FALSE | K98: =+IF(LEN(home!$G$9)>0,instruments!F98=home!$G$9,TRUE) -> TRUE | L98: 3 | M98: =+COUNTIF($L$1:L98,"="&4) -> 8 | N98: Brown County, NE Corn Basis
A99: ZSBANEBR.CM | B99: cmdty Brown County, NE Soybean Basis Idx | C99: Soybean | D99: Basis | E99: Nebraska | F99: County | G99: Brown County | H99: =+IF(LEN(home!$G$7)>0,instruments!C99=home!$G$7,TRUE) -> FALSE | I99: TRUE | J99: =+IF(LEN(home!$G$8)>0,instruments!E99=home!$G$8,TRUE) -> FALSE | K99: =+IF(LEN(home!$G$9)>0,instruments!F99=home!$G$9,TRUE) -> TRUE | L99: 2 | M99: =+COUNTIF($L$1:L99,"="&4) -> 8 | N99: Brown County, NE Soybean Basis
A100: ZCBASDBB.CM | B100: cmdty Brown County, SD Corn Basis Idx | C100: Corn | D100: Basis | E100: South Dakota | F100: County | G100: Brown County | H100: =+IF(LEN(home!$G$7)>0,instruments!C100=home!$G$7,TRUE) -> TRUE | I100: TRUE | J100: =+IF(LEN(home!$G$8)>0,instruments!E100=home!$G$8,TRUE) -> FALSE | K100: =+IF(LEN(home!$G$9)>0,instruments!F100=home!$G$9,TRUE) -> TRUE | L100: 3 | M100: =+COUNTIF($L$1:L100,"="&4) -> 8 | N100: Brown County, SD Corn Basis
A101: ZSBASDBB.CM | B101: cmdty Brown County, SD Soybean Basis Idx | C101: Soybean | D101: Basis | E101: South Dakota | F101: County | G101: Brown County | H101: =+IF(LEN(home!$G$7)>0,instruments!C101=home!$G$7,TRUE) -> FALSE | I101: TRUE | J101: =+IF(LEN(home!$G$8)>0,instruments!E101=home!$G$8,TRUE) -> FALSE | K101: =+IF(LEN(home!$G$9)>0,instruments!F101=home!$G$9,TRUE) -> TRUE | L101: 2 | M101: =+COUNTIF($L$1:L101,"="&4) -> 8 | N101: Brown County, SD Soybean Basis
A102: ZCBASDBC.CM | B102: cmdty Brule County, SD Corn Basis Idx | C102: Corn | D102: Basis | E102: South Dakota | F102: County | G102: Brule County | H102: =+IF(LEN(home!$G$7)>0,instruments!C102=home!$G$7,TRUE) -> TRUE | I102: TRUE | J102: =+IF(LEN(home!$G$8)>0,instruments!E102=home!$G$8,TRUE) -> FALSE | K102: =+IF(LEN(home!$G$9)>0,instruments!F102=home!$G$9,TRUE) -> TRUE | L102: 3 | M102: =+COUNTIF($L$1:L102,"="&4) -> 8 | N102: Brule County, SD Corn Basis
A103: ZSBASDBC.CM | B103: cmdty Brule County, SD Soybean Basis Idx | C103: Soybean | D103: Basis | E103: South Dakota | F103: County | G103: Brule County | H103: =+IF(LEN(home!$G$7)>0,instruments!C103=home!$G$7,TRUE) -> FALSE | I103: TRUE | J103: =+IF(LEN(home!$G$8)>0,instruments!E103=home!$G$8,TRUE) -> FALSE | K103: =+IF(LEN(home!$G$9)>0,instruments!F103=home!$G$9,TRUE) -> TRUE | L103: 2 | M103: =+COUNTIF($L$1:L103,"="&4) -> 8 | N103: Brule County, SD Soybean Basis
A104: ZCBAIABU.CM | B104: cmdty Buchanan County, IA Corn Basis Idx | C104: Corn | D104: Basis | E104: Iowa | F104: County | G104: Buchanan County | H104: =+IF(LEN(home!$G$7)>0,instruments!C104=home!$G$7,TRUE) -> TRUE | I104: TRUE | J104: =+IF(LEN(home!$G$8)>0,instruments!E104=home!$G$8,TRUE) -> TRUE | K104: =+IF(LEN(home!$G$9)>0,instruments!F104=home!$G$9,TRUE) -> TRUE | L104: 4 | M104: =+COUNTIF($L$1:L104,"="&4) -> 9 | N104: Buchanan County, IA Corn Basis
A105: ZSBAIABU.CM | B105: cmdty Buchanan County, IA Soybean Basis Idx | C105: Soybean | D105: Basis | E105: Iowa | F105: County | G105: Buchanan County | H105: =+IF(LEN(home!$G$7)>0,instruments!C105=home!$G$7,TRUE) -> FALSE | I105: TRUE | J105: =+IF(LEN(home!$G$8)>0,instruments!E105=home!$G$8,TRUE) -> TRUE | K105: =+IF(LEN(home!$G$9)>0,instruments!F105=home!$G$9,TRUE) -> TRUE | L105: 3 | M105: =+COUNTIF($L$1:L105,"="&4) -> 9 | N105: Buchanan County, IA Soybean Basis
A106: ZCBAMOBU.CM | B106: cmdty Buchanan County, MO Corn Basis Idx | C106: Corn | D106: Basis | E106: Missouri | F106: County | G106: Buchanan County | H106: =+IF(LEN(home!$G$7)>0,instruments!C106=home!$G$7,TRUE) -> TRUE | I106: TRUE | J106: =+IF(LEN(home!$G$8)>0,instruments!E106=home!$G$8,TRUE) -> FALSE | K106: =+IF(LEN(home!$G$9)>0,instruments!F106=home!$G$9,TRUE) -> TRUE | L106: 3 | M106: =+COUNTIF($L$1:L106,"="&4) -> 9 | N106: Buchanan County, MO Corn Basis
A107: ZSBAMOBU.CM | B107: cmdty Buchanan County, MO Soybean Basis Idx | C107: Soybean | D107: Basis | E107: Missouri | F107: County | G107: Buchanan County | H107: =+IF(LEN(home!$G$7)>0,instruments!C107=home!$G$7,TRUE) -> FALSE | I107: TRUE | J107: =+IF(LEN(home!$G$8)>0,instruments!E107=home!$G$8,TRUE) -> FALSE | K107: =+IF(LEN(home!$G$9)>0,instruments!F107=home!$G$9,TRUE) -> TRUE | L107: 2 | M107: =+COUNTIF($L$1:L107,"="&4) -> 9 | N107: Buchanan County, MO Soybean Basis
A108: ZCBAIABA.CM | B108: cmdty Buena Vista County, IA Corn Basis Idx | C108: Corn | D108: Basis | E108: Iowa | F108: County | G108: Buena Vista County | H108: =+IF(LEN(home!$G$7)>0,instruments!C108=home!$G$7,TRUE) -> TRUE | I108: TRUE | J108: =+IF(LEN(home!$G$8)>0,instruments!E108=home!$G$8,TRUE) -> TRUE | K108: =+IF(LEN(home!$G$9)>0,instruments!F108=home!$G$9,TRUE) -> TRUE | L108: 4 | M108: =+COUNTIF($L$1:L108,"="&4) -> 10 | N108: Buena Vista County, IA Corn Basis
A109: ZSBAIABA.CM | B109: cmdty Buena Vista County, IA Soybean Basis Idx | C109: Soybean | D109: Basis | E109: Iowa | F109: County | G109: Buena Vista County | H109: =+IF(LEN(home!$G$7)>0,instruments!C109=home!$G$7,TRUE) -> FALSE | I109: TRUE | J109: =+IF(LEN(home!$G$8)>0,instruments!E109=home!$G$8,TRUE) -> TRUE | K109: =+IF(LEN(home!$G$9)>0,instruments!F109=home!$G$9,TRUE) -> TRUE | L109: 3 | M109: =+COUNTIF($L$1:L109,"="&4) -> 10 | N109: Buena Vista County, IA Soybean Basis
A110: ZCBANEBU.CM | B110: cmdty Buffalo County, NE Corn Basis Idx | C110: Corn | D110: Basis | E110: Nebraska | F110: County | G110: Buffalo County | H110: =+IF(LEN(home!$G$7)>0,instruments!C110=home!$G$7,TRUE) -> TRUE | I110: TRUE | J110: =+IF(LEN(home!$G$8)>0,instruments!E110=home!$G$8,TRUE) -> FALSE | K110: =+IF(LEN(home!$G$9)>0,instruments!F110=home!$G$9,TRUE) -> TRUE | L110: 3 | M110: =+COUNTIF($L$1:L110,"="&4) -> 10 | N110: Buffalo County, NE Corn Basis
A111: ZSBANEBU.CM | B111: cmdty Buffalo County, NE Soybean Basis Idx | C111: Soybean | D111: Basis | E111: Nebraska | F111: County | G111: Buffalo County | H111: =+IF(LEN(home!$G$7)>0,instruments!C111=home!$G$7,TRUE) -> FALSE | I111: TRUE | J111: =+IF(LEN(home!$G$8)>0,instruments!E111=home!$G$8,TRUE) -> FALSE | K111: =+IF(LEN(home!$G$9)>0,instruments!F111=home!$G$9,TRUE) -> TRUE | L111: 2 | M111: =+COUNTIF($L$1:L111,"="&4) -> 10 | N111: Buffalo County, NE Soybean Basis
A112: ZCBAILBU.CM | B112: cmdty Bureau County, IL Corn Basis Idx | C112: Corn | D112: Basis | E112: Illinois | F112: County | G112: Bureau County | H112: =+IF(LEN(home!$G$7)>0,instruments!C112=home!$G$7,TRUE) -> TRUE | I112: TRUE | J112: =+IF(LEN(home!$G$8)>0,instruments!E112=home!$G$8,TRUE) -> FALSE | K112: =+IF(LEN(home!$G$9)>0,instruments!F112=home!$G$9,TRUE) -> TRUE | L112: 3 | M112: =+COUNTIF($L$1:L112,"="&4) -> 10 | N112: Bureau County, IL Corn Basis
A113: ZSBAILBU.CM | B113: cmdty Bureau County, IL Soybean Basis Idx | C113: Soybean | D113: Basis | E113: Illinois | F113: County | G113: Bureau County | H113: =+IF(LEN(home!$G$7)>0,instruments!C113=home!$G$7,TRUE) -> FALSE | I113: TRUE | J113: =+IF(LEN(home!$G$8)>0,instruments!E113=home!$G$8,TRUE) -> FALSE | K113: =+IF(LEN(home!$G$9)>0,instruments!F113=home!$G$9,TRUE) -> TRUE | L113: 2 | M113: =+COUNTIF($L$1:L113,"="&4) -> 10 | N113: Bureau County, IL Soybean Basis
A114: ZSBANDBU.CM | B114: cmdty Burke County, ND Soybean Basis Idx | C114: Soybean | D114: Basis | E114: North Dakota | F114: County | G114: Burke County | H114: =+IF(LEN(home!$G$7)>0,instruments!C114=home!$G$7,TRUE) -> FALSE | I114: TRUE | J114: =+IF(LEN(home!$G$8)>0,instruments!E114=home!$G$8,TRUE) -> FALSE | K114: =+IF(LEN(home!$G$9)>0,instruments!F114=home!$G$9,TRUE) -> TRUE | L114: 2 | M114: =+COUNTIF($L$1:L114,"="&4) -> 10 | N114: Burke County, ND Soybean Basis
A115: ZSBANDBC.CM | B115: cmdty Burleigh County, ND Soybean Basis Idx | C115: Soybean | D115: Basis | E115: North Dakota | F115: County | G115: Burleigh County | H115: =+IF(LEN(home!$G$7)>0,instruments!C115=home!$G$7,TRUE) -> FALSE | I115: TRUE | J115: =+IF(LEN(home!$G$8)>0,instruments!E115=home!$G$8,TRUE) -> FALSE | K115: =+IF(LEN(home!$G$9)>0,instruments!F115=home!$G$9,TRUE) -> TRUE | L115: 2 | M115: =+COUNTIF($L$1:L115,"="&4) -> 10 | N115: Burleigh County, ND Soybean Basis
A116: ZCBANEBD.CM | B116: cmdty Burt County, NE Corn Basis Idx | C116: Corn | D116: Basis | E116: Nebraska | F116: County | G116: Burt County | H116: =+IF(LEN(home!$G$7)>0,instruments!C116=home!$G$7,TRUE) -> TRUE | I116: TRUE | J116: =+IF(LEN(home!$G$8)>0,instruments!E116=home!$G$8,TRUE) -> FALSE | K116: =+IF(LEN(home!$G$9)>0,instruments!F116=home!$G$9,TRUE) -> TRUE | L116: 3 | M116: =+COUNTIF($L$1:L116,"="&4) -> 10 | N116: Burt County, NE Corn Basis
A117: ZSBANEBD.CM | B117: cmdty Burt County, NE Soybean Basis Idx | C117: Soybean | D117: Basis | E117: Nebraska | F117: County | G117: Burt County | H117: =+IF(LEN(home!$G$7)>0,instruments!C117=home!$G$7,TRUE) -> FALSE | I117: TRUE | J117: =+IF(LEN(home!$G$8)>0,instruments!E117=home!$G$8,TRUE) -> FALSE | K117: =+IF(LEN(home!$G$9)>0,instruments!F117=home!$G$9,TRUE) -> TRUE | L117: 2 | M117: =+COUNTIF($L$1:L117,"="&4) -> 10 | N117: Burt County, NE Soybean Basis
A118: ZCBAIABB.CM | B118: cmdty Butler County, IA Corn Basis Idx | C118: Corn | D118: Basis | E118: Iowa | F118: County | G118: Butler County | H118: =+IF(LEN(home!$G$7)>0,instruments!C118=home!$G$7,TRUE) -> TRUE | I118: TRUE | J118: =+IF(LEN(home!$G$8)>0,instruments!E118=home!$G$8,TRUE) -> TRUE | K118: =+IF(LEN(home!$G$9)>0,instruments!F118=home!$G$9,TRUE) -> TRUE | L118: 4 | M118: =+COUNTIF($L$1:L118,"="&4) -> 11 | N118: Butler County, IA Corn Basis
A119: ZSBAIABB.CM | B119: cmdty Butler County, IA Soybean Basis Idx | C119: Soybean | D119: Basis | E119: Iowa | F119: County | G119: Butler County | H119: =+IF(LEN(home!$G$7)>0,instruments!C119=home!$G$7,TRUE) -> FALSE | I119: TRUE | J119: =+IF(LEN(home!$G$8)>0,instruments!E119=home!$G$8,TRUE) -> TRUE | K119: =+IF(LEN(home!$G$9)>0,instruments!F119=home!$G$9,TRUE) -> TRUE | L119: 3 | M119: =+COUNTIF($L$1:L119,"="&4) -> 11 | N119: Butler County, IA Soybean Basis
A120: ZCBAKSBU.CM | B120: cmdty Butler County, KS Corn Basis Idx | C120: Corn | D120: Basis | E120: Kansas | F120: County | G120: Butler County | H120: =+IF(LEN(home!$G$7)>0,instruments!C120=home!$G$7,TRUE) -> TRUE | I120: TRUE | J120: =+IF(LEN(home!$G$8)>0,instruments!E120=home!$G$8,TRUE) -> FALSE | K120: =+IF(LEN(home!$G$9)>0,instruments!F120=home!$G$9,TRUE) -> TRUE | L120: 3 | M120: =+COUNTIF($L$1:L120,"="&4) -> 11 | N120: Butler County, KS Corn Basis
A121: ZSBAKSBU.CM | B121: cmdty Butler County, KS Soybean Basis Idx | C121: Soybean | D121: Basis | E121: Kansas | F121: County | G121: Butler County | H121: =+IF(LEN(home!$G$7)>0,instruments!C121=home!$G$7,TRUE) -> FALSE | I121: TRUE | J121: =+IF(LEN(home!$G$8)>0,instruments!E121=home!$G$8,TRUE) -> FALSE | K121: =+IF(LEN(home!$G$9)>0,instruments!F121=home!$G$9,TRUE) -> TRUE | L121: 2 | M121: =+COUNTIF($L$1:L121,"="&4) -> 11 | N121: Butler County, KS Soybean Basis
A122: ZCBAMOBF.CM | B122: cmdty Butler County, MO Corn Basis Idx | C122: Corn | D122: Basis | E122: Missouri | F122: County | G122: Butler County | H122: =+IF(LEN(home!$G$7)>0,instruments!C122=home!$G$7,TRUE) -> TRUE | I122: TRUE | J122: =+IF(LEN(home!$G$8)>0,instruments!E122=home!$G$8,TRUE) -> FALSE | K122: =+IF(LEN(home!$G$9)>0,instruments!F122=home!$G$9,TRUE) -> TRUE | L122: 3 | M122: =+COUNTIF($L$1:L122,"="&4) -> 11 | N122: Butler County, MO Corn Basis
A123: ZSBAMOBF.CM | B123: cmdty Butler County, MO Soybean Basis Idx | C123: Soybean | D123: Basis | E123: Missouri | F123: County | G123: Butler County | H123: =+IF(LEN(home!$G$7)>0,instruments!C123=home!$G$7,TRUE) -> FALSE | I123: TRUE | J123: =+IF(LEN(home!$G$8)>0,instruments!E123=home!$G$8,TRUE) -> FALSE | K123: =+IF(LEN(home!$G$9)>0,instruments!F123=home!$G$9,TRUE) -> TRUE | L123: 2 | M123: =+COUNTIF($L$1:L123,"="&4) -> 11 | N123: Butler County, MO Soybean Basis
A124: ZCBANEBE.CM | B124: cmdty Butler County, NE Corn Basis Idx | C124: Corn | D124: Basis | E124: Nebraska | F124: County | G124: Butler County | H124: =+IF(LEN(home!$G$7)>0,instruments!C124=home!$G$7,TRUE) -> TRUE | I124: TRUE | J124: =+IF(LEN(home!$G$8)>0,instruments!E124=home!$G$8,TRUE) -> FALSE | K124: =+IF(LEN(home!$G$9)>0,instruments!F124=home!$G$9,TRUE) -> TRUE | L124: 3 | M124: =+COUNTIF($L$1:L124,"="&4) -> 11 | N124: Butler County, NE Corn Basis
A125: ZSBANEBE.CM | B125: cmdty Butler County, NE Soybean Basis Idx | C125: Soybean | D125: Basis | E125: Nebraska | F125: County | G125: Butler County | H125: =+IF(LEN(home!$G$7)>0,instruments!C125=home!$G$7,TRUE) -> FALSE | I125: TRUE | J125: =+IF(LEN(home!$G$8)>0,instruments!E125=home!$G$8,TRUE) -> FALSE | K125: =+IF(LEN(home!$G$9)>0,instruments!F125=home!$G$9,TRUE) -> TRUE | L125: 2 | M125: =+COUNTIF($L$1:L125,"="&4) -> 11 | N125: Butler County, NE Soybean Basis
A126: ZSBAOHBU.CM | B126: cmdty Butler County, OH Soybean Basis Idx | C126: Soybean | D126: Basis | E126: Ohio | F126: County | G126: Butler County | H126: =+IF(LEN(home!$G$7)>0,instruments!C126=home!$G$7,TRUE) -> FALSE | I126: TRUE | J126: =+IF(LEN(home!$G$8)>0,instruments!E126=home!$G$8,TRUE) -> FALSE | K126: =+IF(LEN(home!$G$9)>0,instruments!F126=home!$G$9,TRUE) -> TRUE | L126: 2 | M126: =+COUNTIF($L$1:L126,"="&4) -> 11 | N126: Butler County, OH Soybean Basis
A127: ZCBASDBD.CM | B127: cmdty Butte County, SD Corn Basis Idx | C127: Corn | D127: Basis | E127: South Dakota | F127: County | G127: Butte County | H127: =+IF(LEN(home!$G$7)>0,instruments!C127=home!$G$7,TRUE) -> TRUE | I127: TRUE | J127: =+IF(LEN(home!$G$8)>0,instruments!E127=home!$G$8,TRUE) -> FALSE | K127: =+IF(LEN(home!$G$9)>0,instruments!F127=home!$G$9,TRUE) -> TRUE | L127: 3 | M127: =+COUNTIF($L$1:L127,"="&4) -> 11 | N127: Butte County, SD Corn Basis
A128: ZCBAMOCA.CM | B128: cmdty Caldwell County, MO Corn Basis Idx | C128: Corn | D128: Basis | E128: Missouri | F128: County | G128: Caldwell County | H128: =+IF(LEN(home!$G$7)>0,instruments!C128=home!$G$7,TRUE) -> TRUE | I128: TRUE | J128: =+IF(LEN(home!$G$8)>0,instruments!E128=home!$G$8,TRUE) -> FALSE | K128: =+IF(LEN(home!$G$9)>0,instruments!F128=home!$G$9,TRUE) -> TRUE | L128: 3 | M128: =+COUNTIF($L$1:L128,"="&4) -> 11 | N128: Caldwell County, MO Corn Basis
A129: ZSBAMOCA.CM | B129: cmdty Caldwell County, MO Soybean Basis Idx | C129: Soybean | D129: Basis | E129: Missouri | F129: County | G129: Caldwell County | H129: =+IF(LEN(home!$G$7)>0,instruments!C129=home!$G$7,TRUE) -> FALSE | I129: TRUE | J129: =+IF(LEN(home!$G$8)>0,instruments!E129=home!$G$8,TRUE) -> FALSE | K129: =+IF(LEN(home!$G$9)>0,instruments!F129=home!$G$9,TRUE) -> TRUE | L129: 2 | M129: =+COUNTIF($L$1:L129,"="&4) -> 11 | N129: Caldwell County, MO Soybean Basis
A130: ZCBAIACA.CM | B130: cmdty Calhoun County, IA Corn Basis Idx | C130: Corn | D130: Basis | E130: Iowa | F130: County | G130: Calhoun County | H130: =+IF(LEN(home!$G$7)>0,instruments!C130=home!$G$7,TRUE) -> TRUE | I130: TRUE | J130: =+IF(LEN(home!$G$8)>0,instruments!E130=home!$G$8,TRUE) -> TRUE | K130: =+IF(LEN(home!$G$9)>0,instruments!F130=home!$G$9,TRUE) -> TRUE | L130: =+COUNTIF(H130:K130,TRUE) -> 4 | M130: =+COUNTIF($L$1:L130,"="&4) -> 12 | N130: Calhoun County, IA Corn Basis
A131: ZSBAIACA.CM | B131: cmdty Calhoun County, IA Soybean Basis Idx | C131: Soybean | D131: Basis | E131: Iowa | F131: County | G131: Calhoun County | H131: =+IF(LEN(home!$G$7)>0,instruments!C131=home!$G$7,TRUE) -> FALSE | I131: =+D131="Basis" -> TRUE | J131: =+IF(LEN(home!$G$8)>0,instruments!E131=home!$G$8,TRUE) -> TRUE | K131: =+IF(LEN(home!$G$9)>0,instruments!F131=home!$G$9,TRUE) -> TRUE | L131: 3 | M131: =+COUNTIF($L$1:L131,"="&4) -> 12 | N131: =+MID(B131,FIND(" ",B131,1)+1,LEN(B131)-FIND(" ",B131,1)-4) -> Calhoun County, IA Soybean Basis
A132: ZCBAILCA.CM | B132: cmdty Calhoun County, IL Corn Basis Idx | C132: Corn | D132: Basis | E132: Illinois | F132: County | G132: Calhoun County | H132: =+IF(LEN(home!$G$7)>0,instruments!C132=home!$G$7,TRUE) -> TRUE | I132: TRUE | J132: =+IF(LEN(home!$G$8)>0,instruments!E132=home!$G$8,TRUE) -> FALSE | K132: =+IF(LEN(home!$G$9)>0,instruments!F132=home!$G$9,TRUE) -> TRUE | L132: 3 | M132: =+COUNTIF($L$1:L132,"="&4) -> 12 | N132: Calhoun County, IL Corn Basis
A133: ZSBAILCA.CM | B133: cmdty Calhoun County, IL Soybean Basis Idx | C133: Soybean | D133: Basis | E133: Illinois | F133: County | G133: Calhoun County | H133: =+IF(LEN(home!$G$7)>0,instruments!C133=home!$G$7,TRUE) -> FALSE | I133: TRUE | J133: =+IF(LEN(home!$G$8)>0,instruments!E133=home!$G$8,TRUE) -> FALSE | K133: =+IF(LEN(home!$G$9)>0,instruments!F133=home!$G$9,TRUE) -> TRUE | L133: 2 | M133: =+COUNTIF($L$1:L133,"="&4) -> 12 | N133: Calhoun County, IL Soybean Basis
A134: ZCBAMOCD.CM | B134: cmdty Cape Girardeau County, MO Corn Basis Idx | C134: Corn | D134: Basis | E134: Missouri | F134: County | G134: Cape Girardeau County | H134: =+IF(LEN(home!$G$7)>0,instruments!C134=home!$G$7,TRUE) -> TRUE | I134: TRUE | J134: =+IF(LEN(home!$G$8)>0,instruments!E134=home!$G$8,TRUE) -> FALSE | K134: =+IF(LEN(home!$G$9)>0,instruments!F134=home!$G$9,TRUE) -> TRUE | L134: 3 | M134: =+COUNTIF($L$1:L134,"="&4) -> 12 | N134: Cape Girardeau County, MO Corn Basis
A135: ZSBAMOCD.CM | B135: cmdty Cape Girardeau County, MO Soybean Basis Idx | C135: Soybean | D135: Basis | E135: Missouri | F135: County | G135: Cape Girardeau County | H135: =+IF(LEN(home!$G$7)>0,instruments!C135=home!$G$7,TRUE) -> FALSE | I135: TRUE | J135: =+IF(LEN(home!$G$8)>0,instruments!E135=home!$G$8,TRUE) -> FALSE | K135: =+IF(LEN(home!$G$9)>0,instruments!F135=home!$G$9,TRUE) -> TRUE | L135: 2 | M135: =+COUNTIF($L$1:L135,"="&4) -> 12 | N135: Cape Girardeau County, MO Soybean Basis
A136: ZCBAIACB.CM | B136: cmdty Carroll County, IA Corn Basis Idx | C136: Corn | D136: Basis | E136: Iowa | F136: County | G136: Carroll County | H136: =+IF(LEN(home!$G$7)>0,instruments!C136=home!$G$7,TRUE) -> TRUE | I136: TRUE | J136: =+IF(LEN(home!$G$8)>0,instruments!E136=home!$G$8,TRUE) -> TRUE | K136: =+IF(LEN(home!$G$9)>0,instruments!F136=home!$G$9,TRUE) -> TRUE | L136: 4 | M136: =+COUNTIF($L$1:L136,"="&4) -> 13 | N136: Carroll County, IA Corn Basis
A137: ZSBAIACB.CM | B137: cmdty Carroll County, IA Soybean Basis Idx | C137: Soybean | D137: Basis | E137: Iowa | F137: County | G137: Carroll County | H137: =+IF(LEN(home!$G$7)>0,instruments!C137=home!$G$7,TRUE) -> FALSE | I137: TRUE | J137: =+IF(LEN(home!$G$8)>0,instruments!E137=home!$G$8,TRUE) -> TRUE | K137: =+IF(LEN(home!$G$9)>0,instruments!F137=home!$G$9,TRUE) -> TRUE | L137: 3 | M137: =+COUNTIF($L$1:L137,"="&4) -> 13 | N137: Carroll County, IA Soybean Basis
A138: ZCBAILCB.CM | B138: cmdty Carroll County, IL Corn Basis Idx | C138: Corn | D138: Basis | E138: Illinois | F138: County | G138: Carroll County | H138: =+IF(LEN(home!$G$7)>0,instruments!C138=home!$G$7,TRUE) -> TRUE | I138: TRUE | J138: =+IF(LEN(home!$G$8)>0,instruments!E138=home!$G$8,TRUE) -> FALSE | K138: =+IF(LEN(home!$G$9)>0,instruments!F138=home!$G$9,TRUE) -> TRUE | L138: 3 | M138: =+COUNTIF($L$1:L138,"="&4) -> 13 | N138: Carroll County, IL Corn Basis
A139: ZSBAILCB.CM | B139: cmdty Carroll County, IL Soybean Basis Idx | C139: Soybean | D139: Basis | E139: Illinois | F139: County | G139: Carroll County | H139: =+IF(LEN(home!$G$7)>0,instruments!C139=home!$G$7,TRUE) -> FALSE | I139: TRUE | J139: =+IF(LEN(home!$G$8)>0,instruments!E139=home!$G$8,TRUE) -> FALSE | K139: =+IF(LEN(home!$G$9)>0,instruments!F139=home!$G$9,TRUE) -> TRUE | L139: 2 | M139: =+COUNTIF($L$1:L139,"="&4) -> 13 | N139: Carroll County, IL Soybean Basis
A140: ZCBAINCA.CM | B140: cmdty Carroll County, IN Corn Basis Idx | C140: Corn | D140: Basis | E140: Indiana | F140: County | G140: Carroll County | H140: =+IF(LEN(home!$G$7)>0,instruments!C140=home!$G$7,TRUE) -> TRUE | I140: TRUE | J140: =+IF(LEN(home!$G$8)>0,instruments!E140=home!$G$8,TRUE) -> FALSE | K140: =+IF(LEN(home!$G$9)>0,instruments!F140=home!$G$9,TRUE) -> TRUE | L140: 3 | M140: =+COUNTIF($L$1:L140,"="&4) -> 13 | N140: Carroll County, IN Corn Basis
A141: ZSBAINCA.CM | B141: cmdty Carroll County, IN Soybean Basis Idx | C141: Soybean | D141: Basis | E141: Indiana | F141: County | G141: Carroll County | H141: =+IF(LEN(home!$G$7)>0,instruments!C141=home!$G$7,TRUE) -> FALSE | I141: TRUE | J141: =+IF(LEN(home!$G$8)>0,instruments!E141=home!$G$8,TRUE) -> FALSE | K141: =+IF(LEN(home!$G$9)>0,instruments!F141=home!$G$9,TRUE) -> TRUE | L141: 2 | M141: =+COUNTIF($L$1:L141,"="&4) -> 13 | N141: Carroll County, IN Soybean Basis
A142: ZCBAMOCF.CM | B142: cmdty Carroll County, MO Corn Basis Idx | C142: Corn | D142: Basis | E142: Missouri | F142: County | G142: Carroll County | H142: =+IF(LEN(home!$G$7)>0,instruments!C142=home!$G$7,TRUE) -> TRUE | I142: TRUE | J142: =+IF(LEN(home!$G$8)>0,instruments!E142=home!$G$8,TRUE) -> FALSE | K142: =+IF(LEN(home!$G$9)>0,instruments!F142=home!$G$9,TRUE) -> TRUE | L142: 3 | M142: =+COUNTIF($L$1:L142,"="&4) -> 13 | N142: Carroll County, MO Corn Basis
A143: ZSBAMOCF.CM | B143: cmdty Carroll County, MO Soybean Basis Idx | C143: Soybean | D143: Basis | E143: Missouri | F143: County | G143: Carroll County | H143: =+IF(LEN(home!$G$7)>0,instruments!C143=home!$G$7,TRUE) -> FALSE | I143: TRUE | J143: =+IF(LEN(home!$G$8)>0,instruments!E143=home!$G$8,TRUE) -> FALSE | K143: =+IF(LEN(home!$G$9)>0,instruments!F143=home!$G$9,TRUE) -> TRUE | L143: 2 | M143: =+COUNTIF($L$1:L143,"="&4) -> 13 | N143: Carroll County, MO Soybean Basis
A144: ZCBAMNCB.CM | B144: cmdty Carver County, MN Corn Basis Idx | C144: Corn | D144: Basis | E144: Minnesota | F144: County | G144: Carver County | H144: =+IF(LEN(home!$G$7)>0,instruments!C144=home!$G$7,TRUE) -> TRUE | I144: TRUE | J144: =+IF(LEN(home!$G$8)>0,instruments!E144=home!$G$8,TRUE) -> FALSE | K144: =+IF(LEN(home!$G$9)>0,instruments!F144=home!$G$9,TRUE) -> TRUE | L144: 3 | M144: =+COUNTIF($L$1:L144,"="&4) -> 13 | N144: Carver County, MN Corn Basis
A145: ZSBAMNCB.CM | B145: cmdty Carver County, MN Soybean Basis Idx | C145: Soybean | D145: Basis | E145: Minnesota | F145: County | G145: Carver County | H145: =+IF(LEN(home!$G$7)>0,instruments!C145=home!$G$7,TRUE) -> FALSE | I145: TRUE | J145: =+IF(LEN(home!$G$8)>0,instruments!E145=home!$G$8,TRUE) -> FALSE | K145: =+IF(LEN(home!$G$9)>0,instruments!F145=home!$G$9,TRUE) -> TRUE | L145: 2 | M145: =+COUNTIF($L$1:L145,"="&4) -> 13 | N145: Carver County, MN Soybean Basis
A146: ZCBAIACC.CM | B146: cmdty Cass County, IA Corn Basis Idx | C146: Corn | D146: Basis | E146: Iowa | F146: County | G146: Cass County | H146: =+IF(LEN(home!$G$7)>0,instruments!C146=home!$G$7,TRUE) -> TRUE | I146: TRUE | J146: =+IF(LEN(home!$G$8)>0,instruments!E146=home!$G$8,TRUE) -> TRUE | K146: =+IF(LEN(home!$G$9)>0,instruments!F146=home!$G$9,TRUE) -> TRUE | L146: 4 | M146: =+COUNTIF($L$1:L146,"="&4) -> 14 | N146: Cass County, IA Corn Basis
A147: ZSBAIACC.CM | B147: cmdty Cass County, IA Soybean Basis Idx | C147: Soybean | D147: Basis | E147: Iowa | F147: County | G147: Cass County | H147: =+IF(LEN(home!$G$7)>0,instruments!C147=home!$G$7,TRUE) -> FALSE | I147: TRUE | J147: =+IF(LEN(home!$G$8)>0,instruments!E147=home!$G$8,TRUE) -> TRUE | K147: =+IF(LEN(home!$G$9)>0,instruments!F147=home!$G$9,TRUE) -> TRUE | L147: 3 | M147: =+COUNTIF($L$1:L147,"="&4) -> 14 | N147: Cass County, IA Soybean Basis
A148: ZCBAILCC.CM | B148: cmdty Cass County, IL Corn Basis Idx | C148: Corn | D148: Basis | E148: Illinois | F148: County | G148: Cass County | H148: =+IF(LEN(home!$G$7)>0,instruments!C148=home!$G$7,TRUE) -> TRUE | I148: TRUE | J148: =+IF(LEN(home!$G$8)>0,instruments!E148=home!$G$8,TRUE) -> FALSE | K148: =+IF(LEN(home!$G$9)>0,instruments!F148=home!$G$9,TRUE) -> TRUE | L148: 3 | M148: =+COUNTIF($L$1:L148,"="&4) -> 14 | N148: Cass County, IL Corn Basis
A149: ZSBAILCC.CM | B149: cmdty Cass County, IL Soybean Basis Idx | C149: Soybean | D149: Basis | E149: Illinois | F149: County | G149: Cass County | H149: =+IF(LEN(home!$G$7)>0,instruments!C149=home!$G$7,TRUE) -> FALSE | I149: TRUE | J149: =+IF(LEN(home!$G$8)>0,instruments!E149=home!$G$8,TRUE) -> FALSE | K149: =+IF(LEN(home!$G$9)>0,instruments!F149=home!$G$9,TRUE) -> TRUE | L149: 2 | M149: =+COUNTIF($L$1:L149,"="&4) -> 14 | N149: Cass County, IL Soybean Basis
A150: ZCBAINCB.CM | B150: cmdty Cass County, IN Corn Basis Idx | C150: Corn | D150: Basis | E150: Indiana | F150: County | G150: Cass County | H150: =+IF(LEN(home!$G$7)>0,instruments!C150=home!$G$7,TRUE) -> TRUE | I150: TRUE | J150: =+IF(LEN(home!$G$8)>0,instruments!E150=home!$G$8,TRUE) -> FALSE | K150: =+IF(LEN(home!$G$9)>0,instruments!F150=home!$G$9,TRUE) -> TRUE | L150: 3 | M150: =+COUNTIF($L$1:L150,"="&4) -> 14 | N150: Cass County, IN Corn Basis
A151: ZSBAINCB.CM | B151: cmdty Cass County, IN Soybean Basis Idx | C151: Soybean | D151: Basis | E151: Indiana | F151: County | G151: Cass County | H151: =+IF(LEN(home!$G$7)>0,instruments!C151=home!$G$7,TRUE) -> FALSE | I151: TRUE | J151: =+IF(LEN(home!$G$8)>0,instruments!E151=home!$G$8,TRUE) -> FALSE | K151: =+IF(LEN(home!$G$9)>0,instruments!F151=home!$G$9,TRUE) -> TRUE | L151: 2 | M151: =+COUNTIF($L$1:L151,"="&4) -> 14 | N151: Cass County, IN Soybean Basis
A152: ZCBAMOCI.CM | B152: cmdty Cass County, MO Corn Basis Idx | C152: Corn | D152: Basis | E152: Missouri | F152: County | G152: Cass County | H152: =+IF(LEN(home!$G$7)>0,instruments!C152=home!$G$7,TRUE) -> TRUE | I152: TRUE | J152: =+IF(LEN(home!$G$8)>0,instruments!E152=home!$G$8,TRUE) -> FALSE | K152: =+IF(LEN(home!$G$9)>0,instruments!F152=home!$G$9,TRUE) -> TRUE | L152: 3 | M152: =+COUNTIF($L$1:L152,"="&4) -> 14 | N152: Cass County, MO Corn Basis
A153: ZSBAMOCI.CM | B153: cmdty Cass County, MO Soybean Basis Idx | C153: Soybean | D153: Basis | E153: Missouri | F153: County | G153: Cass County | H153: =+IF(LEN(home!$G$7)>0,instruments!C153=home!$G$7,TRUE) -> FALSE | I153: TRUE | J153: =+IF(LEN(home!$G$8)>0,instruments!E153=home!$G$8,TRUE) -> FALSE | K153: =+IF(LEN(home!$G$9)>0,instruments!F153=home!$G$9,TRUE) -> TRUE | L153: 2 | M153: =+COUNTIF($L$1:L153,"="&4) -> 14 | N153: Cass County, MO Soybean Basis
A154: ZSBANDCA.CM | B154: cmdty Cass County, ND Soybean Basis Idx | C154: Soybean | D154: Basis | E154: North Dakota | F154: County | G154: Cass County | H154: =+IF(LEN(home!$G$7)>0,instruments!C154=home!$G$7,TRUE) -> FALSE | I154: TRUE | J154: =+IF(LEN(home!$G$8)>0,instruments!E154=home!$G$8,TRUE) -> FALSE | K154: =+IF(LEN(home!$G$9)>0,instruments!F154=home!$G$9,TRUE) -> TRUE | L154: 2 | M154: =+COUNTIF($L$1:L154,"="&4) -> 14 | N154: Cass County, ND Soybean Basis
A155: ZCBANECA.CM | B155: cmdty Cass County, NE Corn Basis Idx | C155: Corn | D155: Basis | E155: Nebraska | F155: County | G155: Cass County | H155: =+IF(LEN(home!$G$7)>0,instruments!C155=home!$G$7,TRUE) -> TRUE | I155: TRUE | J155: =+IF(LEN(home!$G$8)>0,instruments!E155=home!$G$8,TRUE) -> FALSE | K155: =+IF(LEN(home!$G$9)>0,instruments!F155=home!$G$9,TRUE) -> TRUE | L155: 3 | M155: =+COUNTIF($L$1:L155,"="&4) -> 14 | N155: Cass County, NE Corn Basis
A156: ZSBANECA.CM | B156: cmdty Cass County, NE Soybean Basis Idx | C156: Soybean | D156: Basis | E156: Nebraska | F156: County | G156: Cass County | H156: =+IF(LEN(home!$G$7)>0,instruments!C156=home!$G$7,TRUE) -> FALSE | I156: TRUE | J156: =+IF(LEN(home!$G$8)>0,instruments!E156=home!$G$8,TRUE) -> FALSE | K156: =+IF(LEN(home!$G$9)>0,instruments!F156=home!$G$9,TRUE) -> TRUE | L156: 2 | M156: =+COUNTIF($L$1:L156,"="&4) -> 14 | N156: Cass County, NE Soybean Basis
A157: ZSBANDCB.CM | B157: cmdty Cavalier County, ND Soybean Basis Idx | C157: Soybean | D157: Basis | E157: North Dakota | F157: County | G157: Cavalier County | H157: =+IF(LEN(home!$G$7)>0,instruments!C157=home!$G$7,TRUE) -> FALSE | I157: TRUE | J157: =+IF(LEN(home!$G$8)>0,instruments!E157=home!$G$8,TRUE) -> FALSE | K157: =+IF(LEN(home!$G$9)>0,instruments!F157=home!$G$9,TRUE) -> TRUE | L157: 2 | M157: =+COUNTIF($L$1:L157,"="&4) -> 14 | N157: Cavalier County, ND Soybean Basis
A158: ZCBAIACE.CM | B158: cmdty Cedar County, IA Corn Basis Idx | C158: Corn | D158: Basis | E158: Iowa | F158: County | G158: Cedar County | H158: =+IF(LEN(home!$G$7)>0,instruments!C158=home!$G$7,TRUE) -> TRUE | I158: TRUE | J158: =+IF(LEN(home!$G$8)>0,instruments!E158=home!$G$8,TRUE) -> TRUE | K158: =+IF(LEN(home!$G$9)>0,instruments!F158=home!$G$9,TRUE) -> TRUE | L158: 4 | M158: =+COUNTIF($L$1:L158,"="&4) -> 15 | N158: Cedar County, IA Corn Basis
A159: ZSBAIACE.CM | B159: cmdty Cedar County, IA Soybean Basis Idx | C159: Soybean | D159: Basis | E159: Iowa | F159: County | G159: Cedar County | H159: =+IF(LEN(home!$G$7)>0,instruments!C159=home!$G$7,TRUE) -> FALSE | I159: TRUE | J159: =+IF(LEN(home!$G$8)>0,instruments!E159=home!$G$8,TRUE) -> TRUE | K159: =+IF(LEN(home!$G$9)>0,instruments!F159=home!$G$9,TRUE) -> TRUE | L159: 3 | M159: =+COUNTIF($L$1:L159,"="&4) -> 15 | N159: Cedar County, IA Soybean Basis
A160: ZCBANECE.CM | B160: cmdty Cedar County, NE Corn Basis Idx | C160: Corn | D160: Basis | E160: Nebraska | F160: County | G160: Cedar County | H160: =+IF(LEN(home!$G$7)>0,instruments!C160=home!$G$7,TRUE) -> TRUE | I160: TRUE | J160: =+IF(LEN(home!$G$8)>0,instruments!E160=home!$G$8,TRUE) -> FALSE | K160: =+IF(LEN(home!$G$9)>0,instruments!F160=home!$G$9,TRUE) -> TRUE | L160: 3 | M160: =+COUNTIF($L$1:L160,"="&4) -> 15 | N160: Cedar County, NE Corn Basis
A161: ZSBANECE.CM | B161: cmdty Cedar County, NE Soybean Basis Idx | C161: Soybean | D161: Basis | E161: Nebraska | F161: County | G161: Cedar County | H161: =+IF(LEN(home!$G$7)>0,instruments!C161=home!$G$7,TRUE) -> FALSE | I161: TRUE | J161: =+IF(LEN(home!$G$8)>0,instruments!E161=home!$G$8,TRUE) -> FALSE | K161: =+IF(LEN(home!$G$9)>0,instruments!F161=home!$G$9,TRUE) -> TRUE | L161: 2 | M161: =+COUNTIF($L$1:L161,"="&4) -> 15 | N161: Cedar County, NE Soybean Basis
A162: ZCBAIACD.CM | B162: cmdty Cerro Gordo County, IA Corn Basis Idx | C162: Corn | D162: Basis | E162: Iowa | F162: County | G162: Cerro Gordo County | H162: =+IF(LEN(home!$G$7)>0,instruments!C162=home!$G$7,TRUE) -> TRUE | I162: TRUE | J162: =+IF(LEN(home!$G$8)>0,instruments!E162=home!$G$8,TRUE) -> TRUE | K162: =+IF(LEN(home!$G$9)>0,instruments!F162=home!$G$9,TRUE) -> TRUE | L162: 4 | M162: =+COUNTIF($L$1:L162,"="&4) -> 16 | N162: Cerro Gordo County, IA Corn Basis
A163: ZSBAIACD.CM | B163: cmdty Cerro Gordo County, IA Soybean Basis Idx | C163: Soybean | D163: Basis | E163: Iowa | F163: County | G163: Cerro Gordo County | H163: =+IF(LEN(home!$G$7)>0,instruments!C163=home!$G$7,TRUE) -> FALSE | I163: TRUE | J163: =+IF(LEN(home!$G$8)>0,instruments!E163=home!$G$8,TRUE) -> TRUE | K163: =+IF(LEN(home!$G$9)>0,instruments!F163=home!$G$9,TRUE) -> TRUE | L163: 3 | M163: =+COUNTIF($L$1:L163,"="&4) -> 16 | N163: Cerro Gordo County, IA Soybean Basis
A164: ZCBAILCH.CM | B164: cmdty Champaign County, IL Corn Basis Idx | C164: Corn | D164: Basis | E164: Illinois | F164: County | G164: Champaign County | H164: =+IF(LEN(home!$G$7)>0,instruments!C164=home!$G$7,TRUE) -> TRUE | I164: TRUE | J164: =+IF(LEN(home!$G$8)>0,instruments!E164=home!$G$8,TRUE) -> FALSE | K164: =+IF(LEN(home!$G$9)>0,instruments!F164=home!$G$9,TRUE) -> TRUE | L164: 3 | M164: =+COUNTIF($L$1:L164,"="&4) -> 16 | N164: Champaign County, IL Corn Basis
A165: ZSBAILCH.CM | B165: cmdty Champaign County, IL Soybean Basis Idx | C165: Soybean | D165: Basis | E165: Illinois | F165: County | G165: Champaign County | H165: =+IF(LEN(home!$G$7)>0,instruments!C165=home!$G$7,TRUE) -> FALSE | I165: TRUE | J165: =+IF(LEN(home!$G$8)>0,instruments!E165=home!$G$8,TRUE) -> FALSE | K165: =+IF(LEN(home!$G$9)>0,instruments!F165=home!$G$9,TRUE) -> TRUE | L165: 2 | M165: =+COUNTIF($L$1:L165,"="&4) -> 16 | N165: Champaign County, IL Soybean Basis
A166: ZSBAOHCH.CM | B166: cmdty Champaign County, OH Soybean Basis Idx | C166: Soybean | D166: Basis | E166: Ohio | F166: County | G166: Champaign County | H166: =+IF(LEN(home!$G$7)>0,instruments!C166=home!$G$7,TRUE) -> FALSE | I166: TRUE | J166: =+IF(LEN(home!$G$8)>0,instruments!E166=home!$G$8,TRUE) -> FALSE | K166: =+IF(LEN(home!$G$9)>0,instruments!F166=home!$G$9,TRUE) -> TRUE | L166: 2 | M166: =+COUNTIF($L$1:L166,"="&4) -> 16 | N166: Champaign County, OH Soybean Basis
A167: ZCBAMOCH.CM | B167: cmdty Chariton County, MO Corn Basis Idx | C167: Corn | D167: Basis | E167: Missouri | F167: County | G167: Chariton County | H167: =+IF(LEN(home!$G$7)>0,instruments!C167=home!$G$7,TRUE) -> TRUE | I167: TRUE | J167: =+IF(LEN(home!$G$8)>0,instruments!E167=home!$G$8,TRUE) -> FALSE | K167: =+IF(LEN(home!$G$9)>0,instruments!F167=home!$G$9,TRUE) -> TRUE | L167: 3 | M167: =+COUNTIF($L$1:L167,"="&4) -> 16 | N167: Chariton County, MO Corn Basis
A168: ZSBAMOCH.CM | B168: cmdty Chariton County, MO Soybean Basis Idx | C168: Soybean | D168: Basis | E168: Missouri | F168: County | G168: Chariton County | H168: =+IF(LEN(home!$G$7)>0,instruments!C168=home!$G$7,TRUE) -> FALSE | I168: TRUE | J168: =+IF(LEN(home!$G$8)>0,instruments!E168=home!$G$8,TRUE) -> FALSE | K168: =+IF(LEN(home!$G$9)>0,instruments!F168=home!$G$9,TRUE) -> TRUE | L168: 2 | M168: =+COUNTIF($L$1:L168,"="&4) -> 16 | N168: Chariton County, MO Soybean Basis
A169: ZCBASDCH.CM | B169: cmdty Charles Mix County, SD Corn Basis Idx | C169: Corn | D169: Basis | E169: South Dakota | F169: County | G169: Charles Mix County | H169: =+IF(LEN(home!$G$7)>0,instruments!C169=home!$G$7,TRUE) -> TRUE | I169: TRUE | J169: =+IF(LEN(home!$G$8)>0,instruments!E169=home!$G$8,TRUE) -> FALSE | K169: =+IF(LEN(home!$G$9)>0,instruments!F169=home!$G$9,TRUE) -> TRUE | L169: 3 | M169: =+COUNTIF($L$1:L169,"="&4) -> 16 | N169: Charles Mix County, SD Corn Basis
A170: ZSBASDCH.CM | B170: cmdty Charles Mix County, SD Soybean Basis Idx | C170: Soybean | D170: Basis | E170: South Dakota | F170: County | G170: Charles Mix County | H170: =+IF(LEN(home!$G$7)>0,instruments!C170=home!$G$7,TRUE) -> FALSE | I170: TRUE | J170: =+IF(LEN(home!$G$8)>0,instruments!E170=home!$G$8,TRUE) -> FALSE | K170: =+IF(LEN(home!$G$9)>0,instruments!F170=home!$G$9,TRUE) -> TRUE | L170: 2 | M170: =+COUNTIF($L$1:L170,"="&4) -> 16 | N170: Charles Mix County, SD Soybean Basis
A171: ZCBANECH.CM | B171: cmdty Chase County, NE Corn Basis Idx | C171: Corn | D171: Basis | E171: Nebraska | F171: County | G171: Chase County | H171: =+IF(LEN(home!$G$7)>0,instruments!C171=home!$G$7,TRUE) -> TRUE | I171: TRUE | J171: =+IF(LEN(home!$G$8)>0,instruments!E171=home!$G$8,TRUE) -> FALSE | K171: =+IF(LEN(home!$G$9)>0,instruments!F171=home!$G$9,TRUE) -> TRUE | L171: 3 | M171: =+COUNTIF($L$1:L171,"="&4) -> 16 | N171: Chase County, NE Corn Basis
A172: ZSBANECH.CM | B172: cmdty Chase County, NE Soybean Basis Idx | C172: Soybean | D172: Basis | E172: Nebraska | F172: County | G172: Chase County | H172: =+IF(LEN(home!$G$7)>0,instruments!C172=home!$G$7,TRUE) -> FALSE | I172: TRUE | J172: =+IF(LEN(home!$G$8)>0,instruments!E172=home!$G$8,TRUE) -> FALSE | K172: =+IF(LEN(home!$G$9)>0,instruments!F172=home!$G$9,TRUE) -> TRUE | L172: 2 | M172: =+COUNTIF($L$1:L172,"="&4) -> 16 | N172: Chase County, NE Soybean Basis
A173: ZCBAIACH.CM | B173: cmdty Cherokee County, IA Corn Basis Idx | C173: Corn | D173: Basis | E173: Iowa | F173: County | G173: Cherokee County | H173: =+IF(LEN(home!$G$7)>0,instruments!C173=home!$G$7,TRUE) -> TRUE | I173: TRUE | J173: =+IF(LEN(home!$G$8)>0,instruments!E173=home!$G$8,TRUE) -> TRUE | K173: =+IF(LEN(home!$G$9)>0,instruments!F173=home!$G$9,TRUE) -> TRUE | L173: 4 | M173: =+COUNTIF($L$1:L173,"="&4) -> 17 | N173: Cherokee County, IA Corn Basis
A174: ZSBAIACH.CM | B174: cmdty Cherokee County, IA Soybean Basis Idx | C174: Soybean | D174: Basis | E174: Iowa | F174: County | G174: Cherokee County | H174: =+IF(LEN(home!$G$7)>0,instruments!C174=home!$G$7,TRUE) -> FALSE | I174: TRUE | J174: =+IF(LEN(home!$G$8)>0,instruments!E174=home!$G$8,TRUE) -> TRUE | K174: =+IF(LEN(home!$G$9)>0,instruments!F174=home!$G$9,TRUE) -> TRUE | L174: 3 | M174: =+COUNTIF($L$1:L174,"="&4) -> 17 | N174: Cherokee County, IA Soybean Basis
A175: ZCBAKSCB.CM | B175: cmdty Cherokee County, KS Corn Basis Idx | C175: Corn | D175: Basis | E175: Kansas | F175: County | G175: Cherokee County | H175: =+IF(LEN(home!$G$7)>0,instruments!C175=home!$G$7,TRUE) -> TRUE | I175: TRUE | J175: =+IF(LEN(home!$G$8)>0,instruments!E175=home!$G$8,TRUE) -> FALSE | K175: =+IF(LEN(home!$G$9)>0,instruments!F175=home!$G$9,TRUE) -> TRUE | L175: 3 | M175: =+COUNTIF($L$1:L175,"="&4) -> 17 | N175: Cherokee County, KS Corn Basis
A176: ZSBAKSCB.CM | B176: cmdty Cherokee County, KS Soybean Basis Idx | C176: Soybean | D176: Basis | E176: Kansas | F176: County | G176: Cherokee County | H176: =+IF(LEN(home!$G$7)>0,instruments!C176=home!$G$7,TRUE) -> FALSE | I176: TRUE | J176: =+IF(LEN(home!$G$8)>0,instruments!E176=home!$G$8,TRUE) -> FALSE | K176: =+IF(LEN(home!$G$9)>0,instruments!F176=home!$G$9,TRUE) -> TRUE | L176: 2 | M176: =+COUNTIF($L$1:L176,"="&4) -> 17 | N176: Cherokee County, KS Soybean Basis
A177: ZCBAKSCC.CM | B177: cmdty Cheyenne County, KS Corn Basis Idx | C177: Corn | D177: Basis | E177: Kansas | F177: County | G177: Cheyenne County | H177: =+IF(LEN(home!$G$7)>0,instruments!C177=home!$G$7,TRUE) -> TRUE | I177: TRUE | J177: =+IF(LEN(home!$G$8)>0,instruments!E177=home!$G$8,TRUE) -> FALSE | K177: =+IF(LEN(home!$G$9)>0,instruments!F177=home!$G$9,TRUE) -> TRUE | L177: 3 | M177: =+COUNTIF($L$1:L177,"="&4) -> 17 | N177: Cheyenne County, KS Corn Basis
A178: ZSBAKSCC.CM | B178: cmdty Cheyenne County, KS Soybean Basis Idx | C178: Soybean | D178: Basis | E178: Kansas | F178: County | G178: Cheyenne County | H178: =+IF(LEN(home!$G$7)>0,instruments!C178=home!$G$7,TRUE) -> FALSE | I178: TRUE | J178: =+IF(LEN(home!$G$8)>0,instruments!E178=home!$G$8,TRUE) -> FALSE | K178: =+IF(LEN(home!$G$9)>0,instruments!F178=home!$G$9,TRUE) -> TRUE | L178: 2 | M178: =+COUNTIF($L$1:L178,"="&4) -> 17 | N178: Cheyenne County, KS Soybean Basis
A179: ZCBANECC.CM | B179: cmdty Cheyenne County, NE Corn Basis Idx | C179: Corn | D179: Basis | E179: Nebraska | F179: County | G179: Cheyenne County | H179: =+IF(LEN(home!$G$7)>0,instruments!C179=home!$G$7,TRUE) -> TRUE | I179: TRUE | J179: =+IF(LEN(home!$G$8)>0,instruments!E179=home!$G$8,TRUE) -> FALSE | K179: =+IF(LEN(home!$G$9)>0,instruments!F179=home!$G$9,TRUE) -> TRUE | L179: 3 | M179: =+COUNTIF($L$1:L179,"="&4) -> 17 | N179: Cheyenne County, NE Corn Basis
A180: ZSBANECC.CM | B180: cmdty Cheyenne County, NE Soybean Basis Idx | C180: Soybean | D180: Basis | E180: Nebraska | F180: County | G180: Cheyenne County | H180: =+IF(LEN(home!$G$7)>0,instruments!C180=home!$G$7,TRUE) -> FALSE | I180: TRUE | J180: =+IF(LEN(home!$G$8)>0,instruments!E180=home!$G$8,TRUE) -> FALSE | K180: =+IF(LEN(home!$G$9)>0,instruments!F180=home!$G$9,TRUE) -> TRUE | L180: 2 | M180: =+COUNTIF($L$1:L180,"="&4) -> 17 | N180: Cheyenne County, NE Soybean Basis
A181: ZCBAIACF.CM | B181: cmdty Chickasaw County, IA Corn Basis Idx | C181: Corn | D181: Basis | E181: Iowa | F181: County | G181: Chickasaw County | H181: =+IF(LEN(home!$G$7)>0,instruments!C181=home!$G$7,TRUE) -> TRUE | I181: TRUE | J181: =+IF(LEN(home!$G$8)>0,instruments!E181=home!$G$8,TRUE) -> TRUE | K181: =+IF(LEN(home!$G$9)>0,instruments!F181=home!$G$9,TRUE) -> TRUE | L181: 4 | M181: =+COUNTIF($L$1:L181,"="&4) -> 18 | N181: Chickasaw County, IA Corn Basis
A182: ZSBAIACF.CM | B182: cmdty Chickasaw County, IA Soybean Basis Idx | C182: Soybean | D182: Basis | E182: Iowa | F182: County | G182: Chickasaw County | H182: =+IF(LEN(home!$G$7)>0,instruments!C182=home!$G$7,TRUE) -> FALSE | I182: TRUE | J182: =+IF(LEN(home!$G$8)>0,instruments!E182=home!$G$8,TRUE) -> TRUE | K182: =+IF(LEN(home!$G$9)>0,instruments!F182=home!$G$9,TRUE) -> TRUE | L182: 3 | M182: =+COUNTIF($L$1:L182,"="&4) -> 18 | N182: Chickasaw County, IA Soybean Basis
A183: ZCBAMNCH.CM | B183: cmdty Chippewa County, MN Corn Basis Idx | C183: Corn | D183: Basis | E183: Minnesota | F183: County | G183: Chippewa County | H183: =+IF(LEN(home!$G$7)>0,instruments!C183=home!$G$7,TRUE) -> TRUE | I183: TRUE | J183: =+IF(LEN(home!$G$8)>0,instruments!E183=home!$G$8,TRUE) -> FALSE | K183: =+IF(LEN(home!$G$9)>0,instruments!F183=home!$G$9,TRUE) -> TRUE | L183: 3 | M183: =+COUNTIF($L$1:L183,"="&4) -> 18 | N183: Chippewa County, MN Corn Basis
A184: ZSBAMNCH.CM | B184: cmdty Chippewa County, MN Soybean Basis Idx | C184: Soybean | D184: Basis | E184: Minnesota | F184: County | G184: Chippewa County | H184: =+IF(LEN(home!$G$7)>0,instruments!C184=home!$G$7,TRUE) -> FALSE | I184: TRUE | J184: =+IF(LEN(home!$G$8)>0,instruments!E184=home!$G$8,TRUE) -> FALSE | K184: =+IF(LEN(home!$G$9)>0,instruments!F184=home!$G$9,TRUE) -> TRUE | L184: 2 | M184: =+COUNTIF($L$1:L184,"="&4) -> 18 | N184: Chippewa County, MN Soybean Basis
A185: ZCBAMNCD.CM | B185: cmdty Chisago County, MN Corn Basis Idx | C185: Corn | D185: Basis | E185: Minnesota | F185: County | G185: Chisago County | H185: =+IF(LEN(home!$G$7)>0,instruments!C185=home!$G$7,TRUE) -> TRUE | I185: TRUE | J185: =+IF(LEN(home!$G$8)>0,instruments!E185=home!$G$8,TRUE) -> FALSE | K185: =+IF(LEN(home!$G$9)>0,instruments!F185=home!$G$9,TRUE) -> TRUE | L185: 3 | M185: =+COUNTIF($L$1:L185,"="&4) -> 18 | N185: Chisago County, MN Corn Basis
A186: ZSBAMNCD.CM | B186: cmdty Chisago County, MN Soybean Basis Idx | C186: Soybean | D186: Basis | E186: Minnesota | F186: County | G186: Chisago County | H186: =+IF(LEN(home!$G$7)>0,instruments!C186=home!$G$7,TRUE) -> FALSE | I186: TRUE | J186: =+IF(LEN(home!$G$8)>0,instruments!E186=home!$G$8,TRUE) -> FALSE | K186: =+IF(LEN(home!$G$9)>0,instruments!F186=home!$G$9,TRUE) -> TRUE | L186: 2 | M186: =+COUNTIF($L$1:L186,"="&4) -> 18 | N186: Chisago County, MN Soybean Basis
A187: ZCBAILCD.CM | B187: cmdty Christian County, IL Corn Basis Idx | C187: Corn | D187: Basis | E187: Illinois | F187: County | G187: Christian County | H187: =+IF(LEN(home!$G$7)>0,instruments!C187=home!$G$7,TRUE) -> TRUE | I187: TRUE | J187: =+IF(LEN(home!$G$8)>0,instruments!E187=home!$G$8,TRUE) -> FALSE | K187: =+IF(LEN(home!$G$9)>0,instruments!F187=home!$G$9,TRUE) -> TRUE | L187: 3 | M187: =+COUNTIF($L$1:L187,"="&4) -> 18 | N187: Christian County, IL Corn Basis
A188: ZSBAILCD.CM | B188: cmdty Christian County, IL Soybean Basis Idx | C188: Soybean | D188: Basis | E188: Illinois | F188: County | G188: Christian County | H188: =+IF(LEN(home!$G$7)>0,instruments!C188=home!$G$7,TRUE) -> FALSE | I188: TRUE | J188: =+IF(LEN(home!$G$8)>0,instruments!E188=home!$G$8,TRUE) -> FALSE | K188: =+IF(LEN(home!$G$9)>0,instruments!F188=home!$G$9,TRUE) -> TRUE | L188: 2 | M188: =+COUNTIF($L$1:L188,"="&4) -> 18 | N188: Christian County, IL Soybean Basis
A189: ZCBAILCL.CM | B189: cmdty Clark County, IL Corn Basis Idx | C189: Corn | D189: Basis | E189: Illinois | F189: County | G189: Clark County | H189: =+IF(LEN(home!$G$7)>0,instruments!C189=home!$G$7,TRUE) -> TRUE | I189: TRUE | J189: =+IF(LEN(home!$G$8)>0,instruments!E189=home!$G$8,TRUE) -> FALSE | K189: =+IF(LEN(home!$G$9)>0,instruments!F189=home!$G$9,TRUE) -> TRUE | L189: 3 | M189: =+COUNTIF($L$1:L189,"="&4) -> 18 | N189: Clark County, IL Corn Basis
A190: ZSBAILCL.CM | B190: cmdty Clark County, IL Soybean Basis Idx | C190: Soybean | D190: Basis | E190: Illinois | F190: County | G190: Clark County | H190: =+IF(LEN(home!$G$7)>0,instruments!C190=home!$G$7,TRUE) -> FALSE | I190: TRUE | J190: =+IF(LEN(home!$G$8)>0,instruments!E190=home!$G$8,TRUE) -> FALSE | K190: =+IF(LEN(home!$G$9)>0,instruments!F190=home!$G$9,TRUE) -> TRUE | L190: 2 | M190: =+COUNTIF($L$1:L190,"="&4) -> 18 | N190: Clark County, IL Soybean Basis
A191: ZCBAINCL.CM | B191: cmdty Clark County, IN Corn Basis Idx | C191: Corn | D191: Basis | E191: Indiana | F191: County | G191: Clark County | H191: =+IF(LEN(home!$G$7)>0,instruments!C191=home!$G$7,TRUE) -> TRUE | I191: TRUE | J191: =+IF(LEN(home!$G$8)>0,instruments!E191=home!$G$8,TRUE) -> FALSE | K191: =+IF(LEN(home!$G$9)>0,instruments!F191=home!$G$9,TRUE) -> TRUE | L191: 3 | M191: =+COUNTIF($L$1:L191,"="&4) -> 18 | N191: Clark County, IN Corn Basis
A192: ZSBAINCL.CM | B192: cmdty Clark County, IN Soybean Basis Idx | C192: Soybean | D192: Basis | E192: Indiana | F192: County | G192: Clark County | H192: =+IF(LEN(home!$G$7)>0,instruments!C192=home!$G$7,TRUE) -> FALSE | I192: TRUE | J192: =+IF(LEN(home!$G$8)>0,instruments!E192=home!$G$8,TRUE) -> FALSE | K192: =+IF(LEN(home!$G$9)>0,instruments!F192=home!$G$9,TRUE) -> TRUE | L192: 2 | M192: =+COUNTIF($L$1:L192,"="&4) -> 18 | N192: Clark County, IN Soybean Basis
A193: ZCBAKSCL.CM | B193: cmdty Clark County, KS Corn Basis Idx | C193: Corn | D193: Basis | E193: Kansas | F193: County | G193: Clark County | H193: =+IF(LEN(home!$G$7)>0,instruments!C193=home!$G$7,TRUE) -> TRUE | I193: TRUE | J193: =+IF(LEN(home!$G$8)>0,instruments!E193=home!$G$8,TRUE) -> FALSE | K193: =+IF(LEN(home!$G$9)>0,instruments!F193=home!$G$9,TRUE) -> TRUE | L193: 3 | M193: =+COUNTIF($L$1:L193,"="&4) -> 18 | N193: Clark County, KS Corn Basis
A194: ZSBAKSCL.CM | B194: cmdty Clark County, KS Soybean Basis Idx | C194: Soybean | D194: Basis | E194: Kansas | F194: County | G194: Clark County | H194: =+IF(LEN(home!$G$7)>0,instruments!C194=home!$G$7,TRUE) -> FALSE | I194: TRUE | J194: =+IF(LEN(home!$G$8)>0,instruments!E194=home!$G$8,TRUE) -> FALSE | K194: =+IF(LEN(home!$G$9)>0,instruments!F194=home!$G$9,TRUE) -> TRUE | L194: =+COUNTIF(H194:K194,TRUE) -> 2 | M194: =+COUNTIF($L$1:L194,"="&4) -> 18 | N194: Clark County, KS Soybean Basis
A195: ZCBAMOCL.CM | B195: cmdty Clark County, MO Corn Basis Idx | C195: Corn | D195: Basis | E195: Missouri | F195: County | G195: Clark County | H195: =+IF(LEN(home!$G$7)>0,instruments!C195=home!$G$7,TRUE) -> TRUE | I195: =+D195="Basis" -> TRUE | J195: =+IF(LEN(home!$G$8)>0,instruments!E195=home!$G$8,TRUE) -> FALSE | K195: =+IF(LEN(home!$G$9)>0,instruments!F195=home!$G$9,TRUE) -> TRUE | L195: 3 | M195: =+COUNTIF($L$1:L195,"="&4) -> 18 | N195: =+MID(B195,FIND(" ",B195,1)+1,LEN(B195)-FIND(" ",B195,1)-4) -> Clark County, MO Corn Basis
A196: ZSBAMOCL.CM | B196: cmdty Clark County, MO Soybean Basis Idx | C196: Soybean | D196: Basis | E196: Missouri | F196: County | G196: Clark County | H196: =+IF(LEN(home!$G$7)>0,instruments!C196=home!$G$7,TRUE) -> FALSE | I196: TRUE | J196: =+IF(LEN(home!$G$8)>0,instruments!E196=home!$G$8,TRUE) -> FALSE | K196: =+IF(LEN(home!$G$9)>0,instruments!F196=home!$G$9,TRUE) -> TRUE | L196: 2 | M196: =+COUNTIF($L$1:L196,"="&4) -> 18 | N196: Clark County, MO Soybean Basis
A197: ZSBAOHCL.CM | B197: cmdty Clark County, OH Soybean Basis Idx | C197: Soybean | D197: Basis | E197: Ohio | F197: County | G197: Clark County | H197: =+IF(LEN(home!$G$7)>0,instruments!C197=home!$G$7,TRUE) -> FALSE | I197: TRUE | J197: =+IF(LEN(home!$G$8)>0,instruments!E197=home!$G$8,TRUE) -> FALSE | K197: =+IF(LEN(home!$G$9)>0,instruments!F197=home!$G$9,TRUE) -> TRUE | L197: 2 | M197: =+COUNTIF($L$1:L197,"="&4) -> 18 | N197: Clark County, OH Soybean Basis
A198: ZCBASDCL.CM | B198: cmdty Clark County, SD Corn Basis Idx | C198: Corn | D198: Basis | E198: South Dakota | F198: County | G198: Clark County | H198: =+IF(LEN(home!$G$7)>0,instruments!C198=home!$G$7,TRUE) -> TRUE | I198: TRUE | J198: =+IF(LEN(home!$G$8)>0,instruments!E198=home!$G$8,TRUE) -> FALSE | K198: =+IF(LEN(home!$G$9)>0,instruments!F198=home!$G$9,TRUE) -> TRUE | L198: 3 | M198: =+COUNTIF($L$1:L198,"="&4) -> 18 | N198: Clark County, SD Corn Basis
A199: ZSBASDCL.CM | B199: cmdty Clark County, SD Soybean Basis Idx | C199: Soybean | D199: Basis | E199: South Dakota | F199: County | G199: Clark County | H199: =+IF(LEN(home!$G$7)>0,instruments!C199=home!$G$7,TRUE) -> FALSE | I199: TRUE | J199: =+IF(LEN(home!$G$8)>0,instruments!E199=home!$G$8,TRUE) -> FALSE | K199: =+IF(LEN(home!$G$9)>0,instruments!F199=home!$G$9,TRUE) -> TRUE | L199: 2 | M199: =+COUNTIF($L$1:L199,"="&4) -> 18 | N199: Clark County, SD Soybean Basis
A200: ZCBAIACL.CM | B200: cmdty Clarke County, IA Corn Basis Idx | C200: Corn | D200: Basis | E200: Iowa | F200: County | G200: Clarke County | H200: =+IF(LEN(home!$G$7)>0,instruments!C200=home!$G$7,TRUE) -> TRUE | I200: TRUE | J200: =+IF(LEN(home!$G$8)>0,instruments!E200=home!$G$8,TRUE) -> TRUE | K200: =+IF(LEN(home!$G$9)>0,instruments!F200=home!$G$9,TRUE) -> TRUE | L200: 4 | M200: =+COUNTIF($L$1:L200,"="&4) -> 19 | N200: Clarke County, IA Corn Basis
... 1227 more rows

Sheet futures
B1: Corn | C1: HRW | D1: Soybean | E1: Spring Wheat | F1: SRW
A2: 1 | B2: H | C2: H | D2: F | E2: H | F2: H
A3: =+A2+1 -> 2 | B3: H | C3: H | D3: H | E3: H | F3: H
A4: =+A3+1 -> 3 | B4: H | C4: H | D4: H | E4: H | F4: H
A5: 4 | B5: K | C5: K | D5: K | E5: K | F5: K
A6: 5 | B6: K | C6: K | D6: K | E6: K | F6: K
A7: 6 | B7: N | C7: N | D7: N | E7: N | F7: N
A8: 7 | B8: N | C8: N | D8: N | E8: N | F8: N
A9: 8 | B9: U | C9: U | D9: Q | E9: U | F9: U
A10: 9 | B10: U | C10: U | D10: U | E10: U | F10: U
A11: 10 | B11: Z | C11: Z | D11: X | E11: Z | F11: Z
A12: 11 | B12: Z | C12: Z | D12: X | E12: Z | F12: Z
A13: 12 | B13: Z | C13: Z | D13: F | E13: Z | F13: Z
